Workbook

Sheet Main
B5: DAILY FUND CHECK
L7: Note:
C8: Report Details:
L9: 1. Press Login to connect to database
E10: Company Name: | F10: BIMB INVESTMENT MANAGEMENT BERHAD | L10: 2. Select Value Date, then click on the button Import to import data.
E11: Company ID: | F11: BI
E12: Value Date (T-1): | F12: 2021-06-04
E13: Value Date: | F13: 2021-06-08

Sheet InPricePM (hidden)
J1: =VLOOKUP($B1,Setting!$A:$C,3,0) & " " & VLOOKUP($B1,Setting!$A:$D,4,0) ->  | K1: =VLOOKUP($B1,Setting!$A:$E,5,0) ->  | L1: =G1&"/"&F1&A1 -> / | M1: =IF(IF(I1=1,ValueDateTm1,ValueDate)=A1,E1,0) -> 0
A2: qValDate | B2: qFundCode | C2: FundName | D2: FundDesc | E2: BuyPrice | F2: qCurrencyCode | G2: FundCurrency | H2: ExchgRate | I2: ForeignFlag | J2: RptFundDesc | K2: SortingIndex | L2: ExchgRate | M2: MemoPrice | N2: Col3 | O2: Col4
A3: 2020-12-31 | B3: BAPACMYR | C3: BAPAC (MYR) | D3: BIMB-ARABESQUE ASIA PACIFIC SHARIAH-ESG EQUITY (MYR) | E3: 0.2351 | F3: MYR | G3: USD | H3: 4.018 | I3: 1 | J3: BIMB-Arabesque Asia Pacific Shariah-ESG Equity Fund - RM CLASS ^ | K3: 19 | L3: USD/MYR44196 | M3: 0
A4: 2020-12-31 | B4: BAPACUSD | C4: BAPAC (USD) | D4: BIMB-ARABESQUE ASIA PACIFIC SHARIAH-ESG EQUITY (USD) | E4: 0.2305 | F4: USD | G4: USD | H4: 1 | I4: 1 | J4: BIMB-Arabesque Asia Pacific Shariah-ESG Equity Fund - USD CLASS ^ | K4: 18 | L4: USD/USD44196 | M4: 0
A5: 2020-12-31 | B5: BIPF | C5: Bank Islam Premier Fund | D5: Bank Islam Premier Fund | E5: 1 | F5: MYR | G5: MYR | H5: 1 | I5: 1 | J5: Bank Islam Premier Fund * | K5: 9 | L5: MYR/MYR44196 | M5: 0
A6: 2020-12-31 | B6: BMSEFEUR | C6: BMSEF (EUR) | D6: BIMB-Arabesque Malaysia Shariah-ESG Equity Fund (EUR) | E6: 0.2893 | F6: EUR | G6: MYR | H6: 0.2034 | I6: 1 | J6: BIMB-Arabesque Malaysia Shariah-ESG Equity Fund - EUR CLASS ^ | K6: 17 | L6: MYR/EUR44196 | M6: 0
A7: 2020-12-31 | B7: BMSEFMYR | C7: BMSEF (MYR) | D7: BIMB-Arabesque Malaysia Shariah-ESG Equity Fund (MYR) | E7: 0.3013 | F7: MYR | G7: MYR | H7: 1 | I7: 1 | J7: BIMB-Arabesque Malaysia Shariah-ESG Equity Fund - RM CLASS ^ | K7: 14 | L7: MYR/MYR44196 | M7: 0
A8: 2020-12-31 | B8: BMSEFSGD | C8: BMSEF (SGD) | D8: BIMB-Arabesque Malaysia Shariah-ESG Equity Fund (SGD) | E8: 0.3129 | F8: SGD | G8: MYR | H8: 0.3283 | I8: 1 | J8: BIMB-Arabesque Malaysia Shariah-ESG Equity Fund - SGD CLASS ^ | K8: 16 | L8: MYR/SGD44196 | M8: 0
A9: 2020-12-31 | B9: BMSEFUSD | C9: BMSEF (USD) | D9: BIMB-Arabesque Malaysia Shariah-ESG Equity Fund (USD) | E9: 0.3314 | F9: USD | G9: MYR | H9: 0.2486 | I9: 1 | J9: BIMB-Arabesque Malaysia Shariah-ESG Equity Fund - USD CLASS ^ | K9: 15 | L9: MYR/USD44196 | M9: 0
A10: 2020-12-31 | B10: BSF-Class A | C10: BIMB ESG SUKUK FUND-Class A | D10: BIMB ESG SUKUK FUND-Class A | E10: 0.2533 | F10: MYR | G10: MYR | H10: 1 | I10: 1 | J10: BIMB ESG Sukuk Fund - Class A ^ | K10: 20 | L10: MYR/MYR44196 | M10: 0
A11: 2020-12-31 | B11: BSF-Class B | C11: BIMB ESG SUKUK FUND-Class B | D11: BIMB ESG SUKUK FUND-Class B | E11: 0.2587 | F11: USD | G11: MYR | H11: 0.2486 | I11: 1 | J11: BIMB ESG Sukuk Fund - Class B ^ | K11: 21 | L11: MYR/USD44196 | M11: 0
A12: 2020-12-31 | B12: BSF-Class C | C12: BIMB ESG SUKUK FUND-Class C | D12: BIMB ESG SUKUK FUND-Class C | E12: 0.2486 | F12: SGD | G12: MYR | H12: 0.3283 | I12: 1 | J12: BIMB ESG Sukuk Fund - Class C ^ | K12: 22 | L12: MYR/SGD44196 | M12: 0
A13: 2020-12-31 | B13: BSF-Class D | C13: BIMB ESG SUKUK FUND-Class D | D13: BIMB ESG SUKUK FUND-Class D | E13: 0.2533 | F13: MYR | G13: MYR | H13: 1 | I13: 1 | J13: BIMB ESG Sukuk Fund - Class D ^ | K13: 23 | L13: MYR/MYR44196 | M13: 0
A14: 2020-12-31 | B14: BSF-Class E | C14: BIMB ESG SUKUK FUND-Class E | D14: BIMB ESG SUKUK FUND-Class E | E14: 0.2587 | F14: USD | G14: MYR | H14: 0.2486 | I14: 1 | J14: BIMB ESG Sukuk Fund - Class E ^ | K14: 24 | L14: MYR/USD44196 | M14: 0
A15: 2020-12-31 | B15: BSIF | C15: BIMB Shariah IncomePlus Fund | D15: CIMB Islamic Trustees Berhad for BIMB Shariah IncomePlus Fund | E15: 1.0008 | F15: MYR | G15: MYR | H15: 1 | I15: 0 | J15: BIMB Shariah IncomePlus Fund | K15: 8 | L15: MYR/MYR44196 | M15: 0
A16: 2020-12-31 | B16: GD1MYR | C16: BIMB-Arabesque i Global Dividend Fund 1 (MYR) | D16: BIMB-Arabesque i Global Dividend Fund 1 (MYR) | E16: 0.5082 | F16: MYR | G16: USD | H16: 4.018 | I16: 1 | J16: BIMB-ARABESQUE i Global Dividend Fund 1 - RM Class ^ | K16: 10 | L16: USD/MYR44196 | M16: 0
A17: 2020-12-31 | B17: GD1RMH | C17: BIMB-Arabesque i Global Dividend Fund 1 (MYR H) | D17: BIMB-Arabesque i Global Dividend Fund 1 (MYR H) | E17: 0.535 | F17: MYR | G17: USD | H17: 4.018 | I17: 1 | J17: BIMB-ARABESQUE i Global Dividend Fund 1 - RM Hedged Class ^ | K17: 13 | L17: USD/MYR44196 | M17: 0
A18: 2020-12-31 | B18: GD1SGD | C18: BIMB-Arabesque i Global Dividend Fund 1 (SGD) | D18: BIMB-Arabesque i Global Dividend Fund 1 (SGD) | E18: 0.4927 | F18: SGD | G18: USD | H18: 1.3198 | I18: 1 | J18: BIMB-ARABESQUE i Global Dividend Fund 1 - SGD Class ^ | K18: 12 | L18: USD/SGD44196 | M18: 0
A19: 2020-12-31 | B19: GD1USD | C19: BIMB-Arabesque i Global Dividend Fund 1 (USD) | D19: BIMB-Arabesque i Global Dividend Fund 1 (USD) | E19: 0.547 | F19: USD | G19: USD | H19: 1 | I19: 1 | J19: BIMB-ARABESQUE i Global Dividend Fund 1 - USD Class ^ | K19: 11 | L19: USD/USD44196 | M19: 0
A20: 2020-12-31 | B20: IB | C20: BIMB Dana Al-Fakhim | D20: SCBMB Trustee Berhad for BIMB Dana Al-Fakhim | E20: 0.518 | F20: MYR | G20: MYR | H20: 1 | I20: 0 | J20: BIMB Dana Al-Fakhim | K20: 3 | L20: MYR/MYR44196 | M20: 0
A21: 2020-12-31 | B21: ID | C21: BIMB Dana Al-Falah | D21: SCBMB Trustee Berhad for BIMB Dana Al-Falah | E21: 0.3275 | F21: MYR | G21: MYR | H21: 1 | I21: 0 | J21: BIMB Dana Al-Falah | K21: 5 | L21: MYR/MYR44196 | M21: 0
A22: 2020-12-31 | B22: IF | C22: BIMB I Flexi Fund | D22: BIMB I Flexi Fund | E22: 0.3346 | F22: MYR | G22: MYR | H22: 1 | I22: 0 | J22: BIMB i Flexi Fund | K22: 7 | L22: MYR/MYR44196 | M22: 0
A23: 2020-12-31 | B23: IP | C23: BIMB I Tactical Fund | D23: BIMB I Tactical Fund | E23: 0.1036 | F23: MYR | G23: MYR | H23: 1 | I23: 0 | J23: BIMB i-Tactical Fund (Formerly known as BIMB i Dividend Fund) | K23: 1 | L23: MYR/MYR44196 | M23: 0
A24: 2020-12-31 | B24: IS | C24: BIMB Dana Al-Munsif | D24: SCBMB Trustee Berhad for BIMB Dana Al-Munsif | E24: 0.4053 | F24: MYR | G24: MYR | H24: 1 | I24: 0 | J24: BIMB Dana Al-Munsif | K24: 4 | L24: MYR/MYR44196 | M24: 0
A25: 2020-12-31 | B25: TP | C25: BIMB I Growth | D25: MTB-BIMB I Growth | E25: 0.4803 | F25: MYR | G25: MYR | H25: 1 | I25: 0 | J25: BIMB i Growth (Al-Mubin) | K25: 2 | L25: MYR/MYR44196 | M25: 0
A26: 2021-05-31 | B26: BAPACMYR | C26: BAPAC (MYR) | D26: BIMB-ARABESQUE ASIA PACIFIC SHARIAH-ESG EQUITY (MYR) | E26: 0.2457 | F26: MYR | G26: USD | H26: 4.1235 | I26: 1 | J26: BIMB-Arabesque Asia Pacific Shariah-ESG Equity Fund - RM CLASS ^ | K26: 19 | L26: USD/MYR44347 | M26: 0
A27: 2021-05-31 | B27: BAPACUSD | C27: BAPAC (USD) | D27: BIMB-ARABESQUE ASIA PACIFIC SHARIAH-ESG EQUITY (USD) | E27: 0.2348 | F27: USD | G27: USD | H27: 1 | I27: 1 | J27: BIMB-Arabesque Asia Pacific Shariah-ESG Equity Fund - USD CLASS ^ | K27: 18 | L27: USD/USD44347 | M27: 0
A28: 2021-05-31 | B28: BGSEFAUD | C28: Bimb-Arabesque Global Shariah Sustainable Equity | D28: Bimb-Arabesque Global Shariah Sustainable Equity Fund (AUD) | E28: 0.2475 | F28: AUD | G28: USD | H28: 1.2923 | I28: 1 | J28: BIMB-ARABESQUE GLOBAL SHARIAH SUSTAINABLE EQUITY FUND - AUD Class ^ | K28: 32 | L28: USD/AUD44347 | M28: 0
A29: 2021-05-31 | B29: BGSEFMYR | C29: Bimb-Arabesque Global Shariah Sustainable Equity | D29: Bimb-Arabesque Global Shariah Sustainable Equity Fund (MYR) | E29: 0.2509 | F29: MYR | G29: USD | H29: 4.1235 | I29: 1 | J29: BIMB-ARABESQUE GLOBAL SHARIAH SUSTAINABLE EQUITY FUND - RM Class ^ | K29: 29 | L29: USD/MYR44347 | M29: 0
A30: 2021-05-31 | B30: BGSEFRMH | C30: Bimb-Arabesque Global Shariah Sustainable Equity | D30: Bimb-Arabesque Global Shariah Sustainable Equity Fund (MYR H) | E30: 0.2511 | F30: MYR | G30: USD | H30: 4.1235 | I30: 1 | J30: BIMB-ARABESQUE GLOBAL SHARIAH SUSTAINABLE EQUITY FUND - RM Hedged Class ^ | K30: 30 | L30: USD/MYR44347 | M30: 0
A31: 2021-05-31 | B31: BGSEFSGD | C31: Bimb-Arabesque Global Shariah Sustainable Equity | D31: Bimb-Arabesque Global Shariah Sustainable Equity Fund (SGD) | E31: 0.2478 | F31: SGD | G31: USD | H31: 1.321 | I31: 1 | J31: BIMB-ARABESQUE GLOBAL SHARIAH SUSTAINABLE EQUITY FUND - SGD Class ^ | K31: 33 | L31: USD/SGD44347 | M31: 0
A32: 2021-05-31 | B32: BGSEFUSD | C32: Bimb-Arabesque Global Shariah Sustainable Equity | D32: Bimb-Arabesque Global Shariah Sustainable Equity Fund (USD) | E32: 0.2521 | F32: USD | G32: USD | H32: 1 | I32: 1 | J32: BIMB-ARABESQUE GLOBAL SHARIAH SUSTAINABLE EQUITY FUND - USD Class ^ | K32: 31 | L32: USD/USD44347 | M32: 0
A33: 2021-05-31 | B33: BIPF | C33: Bank Islam Premier Fund | D33: Bank Islam Premier Fund | E33: 1.0038 | F33: MYR | G33: MYR | H33: 1 | I33: 1 | J33: Bank Islam Premier Fund * | K33: 9 | L33: MYR/MYR44347 | M33: 0
A34: 2021-05-31 | B34: BMSEFEUR | C34: BMSEF (EUR) | D34: BIMB-Arabesque Malaysia Shariah-ESG Equity Fund (EUR) | E34: 0.2838 | F34: EUR | G34: MYR | H34: 0.1983 | I34: 1 | J34: BIMB-Arabesque Malaysia Shariah-ESG Equity Fund - EUR CLASS ^ | K34: 17 | L34: MYR/EUR44347 | M34: 0
A35: 2021-05-31 | B35: BMSEFMYR | C35: BMSEF (MYR) | D35: BIMB-Arabesque Malaysia Shariah-ESG Equity Fund (MYR) | E35: 0.3031 | F35: MYR | G35: MYR | H35: 1 | I35: 1 | J35: BIMB-Arabesque Malaysia Shariah-ESG Equity Fund - RM CLASS ^ | K35: 14 | L35: MYR/MYR44347 | M35: 0
A36: 2021-05-31 | B36: BMSEFSGD | C36: BMSEF (SGD) | D36: BIMB-Arabesque Malaysia Shariah-ESG Equity Fund (SGD) | E36: 0.3074 | F36: SGD | G36: MYR | H36: 0.3206 | I36: 1 | J36: BIMB-Arabesque Malaysia Shariah-ESG Equity Fund - SGD CLASS ^ | K36: 16 | L36: MYR/SGD44347 | M36: 0
A37: 2021-05-31 | B37: BMSEFUSD | C37: BMSEF (USD) | D37: BIMB-Arabesque Malaysia Shariah-ESG Equity Fund (USD) | E37: 0.3253 | F37: USD | G37: MYR | H37: 0.2425 | I37: 1 | J37: BIMB-Arabesque Malaysia Shariah-ESG Equity Fund - USD CLASS ^ | K37: 15 | L37: MYR/USD44347 | M37: 0
A38: 2021-05-31 | B38: BOSIF | C38: BIMB One-Year Shariah Income Fund | D38: BIMB One-Year Shariah Income Fund | E38: 1.0048 | F38: MYR | G38: MYR | H38: 1 | I38: 0 | J38: BIMB One-Year Shariah Income Fund | K38: 34 | L38: MYR/MYR44347 | M38: 0
A39: 2021-05-31 | B39: BSF-Class A | C39: BIMB ESG SUKUK FUND-Class A | D39: BIMB ESG SUKUK FUND-Class A | E39: 0.2512 | F39: MYR | G39: MYR | H39: 1 | I39: 1 | J39: BIMB ESG Sukuk Fund - Class A ^ | K39: 20 | L39: MYR/MYR44347 | M39: 0
A40: 2021-05-31 | B40: BSF-Class B | C40: BIMB ESG SUKUK FUND-Class B | D40: BIMB ESG SUKUK FUND-Class B | E40: 0.2503 | F40: USD | G40: MYR | H40: 0.2425 | I40: 1 | J40: BIMB ESG Sukuk Fund - Class B ^ | K40: 21 | L40: MYR/USD44347 | M40: 0
A41: 2021-05-31 | B41: BSF-Class C | C41: BIMB ESG SUKUK FUND-Class C | D41: BIMB ESG SUKUK FUND-Class C | E41: 0.2408 | F41: SGD | G41: MYR | H41: 0.3206 | I41: 1 | J41: BIMB ESG Sukuk Fund - Class C ^ | K41: 22 | L41: MYR/SGD44347 | M41: 0
A42: 2021-05-31 | B42: BSF-Class D | C42: BIMB ESG SUKUK FUND-Class D | D42: BIMB ESG SUKUK FUND-Class D | E42: 0.2512 | F42: MYR | G42: MYR | H42: 1 | I42: 1 | J42: BIMB ESG Sukuk Fund - Class D ^ | K42: 23 | L42: MYR/MYR44347 | M42: 0
A43: 2021-05-31 | B43: BSF-Class E | C43: BIMB ESG SUKUK FUND-Class E | D43: BIMB ESG SUKUK FUND-Class E | E43: 0.2503 | F43: USD | G43: MYR | H43: 0.2425 | I43: 1 | J43: BIMB ESG Sukuk Fund - Class E ^ | K43: 24 | L43: MYR/USD44347 | M43: 0
A44: 2021-05-31 | B44: BSIF | C44: BIMB Shariah IncomePlus Fund | D44: CIMB Islamic Trustees Berhad for BIMB Shariah IncomePlus Fund | E44: 0.9986 | F44: MYR | G44: MYR | H44: 1 | I44: 0 | J44: BIMB Shariah IncomePlus Fund | K44: 8 | L44: MYR/MYR44347 | M44: 0
A45: 2021-05-31 | B45: GD1MYR | C45: BIMB-Arabesque i Global Dividend Fund 1 (MYR) | D45: BIMB-Arabesque i Global Dividend Fund 1 (MYR) | E45: 0.5029 | F45: MYR | G45: USD | H45: 4.1235 | I45: 1 | J45: BIMB-ARABESQUE i Global Dividend Fund 1 - RM Class ^ | K45: 10 | L45: USD/MYR44347 | M45: 0
A46: 2021-05-31 | B46: GD1RMH | C46: BIMB-Arabesque i Global Dividend Fund 1 (MYR H) | D46: BIMB-Arabesque i Global Dividend Fund 1 (MYR H) | E46: 0.5079 | F46: MYR | G46: USD | H46: 4.1235 | I46: 1 | J46: BIMB-ARABESQUE i Global Dividend Fund 1 - RM Hedged Class ^ | K46: 13 | L46: USD/MYR44347 | M46: 0
A47: 2021-05-31 | B47: GD1SGD | C47: BIMB-Arabesque i Global Dividend Fund 1 (SGD) | D47: BIMB-Arabesque i Global Dividend Fund 1 (SGD) | E47: 0.4752 | F47: SGD | G47: USD | H47: 1.321 | I47: 1 | J47: BIMB-ARABESQUE i Global Dividend Fund 1 - SGD Class ^ | K47: 12 | L47: USD/SGD44347 | M47: 0
A48: 2021-05-31 | B48: GD1USD | C48: BIMB-Arabesque i Global Dividend Fund 1 (USD) | D48: BIMB-Arabesque i Global Dividend Fund 1 (USD) | E48: 0.5291 | F48: USD | G48: USD | H48: 1 | I48: 1 | J48: BIMB-ARABESQUE i Global Dividend Fund 1 - USD Class ^ | K48: 11 | L48: USD/USD44347 | M48: 0
A49: 2021-05-31 | B49: IB | C49: BIMB Dana Al-Fakhim | D49: SCBMB Trustee Berhad for BIMB Dana Al-Fakhim | E49: 0.5181 | F49: MYR | G49: MYR | H49: 1 | I49: 0 | J49: BIMB Dana Al-Fakhim | K49: 3 | L49: MYR/MYR44347 | M49: 0
A50: 2021-05-31 | B50: ID | C50: BIMB Dana Al-Falah | D50: SCBMB Trustee Berhad for BIMB Dana Al-Falah | E50: 0.3161 | F50: MYR | G50: MYR | H50: 1 | I50: 0 | J50: BIMB Dana Al-Falah | K50: 5 | L50: MYR/MYR44347 | M50: 0
A51: 2021-05-31 | B51: IF | C51: BIMB I Flexi Fund | D51: BIMB I Flexi Fund | E51: 0.3077 | F51: MYR | G51: MYR | H51: 1 | I51: 0 | J51: BIMB i Flexi Fund | K51: 7 | L51: MYR/MYR44347 | M51: 0
A52: 2021-05-31 | B52: IP | C52: BIMB I Tactical Fund | D52: BIMB I Tactical Fund | E52: 0.1062 | F52: MYR | G52: MYR | H52: 1 | I52: 0 | J52: BIMB i-Tactical Fund (Formerly known as BIMB i Dividend Fund) | K52: 1 | L52: MYR/MYR44347 | M52: 0
A53: 2021-05-31 | B53: IS | C53: BIMB Dana Al-Munsif | D53: SCBMB Trustee Berhad for BIMB Dana Al-Munsif | E53: 0.4049 | F53: MYR | G53: MYR | H53: 1 | I53: 0 | J53: BIMB Dana Al-Munsif | K53: 4 | L53: MYR/MYR44347 | M53: 0
A54: 2021-05-31 | B54: MWFAUD | C54: Makmur myWakaf Fund (AUD) | D54: Makmur myWakaf Fund (AUD) | E54: 0.2433 | F54: AUD | G54: MYR | H54: 0.3132 | I54: 1 | J54: MAKMUR MYWAKAF FUND (AUD) ^ | K54: 25 | L54: MYR/AUD44347 | M54: 0
A55: 2021-05-31 | B55: MWFMYR | C55: Makmur myWakaf Fund (MYR) | D55: Makmur myWakaf Fund (MYR) | E55: 0.2451 | F55: MYR | G55: MYR | H55: 1 | I55: 1 | J55: MAKMUR MYWAKAF FUND (MYR) ^ | K55: 26 | L55: MYR/MYR44347 | M55: 0
A56: 2021-05-31 | B56: MWFUSD | C56: Makmur myWakaf Fund (USD) | D56: Makmur myWakaf Fund (USD) | E56: 0.2458 | F56: USD | G56: MYR | H56: 0.2425 | I56: 1 | J56: MAKMUR MYWAKAF FUND (USD) ^ | K56: 28 | L56: MYR/USD44347 | M56: 0
A57: 2021-05-31 | B57: TP | C57: BIMB I Growth | D57: MTB-BIMB I Growth | E57: 0.5262 | F57: MYR | G57: MYR | H57: 1 | I57: 0 | J57: BIMB i Growth (Al-Mubin) | K57: 2 | L57: MYR/MYR44347 | M57: 0
A58: 2021-06-03 | B58: BAPACMYR | C58: BAPAC (MYR) | D58: BIMB-ARABESQUE ASIA PACIFIC SHARIAH-ESG EQUITY (MYR) | E58: 0.2468 | F58: MYR | G58: USD | H58: 4.1235 | I58: 1 | J58: BIMB-Arabesque Asia Pacific Shariah-ESG Equity Fund - RM CLASS ^ | K58: 19 | L58: USD/MYR44350 | M58: 0
A59: 2021-06-03 | B59: BAPACUSD | C59: BAPAC (USD) | D59: BIMB-ARABESQUE ASIA PACIFIC SHARIAH-ESG EQUITY (USD) | E59: 0.2358 | F59: USD | G59: USD | H59: 1 | I59: 1 | J59: BIMB-Arabesque Asia Pacific Shariah-ESG Equity Fund - USD CLASS ^ | K59: 18 | L59: USD/USD44350 | M59: 0
A60: 2021-06-03 | B60: BGSEFAUD | C60: Bimb-Arabesque Global Shariah Sustainable Equity | D60: Bimb-Arabesque Global Shariah Sustainable Equity Fund (AUD) | E60: 0.2492 | F60: AUD | G60: USD | H60: 1.3053 | I60: 1 | J60: BIMB-ARABESQUE GLOBAL SHARIAH SUSTAINABLE EQUITY FUND - AUD Class ^ | K60: 32 | L60: USD/AUD44350 | M60: 0
A61: 2021-06-03 | B61: BGSEFMYR | C61: Bimb-Arabesque Global Shariah Sustainable Equity | D61: Bimb-Arabesque Global Shariah Sustainable Equity Fund (MYR) | E61: 0.2502 | F61: MYR | G61: USD | H61: 4.1235 | I61: 1 | J61: BIMB-ARABESQUE GLOBAL SHARIAH SUSTAINABLE EQUITY FUND - RM Class ^ | K61: 29 | L61: USD/MYR44350 | M61: 0
A62: 2021-06-03 | B62: BGSEFRMH | C62: Bimb-Arabesque Global Shariah Sustainable Equity | D62: Bimb-Arabesque Global Shariah Sustainable Equity Fund (MYR H) | E62: 0.2505 | F62: MYR | G62: USD | H62: 4.1235 | I62: 1 | J62: BIMB-ARABESQUE GLOBAL SHARIAH SUSTAINABLE EQUITY FUND - RM Hedged Class ^ | K62: 30 | L62: USD/MYR44350 | M62: 0
A63: 2021-06-03 | B63: BGSEFSGD | C63: Bimb-Arabesque Global Shariah Sustainable Equity | D63: Bimb-Arabesque Global Shariah Sustainable Equity Fund (SGD) | E63: 0.2481 | F63: SGD | G63: USD | H63: 1.3268 | I63: 1 | J63: BIMB-ARABESQUE GLOBAL SHARIAH SUSTAINABLE EQUITY FUND - SGD Class ^ | K63: 33 | L63: USD/SGD44350 | M63: 0
A64: 2021-06-03 | B64: BGSEFUSD | C64: Bimb-Arabesque Global Shariah Sustainable Equity | D64: Bimb-Arabesque Global Shariah Sustainable Equity Fund (USD) | E64: 0.2514 | F64: USD | G64: USD | H64: 1 | I64: 1 | J64: BIMB-ARABESQUE GLOBAL SHARIAH SUSTAINABLE EQUITY FUND - USD Class ^ | K64: 31 | L64: USD/USD44350 | M64: 0
A65: 2021-06-03 | B65: BIPF | C65: Bank Islam Premier Fund | D65: Bank Islam Premier Fund | E65: 1.0009 | F65: MYR | G65: MYR | H65: 1 | I65: 1 | J65: Bank Islam Premier Fund * | K65: 9 | L65: MYR/MYR44350 | M65: 0
A66: 2021-06-03 | B66: BMSEFEUR | C66: BMSEF (EUR) | D66: BIMB-Arabesque Malaysia Shariah-ESG Equity Fund (EUR) | E66: 0.2881 | F66: EUR | G66: MYR | H66: 0.1999 | I66: 1 | J66: BIMB-Arabesque Malaysia Shariah-ESG Equity Fund - EUR CLASS ^ | K66: 17 | L66: MYR/EUR44350 | M66: 0
A67: 2021-06-03 | B67: BMSEFMYR | C67: BMSEF (MYR) | D67: BIMB-Arabesque Malaysia Shariah-ESG Equity Fund (MYR) | E67: 0.3053 | F67: MYR | G67: MYR | H67: 1 | I67: 1 | J67: BIMB-Arabesque Malaysia Shariah-ESG Equity Fund - RM CLASS ^ | K67: 14 | L67: MYR/MYR44350 | M67: 0
A68: 2021-06-03 | B68: BMSEFSGD | C68: BMSEF (SGD) | D68: BIMB-Arabesque Malaysia Shariah-ESG Equity Fund (SGD) | E68: 0.3099 | F68: SGD | G68: MYR | H68: 0.3209 | I68: 1 | J68: BIMB-Arabesque Malaysia Shariah-ESG Equity Fund - SGD CLASS ^ | K68: 16 | L68: MYR/SGD44350 | M68: 0
A69: 2021-06-03 | B69: BMSEFUSD | C69: BMSEF (USD) | D69: BIMB-Arabesque Malaysia Shariah-ESG Equity Fund (USD) | E69: 0.3274 | F69: USD | G69: MYR | H69: 0.2424 | I69: 1 | J69: BIMB-Arabesque Malaysia Shariah-ESG Equity Fund - USD CLASS ^ | K69: 15 | L69: MYR/USD44350 | M69: 0
A70: 2021-06-03 | B70: BOSIF | C70: BIMB One-Year Shariah Income Fund | D70: BIMB One-Year Shariah Income Fund | E70: 1.0055 | F70: MYR | G70: MYR | H70: 1 | I70: 0 | J70: BIMB One-Year Shariah Income Fund | K70: 34 | L70: MYR/MYR44350 | M70: 0
A71: 2021-06-03 | B71: BSF-Class A | C71: BIMB ESG SUKUK FUND-Class A | D71: BIMB ESG SUKUK FUND-Class A | E71: 0.2512 | F71: MYR | G71: MYR | H71: 1 | I71: 1 | J71: BIMB ESG Sukuk Fund - Class A ^ | K71: 20 | L71: MYR/MYR44350 | M71: 0
A72: 2021-06-03 | B72: BSF-Class B | C72: BIMB ESG SUKUK FUND-Class B | D72: BIMB ESG SUKUK FUND-Class B | E72: 0.2502 | F72: USD | G72: MYR | H72: 0.2424 | I72: 1 | J72: BIMB ESG Sukuk Fund - Class B ^ | K72: 21 | L72: MYR/USD44350 | M72: 0
A73: 2021-06-03 | B73: BSF-Class C | C73: BIMB ESG SUKUK FUND-Class C | D73: BIMB ESG SUKUK FUND-Class C | E73: 0.241 | F73: SGD | G73: MYR | H73: 0.3209 | I73: 1 | J73: BIMB ESG Sukuk Fund - Class C ^ | K73: 22 | L73: MYR/SGD44350 | M73: 0
A74: 2021-06-03 | B74: BSF-Class D | C74: BIMB ESG SUKUK FUND-Class D | D74: BIMB ESG SUKUK FUND-Class D | E74: 0.2512 | F74: MYR | G74: MYR | H74: 1 | I74: 1 | J74: BIMB ESG Sukuk Fund - Class D ^ | K74: 23 | L74: MYR/MYR44350 | M74: 0
A75: 2021-06-03 | B75: BSF-Class E | C75: BIMB ESG SUKUK FUND-Class E | D75: BIMB ESG SUKUK FUND-Class E | E75: 0.2502 | F75: USD | G75: MYR | H75: 0.2424 | I75: 1 | J75: BIMB ESG Sukuk Fund - Class E ^ | K75: 24 | L75: MYR/USD44350 | M75: 0
A76: 2021-06-03 | B76: BSIF | C76: BIMB Shariah IncomePlus Fund | D76: CIMB Islamic Trustees Berhad for BIMB Shariah IncomePlus Fund | E76: 0.9989 | F76: MYR | G76: MYR | H76: 1 | I76: 0 | J76: BIMB Shariah IncomePlus Fund | K76: 8 | L76: MYR/MYR44350 | M76: 0
A77: 2021-06-03 | B77: GD1MYR | C77: BIMB-Arabesque i Global Dividend Fund 1 (MYR) | D77: BIMB-Arabesque i Global Dividend Fund 1 (MYR) | E77: 0.5007 | F77: MYR | G77: USD | H77: 4.1235 | I77: 1 | J77: BIMB-ARABESQUE i Global Dividend Fund 1 - RM Class ^ | K77: 10 | L77: USD/MYR44350 | M77: 0
A78: 2021-06-03 | B78: GD1RMH | C78: BIMB-Arabesque i Global Dividend Fund 1 (MYR H) | D78: BIMB-Arabesque i Global Dividend Fund 1 (MYR H) | E78: 0.506 | F78: MYR | G78: USD | H78: 4.1235 | I78: 1 | J78: BIMB-ARABESQUE i Global Dividend Fund 1 - RM Hedged Class ^ | K78: 13 | L78: USD/MYR44350 | M78: 0
A79: 2021-06-03 | B79: GD1SGD | C79: BIMB-Arabesque i Global Dividend Fund 1 (SGD) | D79: BIMB-Arabesque i Global Dividend Fund 1 (SGD) | E79: 0.4752 | F79: SGD | G79: USD | H79: 1.3268 | I79: 1 | J79: BIMB-ARABESQUE i Global Dividend Fund 1 - SGD Class ^ | K79: 12 | L79: USD/SGD44350 | M79: 0
A80: 2021-06-03 | B80: GD1USD | C80: BIMB-Arabesque i Global Dividend Fund 1 (USD) | D80: BIMB-Arabesque i Global Dividend Fund 1 (USD) | E80: 0.5268 | F80: USD | G80: USD | H80: 1 | I80: 1 | J80: BIMB-ARABESQUE i Global Dividend Fund 1 - USD Class ^ | K80: 11 | L80: USD/USD44350 | M80: 0
A81: 2021-06-03 | B81: IB | C81: BIMB Dana Al-Fakhim | D81: SCBMB Trustee Berhad for BIMB Dana Al-Fakhim | E81: 0.5182 | F81: MYR | G81: MYR | H81: 1 | I81: 0 | J81: BIMB Dana Al-Fakhim | K81: 3 | L81: MYR/MYR44350 | M81: 0
A82: 2021-06-03 | B82: ID | C82: BIMB Dana Al-Falah | D82: SCBMB Trustee Berhad for BIMB Dana Al-Falah | E82: 0.3246 | F82: MYR | G82: MYR | H82: 1 | I82: 0 | J82: BIMB Dana Al-Falah | K82: 5 | L82: MYR/MYR44350 | M82: 0
A83: 2021-06-03 | B83: IF | C83: BIMB I Flexi Fund | D83: BIMB I Flexi Fund | E83: 0.3157 | F83: MYR | G83: MYR | H83: 1 | I83: 0 | J83: BIMB i Flexi Fund | K83: 7 | L83: MYR/MYR44350 | M83: 0
A84: 2021-06-03 | B84: IP | C84: BIMB I Tactical Fund | D84: BIMB I Tactical Fund | E84: 0.109 | F84: MYR | G84: MYR | H84: 1 | I84: 0 | J84: BIMB i-Tactical Fund (Formerly known as BIMB i Dividend Fund) | K84: 1 | L84: MYR/MYR44350 | M84: 0
A85: 2021-06-03 | B85: IS | C85: BIMB Dana Al-Munsif | D85: SCBMB Trustee Berhad for BIMB Dana Al-Munsif | E85: 0.4114 | F85: MYR | G85: MYR | H85: 1 | I85: 0 | J85: BIMB Dana Al-Munsif | K85: 4 | L85: MYR/MYR44350 | M85: 0
A86: 2021-06-03 | B86: MWFAUD | C86: Makmur myWakaf Fund (AUD) | D86: Makmur myWakaf Fund (AUD) | E86: 0.2456 | F86: AUD | G86: MYR | H86: 0.3137 | I86: 1 | J86: MAKMUR MYWAKAF FUND (AUD) ^ | K86: 25 | L86: MYR/AUD44350 | M86: 0
A87: 2021-06-03 | B87: MWFMYR | C87: Makmur myWakaf Fund (MYR) | D87: Makmur myWakaf Fund (MYR) | E87: 0.247 | F87: MYR | G87: MYR | H87: 1 | I87: 1 | J87: MAKMUR MYWAKAF FUND (MYR) ^ | K87: 26 | L87: MYR/MYR44350 | M87: 0
A88: 2021-06-03 | B88: MWFUSD | C88: Makmur myWakaf Fund (USD) | D88: Makmur myWakaf Fund (USD) | E88: 0.2477 | F88: USD | G88: MYR | H88: 0.2424 | I88: 1 | J88: MAKMUR MYWAKAF FUND (USD) ^ | K88: 28 | L88: MYR/USD44350 | M88: 0
A89: 2021-06-03 | B89: TP | C89: BIMB I Growth | D89: MTB-BIMB I Growth | E89: 0.54 | F89: MYR | G89: MYR | H89: 1 | I89: 0 | J89: BIMB i Growth (Al-Mubin) | K89: 2 | L89: MYR/MYR44350 | M89: 0
A90: 2021-06-04 | B90: BAPACMYR | C90: BAPAC (MYR) | D90: BIMB-ARABESQUE ASIA PACIFIC SHARIAH-ESG EQUITY (MYR) | E90: 0.2475 | F90: MYR | G90: USD | H90: 4.1275 | I90: 1 | J90: BIMB-Arabesque Asia Pacific Shariah-ESG Equity Fund - RM CLASS ^ | K90: 19 | L90: USD/MYR44351 | M90: 0.2475
A91: 2021-06-04 | B91: BAPACUSD | C91: BAPAC (USD) | D91: BIMB-ARABESQUE ASIA PACIFIC SHARIAH-ESG EQUITY (USD) | E91: 0.2363 | F91: USD | G91: USD | H91: 1 | I91: 1 | J91: BIMB-Arabesque Asia Pacific Shariah-ESG Equity Fund - USD CLASS ^ | K91: 18 | L91: USD/USD44351 | M91: 0.2363
A92: 2021-06-04 | B92: BGSEFAUD | C92: Bimb-Arabesque Global Shariah Sustainable Equity | D92: Bimb-Arabesque Global Shariah Sustainable Equity Fund (AUD) | E92: 0.2449 | F92: AUD | G92: USD | H92: 1.2909 | I92: 1 | J92: BIMB-ARABESQUE GLOBAL SHARIAH SUSTAINABLE EQUITY FUND - AUD Class ^ | K92: 32 | L92: USD/AUD44351 | M92: 0.2449
A93: 2021-06-04 | B93: BGSEFMYR | C93: Bimb-Arabesque Global Shariah Sustainable Equity | D93: Bimb-Arabesque Global Shariah Sustainable Equity Fund (MYR) | E93: 0.2488 | F93: MYR | G93: USD | H93: 4.1275 | I93: 1 | J93: BIMB-ARABESQUE GLOBAL SHARIAH SUSTAINABLE EQUITY FUND - RM Class ^ | K93: 29 | L93: USD/MYR44351 | M93: 0.2488
A94: 2021-06-04 | B94: BGSEFRMH | C94: Bimb-Arabesque Global Shariah Sustainable Equity | D94: Bimb-Arabesque Global Shariah Sustainable Equity Fund (MYR H) | E94: 0.2486 | F94: MYR | G94: USD | H94: 4.1275 | I94: 1 | J94: BIMB-ARABESQUE GLOBAL SHARIAH SUSTAINABLE EQUITY FUND - RM Hedged Class ^ | K94: 30 | L94: USD/MYR44351 | M94: 0.2486
A95: 2021-06-04 | B95: BGSEFSGD | C95: Bimb-Arabesque Global Shariah Sustainable Equity | D95: Bimb-Arabesque Global Shariah Sustainable Equity Fund (SGD) | E95: 0.2459 | F95: SGD | G95: USD | H95: 1.3237 | I95: 1 | J95: BIMB-ARABESQUE GLOBAL SHARIAH SUSTAINABLE EQUITY FUND - SGD Class ^ | K95: 33 | L95: USD/SGD44351 | M95: 0.2459
A96: 2021-06-04 | B96: BGSEFUSD | C96: Bimb-Arabesque Global Shariah Sustainable Equity | D96: Bimb-Arabesque Global Shariah Sustainable Equity Fund (USD) | E96: 0.2497 | F96: USD | G96: USD | H96: 1 | I96: 1 | J96: BIMB-ARABESQUE GLOBAL SHARIAH SUSTAINABLE EQUITY FUND - USD Class ^ | K96: 31 | L96: USD/USD44351 | M96: 0.2497
A97: 2021-06-04 | B97: BIPF | C97: Bank Islam Premier Fund | D97: Bank Islam Premier Fund | E97: 0.9951 | F97: MYR | G97: MYR | H97: 1 | I97: 1 | J97: Bank Islam Premier Fund * | K97: 9 | L97: MYR/MYR44351 | M97: 0.9951
A98: 2021-06-04 | B98: BMSEFEUR | C98: BMSEF (EUR) | D98: BIMB-Arabesque Malaysia Shariah-ESG Equity Fund (EUR) | E98: 0.2873 | F98: EUR | G98: MYR | H98: 0.1991 | I98: 1 | J98: BIMB-Arabesque Malaysia Shariah-ESG Equity Fund - EUR CLASS ^ | K98: 17 | L98: MYR/EUR44351 | M98: 0.2873
A99: 2021-06-04 | B99: BMSEFMYR | C99: BMSEF (MYR) | D99: BIMB-Arabesque Malaysia Shariah-ESG Equity Fund (MYR) | E99: 0.3056 | F99: MYR | G99: MYR | H99: 1 | I99: 1 | J99: BIMB-Arabesque Malaysia Shariah-ESG Equity Fund - RM CLASS ^ | K99: 14 | L99: MYR/MYR44351 | M99: 0.3056
A100: 2021-06-04 | B100: BMSEFSGD | C100: BMSEF (SGD) | D100: BIMB-Arabesque Malaysia Shariah-ESG Equity Fund (SGD) | E100: 0.3112 | F100: SGD | G100: MYR | H100: 0.3218 | I100: 1 | J100: BIMB-Arabesque Malaysia Shariah-ESG Equity Fund - SGD CLASS ^ | K100: 16 | L100: MYR/SGD44351 | M100: 0.3112
A101: 2021-06-04 | B101: BMSEFUSD | C101: BMSEF (USD) | D101: BIMB-Arabesque Malaysia Shariah-ESG Equity Fund (USD) | E101: 0.3276 | F101: USD | G101: MYR | H101: 0.2422 | I101: 1 | J101: BIMB-Arabesque Malaysia Shariah-ESG Equity Fund - USD CLASS ^ | K101: 15 | L101: MYR/USD44351 | M101: 0.3276
A102: 2021-06-04 | B102: BOSIF | C102: BIMB One-Year Shariah Income Fund | D102: BIMB One-Year Shariah Income Fund | E102: 1.0057 | F102: MYR | G102: MYR | H102: 1 | I102: 0 | J102: BIMB One-Year Shariah Income Fund | K102: 34 | L102: MYR/MYR44351 | M102: 0
A103: 2021-06-04 | B103: BSF-Class A | C103: BIMB ESG SUKUK FUND-Class A | D103: BIMB ESG SUKUK FUND-Class A | E103: 0.2512 | F103: MYR | G103: MYR | H103: 1 | I103: 1 | J103: BIMB ESG Sukuk Fund - Class A ^ | K103: 20 | L103: MYR/MYR44351 | M103: 0.2512
A104: 2021-06-04 | B104: BSF-Class B | C104: BIMB ESG SUKUK FUND-Class B | D104: BIMB ESG SUKUK FUND-Class B | E104: 0.25 | F104: USD | G104: MYR | H104: 0.2422 | I104: 1 | J104: BIMB ESG Sukuk Fund - Class B ^ | K104: 21 | L104: MYR/USD44351 | M104: 0.25
A105: 2021-06-04 | B105: BSF-Class C | C105: BIMB ESG SUKUK FUND-Class C | D105: BIMB ESG SUKUK FUND-Class C | E105: 0.2416 | F105: SGD | G105: MYR | H105: 0.3218 | I105: 1 | J105: BIMB ESG Sukuk Fund - Class C ^ | K105: 22 | L105: MYR/SGD44351 | M105: 0.2416
A106: 2021-06-04 | B106: BSF-Class D | C106: BIMB ESG SUKUK FUND-Class D | D106: BIMB ESG SUKUK FUND-Class D | E106: 0.2512 | F106: MYR | G106: MYR | H106: 1 | I106: 1 | J106: BIMB ESG Sukuk Fund - Class D ^ | K106: 23 | L106: MYR/MYR44351 | M106: 0.2512
A107: 2021-06-04 | B107: BSF-Class E | C107: BIMB ESG SUKUK FUND-Class E | D107: BIMB ESG SUKUK FUND-Class E | E107: 0.25 | F107: USD | G107: MYR | H107: 0.2422 | I107: 1 | J107: BIMB ESG Sukuk Fund - Class E ^ | K107: 24 | L107: MYR/USD44351 | M107: 0.25
A108: 2021-06-04 | B108: BSIF | C108: BIMB Shariah IncomePlus Fund | D108: CIMB Islamic Trustees Berhad for BIMB Shariah IncomePlus Fund | E108: 0.9989 | F108: MYR | G108: MYR | H108: 1 | I108: 0 | J108: BIMB Shariah IncomePlus Fund | K108: 8 | L108: MYR/MYR44351 | M108: 0
A109: 2021-06-04 | B109: GD1MYR | C109: BIMB-Arabesque i Global Dividend Fund 1 (MYR) | D109: BIMB-Arabesque i Global Dividend Fund 1 (MYR) | E109: 0.4975 | F109: MYR | G109: USD | H109: 4.1275 | I109: 1 | J109: BIMB-ARABESQUE i Global Dividend Fund 1 - RM Class ^ | K109: 10 | L109: USD/MYR44351 | M109: 0.4975
A110: 2021-06-04 | B110: GD1RMH | C110: BIMB-Arabesque i Global Dividend Fund 1 (MYR H) | D110: BIMB-Arabesque i Global Dividend Fund 1 (MYR H) | E110: 0.5016 | F110: MYR | G110: USD | H110: 4.1275 | I110: 1 | J110: BIMB-ARABESQUE i Global Dividend Fund 1 - RM Hedged Class ^ | K110: 13 | L110: USD/MYR44351 | M110: 0.5016
A111: 2021-06-04 | B111: GD1SGD | C111: BIMB-Arabesque i Global Dividend Fund 1 (SGD) | D111: BIMB-Arabesque i Global Dividend Fund 1 (SGD) | E111: 0.4706 | F111: SGD | G111: USD | H111: 1.3237 | I111: 1 | J111: BIMB-ARABESQUE i Global Dividend Fund 1 - SGD Class ^ | K111: 12 | L111: USD/SGD44351 | M111: 0.4706
A112: 2021-06-04 | B112: GD1USD | C112: BIMB-Arabesque i Global Dividend Fund 1 (USD) | D112: BIMB-Arabesque i Global Dividend Fund 1 (USD) | E112: 0.5229 | F112: USD | G112: USD | H112: 1 | I112: 1 | J112: BIMB-ARABESQUE i Global Dividend Fund 1 - USD Class ^ | K112: 11 | L112: USD/USD44351 | M112: 0.5229
A113: 2021-06-04 | B113: IB | C113: BIMB Dana Al-Fakhim | D113: SCBMB Trustee Berhad for BIMB Dana Al-Fakhim | E113: 0.5182 | F113: MYR | G113: MYR | H113: 1 | I113: 0 | J113: BIMB Dana Al-Fakhim | K113: 3 | L113: MYR/MYR44351 | M113: 0
A114: 2021-06-04 | B114: ID | C114: BIMB Dana Al-Falah | D114: SCBMB Trustee Berhad for BIMB Dana Al-Falah | E114: 0.3216 | F114: MYR | G114: MYR | H114: 1 | I114: 0 | J114: BIMB Dana Al-Falah | K114: 5 | L114: MYR/MYR44351 | M114: 0
A115: 2021-06-04 | B115: IF | C115: BIMB I Flexi Fund | D115: BIMB I Flexi Fund | E115: 0.3126 | F115: MYR | G115: MYR | H115: 1 | I115: 0 | J115: BIMB i Flexi Fund | K115: 7 | L115: MYR/MYR44351 | M115: 0
A116: 2021-06-04 | B116: IP | C116: BIMB I Tactical Fund | D116: BIMB I Tactical Fund | E116: 0.1081 | F116: MYR | G116: MYR | H116: 1 | I116: 0 | J116: BIMB i-Tactical Fund (Formerly known as BIMB i Dividend Fund) | K116: 1 | L116: MYR/MYR44351 | M116: 0
A117: 2021-06-04 | B117: IS | C117: BIMB Dana Al-Munsif | D117: SCBMB Trustee Berhad for BIMB Dana Al-Munsif | E117: 0.4087 | F117: MYR | G117: MYR | H117: 1 | I117: 0 | J117: BIMB Dana Al-Munsif | K117: 4 | L117: MYR/MYR44351 | M117: 0
A118: 2021-06-04 | B118: MWFAUD | C118: Makmur myWakaf Fund (AUD) | D118: Makmur myWakaf Fund (AUD) | E118: 0.2474 | F118: AUD | G118: MYR | H118: 0.3161 | I118: 1 | J118: MAKMUR MYWAKAF FUND (AUD) ^ | K118: 25 | L118: MYR/AUD44351 | M118: 0.2474
A119: 2021-06-04 | B119: MWFMYR | C119: Makmur myWakaf Fund (MYR) | D119: Makmur myWakaf Fund (MYR) | E119: 0.2469 | F119: MYR | G119: MYR | H119: 1 | I119: 1 | J119: MAKMUR MYWAKAF FUND (MYR) ^ | K119: 26 | L119: MYR/MYR44351 | M119: 0.2469
A120: 2021-06-04 | B120: MWFUSD | C120: Makmur myWakaf Fund (USD) | D120: Makmur myWakaf Fund (USD) | E120: 0.2473 | F120: USD | G120: MYR | H120: 0.2422 | I120: 1 | J120: MAKMUR MYWAKAF FUND (USD) ^ | K120: 28 | L120: MYR/USD44351 | M120: 0.2473
A121: 2021-06-04 | B121: TP | C121: BIMB I Growth | D121: MTB-BIMB I Growth | E121: 0.535 | F121: MYR | G121: MYR | H121: 1 | I121: 0 | J121: BIMB i Growth (Al-Mubin) | K121: 2 | L121: MYR/MYR44351 | M121: 0

Sheet InTWRR (hidden)
A2: ValueDate | B2: qFundCode | C2: NAV | D2: TWRRPrice
A3: 2020-12-31 | B3: BIPF | C3: 3130361.28 | D3: 1
A4: 2021-05-31 | B4: BIPF | C4: 4195259.79 | D4: 1.0038
A5: 2021-06-03 | B5: BIPF | C5: 4183309.99 | D5: 1.0009
A6: 2021-06-04 | B6: BIPF | C6: 4159090.61 | D6: 1.0009
A7: 2021-06-08 | B7: BIPF | C7: 3686338.21 | D7: 1.0009
A8: 2021-05-31 | B8: BOSIF | C8: 21687013.13 | D8: 1.0048
A9: 2021-06-03 | B9: BOSIF | C9: 21702766.59 | D9: 1.0055
A10: 2021-06-04 | B10: BOSIF | C10: 21708087.41 | D10: 1.0057
A11: 2020-12-31 | B11: BSIF | C11: 140409106.2 | D11: 1.0008
A12: 2021-05-31 | B12: BSIF | C12: 112829782.5 | D12: 1.004412861
A13: 2021-06-03 | B13: BSIF | C13: 112855033.8 | D13: 1.004714607
A14: 2021-06-04 | B14: BSIF | C14: 112855022.3 | D14: 1.004714607
A15: 2020-12-31 | B15: GD1RM | C15: 66705638.23 | D15: 1
A16: 2021-05-31 | B16: GD1RM | C16: 64598036.07 | D16: 1
A17: 2021-06-03 | B17: GD1RM | C17: 64348801.95 | D17: 1
A18: 2021-06-04 | B18: GD1RM | C18: 63932488.48 | D18: 1
A19: 2020-12-31 | B19: IB | C19: 455822252.6 | D19: 1.172596758
A20: 2021-05-31 | B20: IB | C20: 436906926.9 | D20: 1.180314219
A21: 2021-06-03 | B21: IB | C21: 471732711.2 | D21: 1.180542035
A22: 2021-06-04 | B22: IB | C22: 471753117.1 | D22: 1.180542035
A23: 2020-12-31 | B23: ID | C23: 3941303.03 | D23: 0.8201138088
A24: 2021-05-31 | B24: ID | C24: 3252026.66 | D24: 0.7915663358
A25: 2021-06-03 | B25: ID | C25: 3340573.5 | D25: 0.8128517323
A26: 2021-06-04 | B26: ID | C26: 3309008.28 | D26: 0.8053392394
A27: 2020-12-31 | B27: IF | C27: 7222075.58 | D27: 1.588793922
A28: 2021-05-31 | B28: IF | C28: 10444328.24 | D28: 1.661549366
A29: 2021-06-03 | B29: IF | C29: 10948895.16 | D29: 1.704748569
A30: 2021-06-04 | B30: IF | C30: 10841890.89 | D30: 1.688008878
A31: 2020-12-31 | B31: IP | C31: 62612515.86 | D31: 0.5984253485
A32: 2021-05-31 | B32: IP | C32: 63275889.92 | D32: 0.6134437453
A33: 2021-06-03 | B33: IP | C33: 64917925.51 | D33: 0.6296174033
A34: 2021-06-04 | B34: IP | C34: 64366275.13 | D34: 0.6244187275
A35: 2020-12-31 | B35: IS | C35: 7254208.35 | D35: 1.051886422
A36: 2021-05-31 | B36: IS | C36: 7351304.21 | D36: 1.050848291
A37: 2021-06-03 | B37: IS | C37: 7470391.3 | D37: 1.067717922
A38: 2021-06-04 | B38: IS | C38: 7421364.74 | D38: 1.060710537
A39: 2020-12-31 | B39: TP | C39: 37139202.86 | D39: 1.534504792
A40: 2021-05-31 | B40: TP | C40: 40982346.86 | D40: 1.68115016
A41: 2021-06-03 | B41: TP | C41: 42758615.06 | D41: 1.725239617
A42: 2021-06-04 | B42: TP | C42: 42368527.77 | D42: 1.709265176

Sheet InDistMC (hidden)
G1: =(C1-D1-E1)/(C1-E1) ->  | H1: =IF($A1>Tm1Daily,1,0)*$G1 ->  | I1: =IF($A1>Tm1MTD,1,0)*$G1 ->  | J1: =IF($A1>Tm1YTD,1,0)*$G1 -> 
A2: qValDate | B2: qFundCode | C2: NAV | D2: Distribution | E2: Capital | F2: BuyPrice | G2: DistAdj | H2: Tm1Daily | I2: Tm1MTD | J2: Tm1YTD
A3: 2021-03-24 | B3: GD1MYR | C3: 519828307.8 | D3: -35091558.91 | E3: 23128989.54 | F3: 0.4813 | G3: 1.070649501 | H3: 0 | I3: 0 | J3: 1.070649501
A4: 2021-03-24 | B4: GD1RMH | C4: 8686423.3 | D4: -549400.35 | E4: 549400.35 | F4: 0.4888 | G4: 1.067518594 | H4: 0 | I4: 0 | J4: 1.067518594
A5: 2021-03-24 | B5: GD1SGD | C5: 289630.96 | D5: -19298.89 | E5: 19298.89 | F5: 0.4623 | G5: 1.071389569 | H5: 0 | I5: 0 | J5: 1.071389569
A6: 2021-03-24 | B6: GD1USD | C6: 40646892.4 | D6: -2563796.71 | E6: 2521845.85 | F6: 0.5056 | G6: 1.067247045 | H6: 0 | I6: 0 | J6: 1.067247045
A1001: 2020-04-03 | B1001: BSF-Class C | C1001: 1052.2 | D1001: 0 | E1001: 0 | F1001: 0.2528 | G1001: =(C1001-D1001-E1001)/(C1001-E1001) -> 1
A1002: 2020-04-03 | B1002: BSF-Class D | C1002: 198096526.1 | D1002: 0 | E1002: 0 | F1002: 0.2566 | G1002: 1
A1003: 2020-04-03 | B1003: BSF-Class E | C1003: 1005.84 | D1003: 0 | E1003: 0 | F1003: 0.2417 | G1003: 1
A1004: 2020-04-03 | B1004: GD1MYR | C1004: 521942973.5 | D1004: 0 | E1004: -133027.03 | F1004: 0.4318 | G1004: 1
A1005: 2020-04-03 | B1005: GD1RMH | C1005: 136742.27 | D1005: 0 | E1005: 0 | F1005: 0.4171 | G1005: 1
A1006: 2020-04-03 | B1006: GD1SGD | C1006: 217534.46 | D1006: 0 | E1006: 0 | F1006: 0.4207 | G1006: 1
A1007: 2020-04-03 | B1007: GD1USD | C1007: 35934301.71 | D1007: 0 | E1007: 0 | F1007: 0.4293 | G1007: 1
A1008: 2020-04-06 | B1008: BAPACMYR | C1008: 14500386.34 | D1008: 0 | E1008: 1269.57 | F1008: 0.1952 | G1008: 1
A1009: 2020-04-06 | B1009: BAPACUSD | C1009: 38986.13 | D1009: 0 | E1009: 0 | F1009: 0.1764 | G1009: 1
A1010: 2020-04-06 | B1010: BMSEFEUR | C1010: 837.27 | D1010: 0 | E1010: 0 | F1010: 0.2093 | G1010: 1
A1011: 2020-04-06 | B1011: BMSEFMYR | C1011: 4296247.64 | D1011: 0 | E1011: 1215.37 | F1011: 0.2089 | G1011: 1
A1012: 2020-04-06 | B1012: BMSEFSGD | C1012: 851.23 | D1012: 0 | E1012: 0 | F1012: 0.2167 | G1012: 1
A1013: 2020-04-06 | B1013: BMSEFUSD | C1013: 1317.78 | D1013: 0 | E1013: 0 | F1013: 0.2117 | G1013: 1
A1014: 2020-04-06 | B1014: BSF-Class A | C1014: 21260270.87 | D1014: 0 | E1014: 1640 | F1014: 0.2567 | G1014: 1
A1015: 2020-04-06 | B1015: BSF-Class B | C1015: 1004.91 | D1015: 0 | E1015: 0 | F1015: 0.2414 | G1015: 1
A1016: 2020-04-06 | B1016: BSF-Class C | C1016: 1047.17 | D1016: 0 | E1016: 0 | F1016: 0.2516 | G1016: 1
A1017: 2020-04-06 | B1017: BSF-Class D | C1017: 198171544.5 | D1017: 0 | E1017: 0 | F1017: 0.2567 | G1017: 1
A1018: 2020-04-06 | B1018: BSF-Class E | C1018: 1004.91 | D1018: 0 | E1018: 0 | F1018: 0.2414 | G1018: 1
A1019: 2020-04-06 | B1019: GD1MYR | C1019: 521358684.3 | D1019: 0 | E1019: 27307.46 | F1019: 0.4313 | G1019: 1
A1020: 2020-04-06 | B1020: GD1RMH | C1020: 136582.05 | D1020: 0 | E1020: 0 | F1020: 0.4166 | G1020: 1
A1021: 2020-04-06 | B1021: GD1SGD | C1021: 216141.74 | D1021: 0 | E1021: 0 | F1021: 0.418 | G1021: 1
A1022: 2020-04-06 | B1022: GD1USD | C1022: 35813980.66 | D1022: 0 | E1022: 0 | F1022: 0.4278 | G1022: 1
A1023: 2020-04-07 | B1023: BAPACMYR | C1023: 14713848.49 | D1023: 0 | E1023: 562.35 | F1023: 0.1981 | G1023: 1
A1024: 2020-04-07 | B1024: BAPACUSD | C1024: 39745.46 | D1024: 0 | E1024: 0 | F1024: 0.1798 | G1024: 1
A1025: 2020-04-07 | B1025: BMSEFEUR | C1025: 854.07 | D1025: 0 | E1025: 0 | F1025: 0.2135 | G1025: 1
A1026: 2020-04-07 | B1026: BMSEFMYR | C1026: 4398121.7 | D1026: 0 | E1026: 1190.65 | F1026: 0.2138 | G1026: 1
A1027: 2020-04-07 | B1027: BMSEFSGD | C1027: 869.85 | D1027: 0 | E1027: 0 | F1027: 0.2215 | G1027: 1
A1028: 2020-04-07 | B1028: BMSEFUSD | C1028: 1356.87 | D1028: 0 | E1028: 0 | F1028: 0.218 | G1028: =(C1028-D1028-E1028)/(C1028-E1028) -> 1
A1029: 2020-04-07 | B1029: BSF-Class A | C1029: 21268079.04 | D1029: 0 | E1029: 1921.24 | F1029: 0.2567 | G1029: 1
A1030: 2020-04-07 | B1030: BSF-Class B | C1030: 1011.34 | D1030: 0 | E1030: 0 | F1030: 0.243 | G1030: 1
A1031: 2020-04-07 | B1031: BSF-Class C | C1031: 1045.86 | D1031: 0 | E1031: 0 | F1031: 0.2513 | G1031: 1
A1032: 2020-04-07 | B1032: BSF-Class D | C1032: 198245336.5 | D1032: 0 | E1032: 18918.7 | F1032: 0.2568 | G1032: 1
A1033: 2020-04-07 | B1033: BSF-Class E | C1033: 1011.34 | D1033: 0 | E1033: 0 | F1033: 0.243 | G1033: 1
A1034: 2020-04-07 | B1034: GD1MYR | C1034: 525764579 | D1034: 0 | E1034: 232504.3 | F1034: 0.4347 | G1034: 1
A1035: 2020-04-07 | B1035: GD1RMH | C1035: 137675.38 | D1035: 0 | E1035: 0 | F1035: 0.4199 | G1035: 1
A1036: 2020-04-07 | B1036: GD1SGD | C1036: 217509.72 | D1036: 0 | E1036: 0 | F1036: 0.4206 | G1036: 1
A1037: 2020-04-07 | B1037: GD1USD | C1037: 36307210.5 | D1037: 0 | E1037: 35984.95 | F1037: 0.4333 | G1037: 1
A1038: 2020-04-08 | B1038: BAPACMYR | C1038: 14769262.25 | D1038: 0 | E1038: 3443.05 | F1038: 0.1988 | G1038: 1
A1039: 2020-04-08 | B1039: BAPACUSD | C1039: 39844.52 | D1039: 0 | E1039: 0 | F1039: 0.1803 | G1039: 1
A1040: 2020-04-08 | B1040: BMSEFEUR | C1040: 855.49 | D1040: 0 | E1040: 0 | F1040: 0.2139 | G1040: 1
A1041: 2020-04-08 | B1041: BMSEFMYR | C1041: 4402717.73 | D1041: 0 | E1041: 1492.34 | F1041: 0.214 | G1041: 1
A1042: 2020-04-08 | B1042: BMSEFSGD | C1042: 871 | D1042: 0 | E1042: 0 | F1042: 0.2218 | G1042: 1
A1043: 2020-04-08 | B1043: BMSEFUSD | C1043: 1354.9 | D1043: 0 | E1043: 0 | F1043: 0.2177 | G1043: 1
A1044: 2020-04-08 | B1044: BSF-Class A | C1044: 21266510.02 | D1044: 0 | E1044: 917 | F1044: 0.2567 | G1044: 1
A1045: 2020-04-08 | B1045: BSF-Class B | C1045: 1009.03 | D1045: 0 | E1045: 0 | F1045: 0.2424 | G1045: 1
A1046: 2020-04-08 | B1046: BSF-Class C | C1046: 1046.38 | D1046: 0 | E1046: 0 | F1046: 0.2514 | G1046: 1
A1047: 2020-04-08 | B1047: BSF-Class D | C1047: 198222163.9 | D1047: 0 | E1047: 0 | F1047: 0.2567 | G1047: 1
A1048: 2020-04-08 | B1048: BSF-Class E | C1048: 1009.03 | D1048: 0 | E1048: 0 | F1048: 0.2424 | G1048: 1
A1049: 2020-04-08 | B1049: GD1MYR | C1049: 524063991.1 | D1049: 0 | E1049: 249686.09 | F1049: 0.4331 | G1049: 1
A1050: 2020-04-08 | B1050: GD1RMH | C1050: 137265.15 | D1050: 0 | E1050: 100.43 | F1050: 0.4184 | G1050: 1
A1051: 2020-04-08 | B1051: GD1SGD | C1051: 216904.54 | D1051: 0 | E1051: 0 | F1051: 0.4195 | G1051: 1
A1052: 2020-04-08 | B1052: GD1USD | C1052: 36135057.35 | D1052: 0 | E1052: 0 | F1052: 0.4312 | G1052: 1
A1053: 2020-04-09 | B1053: BAPACMYR | C1053: 14820521.73 | D1053: 0 | E1053: 480.01 | F1053: 0.1995 | G1053: 1
A1054: 2020-04-09 | B1054: BAPACUSD | C1054: 40087.64 | D1054: 0 | E1054: 0 | F1054: 0.1814 | G1054: 1
A1055: 2020-04-09 | B1055: BMSEFEUR | C1055: 859.95 | D1055: 0 | E1055: 0 | F1055: 0.215 | G1055: 1
A1056: 2020-04-09 | B1056: BMSEFMYR | C1056: 4440880.94 | D1056: 0 | E1056: 430 | F1056: 0.2158 | G1056: 1
A1057: 2020-04-09 | B1057: BMSEFSGD | C1057: 875.52 | D1057: 0 | E1057: 0 | F1057: 0.2229 | G1057: 1
A1058: 2020-04-09 | B1058: BMSEFUSD | C1058: 1371.27 | D1058: 0 | E1058: 0 | F1058: 0.2203 | G1058: 1
A1059: 2020-04-09 | B1059: BSF-Class A | C1059: 21277780.96 | D1059: 0 | E1059: 305 | F1059: 0.2569 | G1059: 1
A1060: 2020-04-09 | B1060: BSF-Class B | C1060: 1013.06 | D1060: 0 | E1060: 0 | F1060: 0.2434 | G1060: 1
A1061: 2020-04-09 | B1061: BSF-Class C | C1061: 1043.41 | D1061: 0 | E1061: 0 | F1061: 0.2507 | G1061: 1
A1062: 2020-04-09 | B1062: BSF-Class D | C1062: 198324376 | D1062: 0 | E1062: 0 | F1062: 0.2569 | G1062: 1
A1063: 2020-04-09 | B1063: BSF-Class E | C1063: 1013.06 | D1063: 0 | E1063: 0 | F1063: 0.2434 | G1063: 1
A1064: 2020-04-09 | B1064: GD1MYR | C1064: 525462861.6 | D1064: 0 | E1064: 423985.73 | F1064: 0.4339 | G1064: 1
A1065: 2020-04-09 | B1065: GD1RMH | C1065: 137520.51 | D1065: 0 | E1065: 0 | F1065: 0.4191 | G1065: 1
A1066: 2020-04-09 | B1066: GD1SGD | C1066: 216493.72 | D1066: 0 | E1066: 0 | F1066: 0.4187 | G1066: 1
A1067: 2020-04-09 | B1067: GD1USD | C1067: 36298383.56 | D1067: 0 | E1067: 0 | F1067: 0.4332 | G1067: 1
A1068: 2020-04-10 | B1068: BAPACMYR | C1068: 14867587.99 | D1068: 0 | E1068: -12203.32 | F1068: 0.2003 | G1068: 1
A1069: 2020-04-10 | B1069: BAPACUSD | C1069: 40476.88 | D1069: 0 | E1069: 0 | F1069: 0.1831 | G1069: 1
A1070: 2020-04-10 | B1070: BMSEFEUR | C1070: 858.68 | D1070: 0 | E1070: 0 | F1070: 0.2147 | G1070: 1
A1071: 2020-04-10 | B1071: BMSEFMYR | C1071: 4417227.62 | D1071: 0 | E1071: 1737.82 | F1071: 0.2146 | G1071: 1
A1072: 2020-04-10 | B1072: BMSEFSGD | C1072: 872.36 | D1072: 0 | E1072: 0 | F1072: 0.2221 | G1072: 1
A1073: 2020-04-10 | B1073: BMSEFUSD | C1073: 1370.51 | D1073: 0 | E1073: 0 | F1073: 0.2202 | G1073: 1
A1074: 2020-04-10 | B1074: BSF-Class A | C1074: 21273697.34 | D1074: 0 | E1074: 29.99 | F1074: 0.2568 | G1074: 1
A1075: 2020-04-10 | B1075: BSF-Class B | C1075: 1018.14 | D1075: 0 | E1075: 0 | F1075: 0.2446 | G1075: 1
A1076: 2020-04-10 | B1076: BSF-Class C | C1076: 1045.45 | D1076: 0 | E1076: 0 | F1076: 0.2512 | G1076: 1
A1077: 2020-04-10 | B1077: BSF-Class D | C1077: 198286034.2 | D1077: 0 | E1077: 0 | F1077: 0.2568 | G1077: 1
A1078: 2020-04-10 | B1078: BSF-Class E | C1078: 1018.14 | D1078: 0 | E1078: 0 | F1078: 0.2446 | G1078: 1
A1079: 2020-04-10 | B1079: GD1MYR | C1079: 523275211.4 | D1079: 0 | E1079: 668655.07 | F1079: 0.4316 | G1079: 1
A1080: 2020-04-10 | B1080: GD1RMH | C1080: 136772.99 | D1080: 0 | E1080: 0 | F1080: 0.4169 | G1080: 1
A1081: 2020-04-10 | B1081: GD1SGD | C1081: 215792.3 | D1081: 0 | E1081: 0 | F1081: 0.4173 | G1081: 1
A1082: 2020-04-10 | B1082: GD1USD | C1082: 36306409.59 | D1082: 0 | E1082: 0 | F1082: 0.4333 | G1082: 1
A1083: 2020-04-13 | B1083: BAPACMYR | C1083: 14798922.17 | D1083: 0 | E1083: 839.57 | F1083: 0.1993 | G1083: 1
A1084: 2020-04-13 | B1084: BAPACUSD | C1084: 40152.46 | D1084: 0 | E1084: 0 | F1084: 0.1817 | G1084: 1
A1085: 2020-04-13 | B1085: BMSEFEUR | C1085: 853.87 | D1085: 0 | E1085: 0 | F1085: 0.2135 | G1085: 1
A1086: 2020-04-13 | B1086: BMSEFMYR | C1086: 4402680.43 | D1086: 0 | E1086: 1840.33 | F1086: 0.2138 | G1086: 1
A1087: 2020-04-13 | B1087: BMSEFSGD | C1087: 868.33 | D1087: 0 | E1087: 0 | F1087: 0.2211 | G1087: 1
A1088: 2020-04-13 | B1088: BMSEFUSD | C1088: 1359.55 | D1088: 0 | E1088: 0 | F1088: 0.2184 | G1088: 1
A1089: 2020-04-13 | B1089: BSF-Class A | C1089: 21287049.71 | D1089: 0 | E1089: 101.66 | F1089: 0.257 | G1089: 1
A1090: 2020-04-13 | B1090: BSF-Class B | C1090: 1014.38 | D1090: 0 | E1090: 0 | F1090: 0.2437 | G1090: 1
A1091: 2020-04-13 | B1091: BSF-Class C | C1091: 1045.14 | D1091: 0 | E1091: 0 | F1091: 0.2511 | G1091: 1
A1092: 2020-04-13 | B1092: BSF-Class D | C1092: 198409540.2 | D1092: 0 | E1092: 0 | F1092: 0.257 | G1092: =(C1092-D1092-E1092)/(C1092-E1092) -> 1
A1093: 2020-04-13 | B1093: BSF-Class E | C1093: 1014.38 | D1093: 0 | E1093: 0 | F1093: 0.2437 | G1093: 1
A1094: 2020-04-13 | B1094: GD1MYR | C1094: 524628165 | D1094: 0 | E1094: -265643.71 | F1094: 0.4329 | G1094: 1
A1095: 2020-04-13 | B1095: GD1RMH | C1095: 137196.04 | D1095: 0 | E1095: 0 | F1095: 0.4182 | G1095: 1
A1096: 2020-04-13 | B1096: GD1SGD | C1096: 216268.62 | D1096: 0 | E1096: 0 | F1096: 0.4182 | G1096: 1
A1097: 2020-04-13 | B1097: GD1USD | C1097: 36296529.63 | D1097: 0 | E1097: 0 | F1097: 0.4332 | G1097: 1
A1098: 2020-04-14 | B1098: BAPACMYR | C1098: 15184714.94 | D1098: 0 | E1098: 1207.39 | F1098: 0.2045 | G1098: 1
A1099: 2020-04-14 | B1099: BAPACUSD | C1099: 41105.59 | D1099: 0 | E1099: 0 | F1099: 0.186 | G1099: 1
A1100: 2020-04-14 | B1100: BMSEFEUR | C1100: 863.25 | D1100: 0 | E1100: 0 | F1100: 0.2158 | G1100: 1
A1101: 2020-04-14 | B1101: BMSEFMYR | C1101: 4455276.24 | D1101: 0 | E1101: -27446.54 | F1101: 0.2177 | G1101: 1
A1102: 2020-04-14 | B1102: BMSEFSGD | C1102: 881.67 | D1102: 0 | E1102: 0 | F1102: 0.2245 | G1102: 1
A1103: 2020-04-14 | B1103: BMSEFUSD | C1103: 1383.06 | D1103: 0 | E1103: 0 | F1103: 0.2222 | G1103: 1
A1104: 2020-04-14 | B1104: BSF-Class A | C1104: 21299925.44 | D1104: 0 | E1104: 3076.59 | F1104: 0.2571 | G1104: 1
A1105: 2020-04-14 | B1105: BSF-Class B | C1105: 1013.97 | D1105: 0 | E1105: 0 | F1105: 0.2436 | G1105: 1
A1106: 2020-04-14 | B1106: BSF-Class C | C1106: 1042.74 | D1106: 0 | E1106: 0 | F1106: 0.2505 | G1106: 1
A1107: 2020-04-14 | B1107: BSF-Class D | C1107: 198500875.7 | D1107: 0 | E1107: 0 | F1107: 0.2571 | G1107: 1
A1108: 2020-04-14 | B1108: BSF-Class E | C1108: 1013.97 | D1108: 0 | E1108: 0 | F1108: 0.2436 | G1108: 1
A1109: 2020-04-14 | B1109: GD1MYR | C1109: 529519608.5 | D1109: 0 | E1109: 49471.53 | F1109: 0.4369 | G1109: 1
A1110: 2020-04-14 | B1110: GD1RMH | C1110: 138462.3 | D1110: 0 | E1110: 0 | F1110: 0.422 | G1110: 1
A1111: 2020-04-14 | B1111: GD1SGD | C1111: 217601.21 | D1111: 0 | E1111: 0 | F1111: 0.4208 | G1111: 1
A1112: 2020-04-14 | B1112: GD1USD | C1112: 36550556.35 | D1112: 0 | E1112: -624.96 | F1112: 0.4362 | G1112: 1
A1113: 2020-04-15 | B1113: BAPACMYR | C1113: 15118409.87 | D1113: 0 | E1113: 1622.09 | F1113: 0.2036 | G1113: 1
A1114: 2020-04-15 | B1114: BAPACUSD | C1114: 40860.39 | D1114: 0 | E1114: 0 | F1114: 0.1849 | G1114: 1
A1115: 2020-04-15 | B1115: BMSEFEUR | C1115: 869.96 | D1115: 0 | E1115: 0 | F1115: 0.2175 | G1115: 1
A1116: 2020-04-15 | B1116: BMSEFMYR | C1116: 4471259.47 | D1116: 0 | E1116: 2583.24 | F1116: 0.2183 | G1116: 1
A1117: 2020-04-15 | B1117: BMSEFSGD | C1117: 889.24 | D1117: 0 | E1117: 0 | F1117: 0.2264 | G1117: 1
A1118: 2020-04-15 | B1118: BMSEFUSD | C1118: 1384.83 | D1118: 0 | E1118: 0 | F1118: 0.2225 | G1118: 1
A1119: 2020-04-15 | B1119: BSF-Class A | C1119: 21351851.54 | D1119: 0 | E1119: 2322.94 | F1119: 0.2577 | G1119: 1
A1120: 2020-04-15 | B1120: BSF-Class B | C1120: 1014.57 | D1120: 0 | E1120: 0 | F1120: 0.2438 | G1120: 1
A1121: 2020-04-15 | B1121: BSF-Class C | C1121: 1050.94 | D1121: 0 | E1121: 0 | F1121: 0.2525 | G1121: 1
A1122: 2020-04-15 | B1122: BSF-Class D | C1122: 198963144.3 | D1122: 0 | E1122: 0 | F1122: 0.2577 | G1122: 1
A1123: 2020-04-15 | B1123: BSF-Class E | C1123: 1014.57 | D1123: 0 | E1123: 0 | F1123: 0.2438 | G1123: 1
A1124: 2020-04-15 | B1124: GD1MYR | C1124: 535966579.6 | D1124: 0 | E1124: 58309.35 | F1124: 0.4422 | G1124: 1
A1125: 2020-04-15 | B1125: GD1RMH | C1125: 140132.84 | D1125: 0 | E1125: 0 | F1125: 0.4271 | G1125: 1
A1126: 2020-04-15 | B1126: GD1SGD | C1126: 221405.59 | D1126: 0 | E1126: 0 | F1126: 0.4282 | G1126: 1
A1127: 2020-04-15 | B1127: GD1USD | C1127: 36936111.94 | D1127: 0 | E1127: 0 | F1127: 0.4408 | G1127: 1
A1128: 2020-04-16 | B1128: BAPACMYR | C1128: 15088450.88 | D1128: 0 | E1128: 4851.24 | F1128: 0.2031 | G1128: 1
A1129: 2020-04-16 | B1129: BAPACUSD | C1129: 40412.3 | D1129: 0 | E1129: 0 | F1129: 0.1828 | G1129: 1
A1130: 2020-04-16 | B1130: BMSEFEUR | C1130: 877.01 | D1130: 0 | E1130: 0 | F1130: 0.2193 | G1130: 1
A1131: 2020-04-16 | B1131: BMSEFMYR | C1131: 4520897.88 | D1131: 0 | E1131: 6899.86 | F1131: 0.2204 | G1131: 1
A1132: 2020-04-16 | B1132: BMSEFSGD | C1132: 892.78 | D1132: 0 | E1132: 0 | F1132: 0.2273 | G1132: 1
A1133: 2020-04-16 | B1133: BMSEFUSD | C1133: 1387.12 | D1133: 0 | E1133: 0 | F1133: 0.2228 | G1133: 1
A1134: 2020-04-16 | B1134: BSF-Class A | C1134: 21497394.83 | D1134: 0 | E1134: 55394.62 | F1134: 0.2588 | G1134: 1
A1135: 2020-04-16 | B1135: BSF-Class B | C1135: 1010.89 | D1135: 0 | E1135: 0 | F1135: 0.2429 | G1135: 1
A1136: 2020-04-16 | B1136: BSF-Class C | C1136: 1049.58 | D1136: 0 | E1136: 0 | F1136: 0.2522 | G1136: 1
A1137: 2020-04-16 | B1137: BSF-Class D | C1137: 199803194.9 | D1137: 0 | E1137: 0 | F1137: 0.2588 | G1137: 1
A1138: 2020-04-16 | B1138: BSF-Class E | C1138: 1010.89 | D1138: 0 | E1138: 0 | F1138: 0.2429 | G1138: 1
A1139: 2020-04-16 | B1139: GD1MYR | C1139: 539106983.8 | D1139: 0 | E1139: 72992.27 | F1139: 0.4447 | G1139: 1
A1140: 2020-04-16 | B1140: GD1RMH | C1140: 140934.86 | D1140: 0 | E1140: 0 | F1140: 0.4295 | G1140: 1
A1141: 2020-04-16 | B1141: GD1SGD | C1141: 221343.98 | D1141: 0 | E1141: 0 | F1141: 0.4281 | G1141: 1
A1142: 2020-04-16 | B1142: GD1USD | C1142: 36824923.88 | D1142: 0 | E1142: 0 | F1142: 0.4395 | G1142: 1
A1143: 2020-04-17 | B1143: BAPACMYR | C1143: 15039315.36 | D1143: 0 | E1143: -237995.43 | F1143: 0.2057 | G1143: 1
A1144: 2020-04-17 | B1144: BAPACUSD | C1144: 40992.94 | D1144: 0 | E1144: 0 | F1144: 0.1855 | G1144: 1
A1145: 2020-04-17 | B1145: BMSEFEUR | C1145: 889.84 | D1145: 0 | E1145: 0 | F1145: 0.2225 | G1145: 1
A1146: 2020-04-17 | B1146: BMSEFMYR | C1146: 4596756.27 | D1146: 0 | E1146: -1053.98 | F1146: 0.2242 | G1146: 1
A1147: 2020-04-17 | B1147: BMSEFSGD | C1147: 905.18 | D1147: 0 | E1147: 0 | F1147: 0.2305 | G1147: 1
A1148: 2020-04-17 | B1148: BMSEFUSD | C1148: 1411.97 | D1148: 0 | E1148: 0 | F1148: 0.2268 | G1148: 1
A1149: 2020-04-17 | B1149: BSF-Class A | C1149: 21567121.55 | D1149: 0 | E1149: -2649.53 | F1149: 0.2596 | G1149: 1
A1150: 2020-04-17 | B1150: BSF-Class B | C1150: 1015.18 | D1150: 0 | E1150: 0 | F1150: 0.2439 | G1150: 1
A1151: 2020-04-17 | B1151: BSF-Class C | C1151: 1049.88 | D1151: 0 | E1151: 0 | F1151: 0.2522 | G1151: 1
A1152: 2020-04-17 | B1152: BSF-Class D | C1152: 200475880.6 | D1152: 0 | E1152: 0 | F1152: 0.2597 | G1152: 1
A1153: 2020-04-17 | B1153: BSF-Class E | C1153: 1015.18 | D1153: 0 | E1153: 0 | F1153: 0.2439 | G1153: 1
A1154: 2020-04-17 | B1154: GD1MYR | C1154: 541865559.6 | D1154: 0 | E1154: 178517.88 | F1154: 0.4468 | G1154: 1
A1155: 2020-04-17 | B1155: GD1RMH | C1155: 141609.35 | D1155: 0 | E1155: 0 | F1155: 0.4316 | G1155: 1
A1156: 2020-04-17 | B1156: GD1SGD | C1156: 221905.07 | D1156: 0 | E1156: 0 | F1156: 0.4291 | G1156: =(C1156-D1156-E1156)/(C1156-E1156) -> 1
A1157: 2020-04-17 | B1157: GD1USD | C1157: 37068928.89 | D1157: 0 | E1157: 0 | F1157: 0.4424 | G1157: 1
A1158: 2020-04-20 | B1158: BAPACMYR | C1158: 14964337.53 | D1158: 0 | E1158: 3392.15 | F1158: 0.2046 | G1158: 1
A1159: 2020-04-20 | B1159: BAPACUSD | C1159: 40769.99 | D1159: 0 | E1159: 0 | F1159: 0.1845 | G1159: 1
A1160: 2020-04-20 | B1160: BMSEFEUR | C1160: 892.32 | D1160: 0 | E1160: 0 | F1160: 0.2231 | G1160: 1
A1161: 2020-04-20 | B1161: BMSEFMYR | C1161: 4610708.9 | D1161: 0 | E1161: 3358.94 | F1161: 0.2247 | G1161: 1
A1162: 2020-04-20 | B1162: BMSEFSGD | C1162: 906.15 | D1162: 0 | E1162: 0 | F1162: 0.2307 | G1162: 1
A1163: 2020-04-20 | B1163: BMSEFUSD | C1163: 1413.98 | D1163: 0 | E1163: 0 | F1163: 0.2272 | G1163: 1
A1164: 2020-04-20 | B1164: BSF-Class A | C1164: 21578619.87 | D1164: 0 | E1164: -22112.82 | F1164: 0.26 | G1164: 1
A1165: 2020-04-20 | B1165: BSF-Class B | C1165: 1015.87 | D1165: 0 | E1165: 0 | F1165: 0.2441 | G1165: 1
A1166: 2020-04-20 | B1166: BSF-Class C | C1166: 1050.23 | D1166: 0 | E1166: 0 | F1166: 0.2523 | G1166: 1
A1167: 2020-04-20 | B1167: BSF-Class D | C1167: 200788304 | D1167: 0 | E1167: 0 | F1167: 0.2601 | G1167: 1
A1168: 2020-04-20 | B1168: BSF-Class E | C1168: 1015.87 | D1168: 0 | E1168: 0 | F1168: 0.2441 | G1168: 1
A1169: 2020-04-20 | B1169: GD1MYR | C1169: 543119201.6 | D1169: 0 | E1169: 311610.37 | F1169: 0.4476 | G1169: 1
A1170: 2020-04-20 | B1170: GD1RMH | C1170: 141855.51 | D1170: 0 | E1170: 0 | F1170: 0.4324 | G1170: 1
A1171: 2020-04-20 | B1171: GD1SGD | C1171: 222114.88 | D1171: 0 | E1171: 0 | F1171: 0.4296 | G1171: 1
A1172: 2020-04-20 | B1172: GD1USD | C1172: 37124874.91 | D1172: 0 | E1172: 0 | F1172: 0.4431 | G1172: 1
A1173: 2020-04-21 | B1173: BAPACMYR | C1173: 14852510.55 | D1173: 0 | E1173: 1362.98 | F1173: 0.203 | G1173: 1
A1174: 2020-04-21 | B1174: BAPACUSD | C1174: 40245.15 | D1174: 0 | E1174: 0 | F1174: 0.1821 | G1174: 1
A1175: 2020-04-21 | B1175: BMSEFEUR | C1175: 870.09 | D1175: 0 | E1175: 0 | F1175: 0.2175 | G1175: 1
A1176: 2020-04-21 | B1176: BMSEFMYR | C1176: 4518866.76 | D1176: 0 | E1176: 3638.75 | F1176: 0.22 | G1176: 1
A1177: 2020-04-21 | B1177: BMSEFSGD | C1177: 889.87 | D1177: 0 | E1177: 0 | F1177: 0.2266 | G1177: 1
A1178: 2020-04-21 | B1178: BMSEFUSD | C1178: 1378.03 | D1178: 0 | E1178: 0 | F1178: 0.2214 | G1178: 1
A1179: 2020-04-21 | B1179: BSF-Class A | C1179: 21615602.29 | D1179: 0 | E1179: 3795.05 | F1179: 0.2604 | G1179: 1
A1180: 2020-04-21 | B1180: BSF-Class B | C1180: 1012.54 | D1180: 0 | E1180: 0 | F1180: 0.2433 | G1180: 1
A1181: 2020-04-21 | B1181: BSF-Class C | C1181: 1054.76 | D1181: 0 | E1181: 0 | F1181: 0.2534 | G1181: 1
A1182: 2020-04-21 | B1182: BSF-Class D | C1182: 201097112.4 | D1182: 0 | E1182: 0 | F1182: 0.2605 | G1182: 1
A1183: 2020-04-21 | B1183: BSF-Class E | C1183: 1012.54 | D1183: 0 | E1183: 0 | F1183: 0.2433 | G1183: 1
A1184: 2020-04-21 | B1184: GD1MYR | C1184: 545812960.1 | D1184: 0 | E1184: -72734.3 | F1184: 0.4499 | G1184: 1
A1185: 2020-04-21 | B1185: GD1RMH | C1185: 142578.06 | D1185: 0 | E1185: 0 | F1185: 0.4346 | G1185: 1
A1186: 2020-04-21 | B1186: GD1SGD | C1186: 223708.87 | D1186: 0 | E1186: 0 | F1186: 0.4326 | G1186: 1
A1187: 2020-04-21 | B1187: GD1USD | C1187: 37114347.24 | D1187: 0 | E1187: 0 | F1187: 0.4429 | G1187: 1
A1188: 2020-04-22 | B1188: BAPACMYR | C1188: 14750029.13 | D1188: 0 | E1188: 101.46 | F1188: 0.2016 | G1188: 1
A1189: 2020-04-22 | B1189: BAPACUSD | C1189: 40228.19 | D1189: 0 | E1189: 0 | F1189: 0.182 | G1189: 1
A1190: 2020-04-22 | B1190: BMSEFEUR | C1190: 885.01 | D1190: 0 | E1190: 0 | F1190: 0.2213 | G1190: 1
A1191: 2020-04-22 | B1191: BMSEFMYR | C1191: 4549743.94 | D1191: 0 | E1191: 1188.65 | F1191: 0.2215 | G1191: 1
A1192: 2020-04-22 | B1192: BMSEFSGD | C1192: 899.01 | D1192: 0 | E1192: 0 | F1192: 0.2289 | G1192: 1
A1193: 2020-04-22 | B1193: BMSEFUSD | C1193: 1397.46 | D1193: 0 | E1193: 0 | F1193: 0.2245 | G1193: 1
A1194: 2020-04-22 | B1194: BSF-Class A | C1194: 21637054.77 | D1194: 0 | E1194: 1955.31 | F1194: 0.2607 | G1194: 1
... 338 more rows

Sheet InTFPrice (hidden)
A2: PriceDate | B2: qStockCode | C2: Price
A3: 2020-12-31 | B3: LU1245544975 | C3: 102.98
A4: 2021-05-31 | B4: LU1245544975 | C4: 97.25
A5: 2021-05-31 | B5: LU2075210943 | C5: 99.45
A6: 2021-06-03 | B6: LU1245544975 | C6: 96.82
A7: 2021-06-03 | B7: LU2075210943 | C7: 99.17
A8: 2021-06-04 | B8: LU1245544975 | C8: 96.09
A9: 2021-06-04 | B9: LU2075210943 | C9: 98.52

Sheet InIndex (hidden)
A2: ValueDate | B2: qIndexBenchmark | C2: Indices

Sheet FooterNote (hidden)
B1: Bloomberg Footer Note | D1: Memo Footer Note | F1: =COUNTA(MemoFN) -> 2
B2: ^ NAV of 1 preceding business days | D2: ^ NAV of 1 preceding business days
B3: - BIPF become foreign fund on 06.01.2021 | D3: * Bank Islam Premier Fund Launched on 17 November 2020
B4: * BIMB One-Year Shariah Income Fund launched on 28.04.2021
B18: ** BIMB I Dividend Fund ex date was on 31.10.2018. Distribution rate of 1.54 sen per unit. (Final income distribution)
B19: ** BIMB Dana Al Fakhim ex date was on 30.11.2018. Distribution rate of 0.13 sen per unit. (Monthly income distribution)
B20: *** BIMB I Cash Management Fund 3 ex date was on 30.11.2018. Distribution rate of 0.23 sen per unit. (Monthly income distribution)
B21: *** BIMB Dana Al Munsif ex date was on 30.8.2016. Distribution rate of 1.34 sen per unit.

Sheet Daily Perf.
B1: =CompanyName -> BIMB INVESTMENT MANAGEMENT BERHAD
B2: PRICING SHEET
B4: Valuation Date : | C4: =ValueDate -> 2021-06-08
I5: TWRR | M5: NAV Price
B6: FUND | C6: NAV | E6: Daily | F6: MTD | G6: YTD | I6: Daily | J6: MTD | K6: YTD | M6: Daily | N6: MTD | O6: YTD
A7: FundCode | C7: =C4 -> 2021-06-08 | E7: % | F7: % | G7: % | I7: =TDaily -> 2021-06-04 | J7: =TMTD -> 2021-05-31 | K7: =TYTD -> 2020-12-31 | M7: =TDaily -> 2021-06-04 | N7: =TMTD -> 2021-05-31 | O7: =TYTD -> 2020-12-31
A8: IP | B8: BIMB i-Tactical Fund (Formerly known as BIMB i Dividend Fund | C8: =IF(RIGHT(B8,1)="^",SUMIFS(InPricePM!$E:$E,InPricePM!$B:$B,$A8,InPricePM!$A:$A,ValueDateTm1),SUMIFS(InPricePM!$E:$E,InPricePM!$B:$B,$A8,InPricePM!$A:$A,ValueDate)) -> 0 | E8: =IF(I8=0,$C8/M8-1,I8) -> -1 | F8: =IF(J8=0,$C8/N8-1,J8) -> -1 | G8: =IF(K8=0,$C8/O8-1,K8) -> -1 | I8: =IF(RIGHT($B8,1)="^",OFFSET('Foreign Daily Perf.'!E$1,MATCH($A8,'Foreign Daily Perf.'!$A:$A,0)-1,0),IF(SUMIFS(InTWRR!$D:$D,InTWRR!$B:$B,$A8,InTWRR!$A:$A,I$7)=0,0,SUMIFS(InTWRR!$D:$D,InTWRR!$B:$B,$A8,InTWRR!$A:$A,$C$7)/SUMIFS(InTWRR!$D:$D,InTWRR!$B:$B,$A8,InTWRR!$A:$A,I$7)-1)) -> -1 | J8: =IF(RIGHT($B8,1)="^",OFFSET('Foreign Daily Perf.'!F$1,MATCH($A8,'Foreign Daily Perf.'!$A:$A,0)-1,0),IF(SUMIFS(InTWRR!$D:$D,InTWRR!$B:$B,$A8,InTWRR!$A:$A,J$7)=0,0,SUMIFS(InTWRR!$D:$D,InTWRR!$B:$B,$A8,InTWRR!$A:$A,$C$7)/SUMIFS(InTWRR!$D:$D,InTWRR!$B:$B,$A8,InTWRR!$A:$A,J$7)-1)) -> -1 | K8: =IF(RIGHT($B8,1)="^",OFFSET('Foreign Daily Perf.'!G$1,MATCH($A8,'Foreign Daily Perf.'!$A:$A,0)-1,0),IF(SUMIFS(InTWRR!$D:$D,InTWRR!$B:$B,$A8,InTWRR!$A:$A,K$7)=0,0,SUMIFS(InTWRR!$D:$D,InTWRR!$B:$B,$A8,InTWRR!$A:$A,$C$7)/SUMIFS(InTWRR!$D:$D,InTWRR!$B:$B,$A8,InTWRR!$A:$A,K$7)-1)) -> -1 | M8: =SUMIFS(InPricePM!$E:$E,InPricePM!$B:$B,$A8,InPricePM!$A:$A,M$7) -> 0.1081 | N8: =SUMIFS(InPricePM!$E:$E,InPricePM!$B:$B,$A8,InPricePM!$A:$A,N$7) -> 0.1062 | O8: =SUMIFS(InPricePM!$E:$E,InPricePM!$B:$B,$A8,InPricePM!$A:$A,O$7) -> 0.1036
A9: TP | B9: BIMB i Growth (Al-Mubin) | C9: =IF(RIGHT(B9,1)="^",SUMIFS(InPricePM!$E:$E,InPricePM!$B:$B,$A9,InPricePM!$A:$A,ValueDateTm1),SUMIFS(InPricePM!$E:$E,InPricePM!$B:$B,$A9,InPricePM!$A:$A,ValueDate)) -> 0 | E9: =IF(I9=0,$C9/M9-1,I9) -> -1 | F9: =IF(J9=0,$C9/N9-1,J9) -> -1 | G9: =IF(K9=0,$C9/O9-1,K9) -> -1 | I9: =IF(RIGHT($B9,1)="^",OFFSET('Foreign Daily Perf.'!E$1,MATCH($A9,'Foreign Daily Perf.'!$A:$A,0)-1,0),IF(SUMIFS(InTWRR!$D:$D,InTWRR!$B:$B,$A9,InTWRR!$A:$A,I$7)=0,0,SUMIFS(InTWRR!$D:$D,InTWRR!$B:$B,$A9,InTWRR!$A:$A,$C$7)/SUMIFS(InTWRR!$D:$D,InTWRR!$B:$B,$A9,InTWRR!$A:$A,I$7)-1)) -> -1 | J9: =IF(RIGHT($B9,1)="^",OFFSET('Foreign Daily Perf.'!F$1,MATCH($A9,'Foreign Daily Perf.'!$A:$A,0)-1,0),IF(SUMIFS(InTWRR!$D:$D,InTWRR!$B:$B,$A9,InTWRR!$A:$A,J$7)=0,0,SUMIFS(InTWRR!$D:$D,InTWRR!$B:$B,$A9,InTWRR!$A:$A,$C$7)/SUMIFS(InTWRR!$D:$D,InTWRR!$B:$B,$A9,InTWRR!$A:$A,J$7)-1)) -> -1 | K9: =IF(RIGHT($B9,1)="^",OFFSET('Foreign Daily Perf.'!G$1,MATCH($A9,'Foreign Daily Perf.'!$A:$A,0)-1,0),IF(SUMIFS(InTWRR!$D:$D,InTWRR!$B:$B,$A9,InTWRR!$A:$A,K$7)=0,0,SUMIFS(InTWRR!$D:$D,InTWRR!$B:$B,$A9,InTWRR!$A:$A,$C$7)/SUMIFS(InTWRR!$D:$D,InTWRR!$B:$B,$A9,InTWRR!$A:$A,K$7)-1)) -> -1 | M9: =SUMIFS(InPricePM!$E:$E,InPricePM!$B:$B,$A9,InPricePM!$A:$A,M$7) -> 0.535 | N9: =SUMIFS(InPricePM!$E:$E,InPricePM!$B:$B,$A9,InPricePM!$A:$A,N$7) -> 0.5262 | O9: =SUMIFS(InPricePM!$E:$E,InPricePM!$B:$B,$A9,InPricePM!$A:$A,O$7) -> 0.4803
A10: IB | B10: BIMB Dana Al-Fakhim | C10: =IF(RIGHT(B10,1)="^",SUMIFS(InPricePM!$E:$E,InPricePM!$B:$B,$A10,InPricePM!$A:$A,ValueDateTm1),SUMIFS(InPricePM!$E:$E,InPricePM!$B:$B,$A10,InPricePM!$A:$A,ValueDate)) -> 0 | E10: -1 | F10: =IF(J10=0,$C10/N10-1,J10) -> -1 | G10: =IF(K10=0,$C10/O10-1,K10) -> -1 | I10: =IF(RIGHT($B10,1)="^",OFFSET('Foreign Daily Perf.'!E$1,MATCH($A10,'Foreign Daily Perf.'!$A:$A,0)-1,0),IF(SUMIFS(InTWRR!$D:$D,InTWRR!$B:$B,$A10,InTWRR!$A:$A,I$7)=0,0,SUMIFS(InTWRR!$D:$D,InTWRR!$B:$B,$A10,InTWRR!$A:$A,$C$7)/SUMIFS(InTWRR!$D:$D,InTWRR!$B:$B,$A10,InTWRR!$A:$A,I$7)-1)) -> -1 | J10: =IF(RIGHT($B10,1)="^",OFFSET('Foreign Daily Perf.'!F$1,MATCH($A10,'Foreign Daily Perf.'!$A:$A,0)-1,0),IF(SUMIFS(InTWRR!$D:$D,InTWRR!$B:$B,$A10,InTWRR!$A:$A,J$7)=0,0,SUMIFS(InTWRR!$D:$D,InTWRR!$B:$B,$A10,InTWRR!$A:$A,$C$7)/SUMIFS(InTWRR!$D:$D,InTWRR!$B:$B,$A10,InTWRR!$A:$A,J$7)-1)) -> -1 | K10: =IF(RIGHT($B10,1)="^",OFFSET('Foreign Daily Perf.'!G$1,MATCH($A10,'Foreign Daily Perf.'!$A:$A,0)-1,0),IF(SUMIFS(InTWRR!$D:$D,InTWRR!$B:$B,$A10,InTWRR!$A:$A,K$7)=0,0,SUMIFS(InTWRR!$D:$D,InTWRR!$B:$B,$A10,InTWRR!$A:$A,$C$7)/SUMIFS(InTWRR!$D:$D,InTWRR!$B:$B,$A10,InTWRR!$A:$A,K$7)-1)) -> -1 | M10: =SUMIFS(InPricePM!$E:$E,InPricePM!$B:$B,$A10,InPricePM!$A:$A,M$7) -> 0.5182 | N10: =SUMIFS(InPricePM!$E:$E,InPricePM!$B:$B,$A10,InPricePM!$A:$A,N$7) -> 0.5181 | O10: =SUMIFS(InPricePM!$E:$E,InPricePM!$B:$B,$A10,InPricePM!$A:$A,O$7) -> 0.518
A11: IS | B11: BIMB Dana Al-Munsif | C11: =IF(RIGHT(B11,1)="^",SUMIFS(InPricePM!$E:$E,InPricePM!$B:$B,$A11,InPricePM!$A:$A,ValueDateTm1),SUMIFS(InPricePM!$E:$E,InPricePM!$B:$B,$A11,InPricePM!$A:$A,ValueDate)) -> 0 | E11: -1 | F11: -1 | G11: -1 | I11: =IF(RIGHT($B11,1)="^",OFFSET('Foreign Daily Perf.'!E$1,MATCH($A11,'Foreign Daily Perf.'!$A:$A,0)-1,0),IF(SUMIFS(InTWRR!$D:$D,InTWRR!$B:$B,$A11,InTWRR!$A:$A,I$7)=0,0,SUMIFS(InTWRR!$D:$D,InTWRR!$B:$B,$A11,InTWRR!$A:$A,$C$7)/SUMIFS(InTWRR!$D:$D,InTWRR!$B:$B,$A11,InTWRR!$A:$A,I$7)-1)) -> -1 | J11: =IF(RIGHT($B11,1)="^",OFFSET('Foreign Daily Perf.'!F$1,MATCH($A11,'Foreign Daily Perf.'!$A:$A,0)-1,0),IF(SUMIFS(InTWRR!$D:$D,InTWRR!$B:$B,$A11,InTWRR!$A:$A,J$7)=0,0,SUMIFS(InTWRR!$D:$D,InTWRR!$B:$B,$A11,InTWRR!$A:$A,$C$7)/SUMIFS(InTWRR!$D:$D,InTWRR!$B:$B,$A11,InTWRR!$A:$A,J$7)-1)) -> -1 | K11: =IF(RIGHT($B11,1)="^",OFFSET('Foreign Daily Perf.'!G$1,MATCH($A11,'Foreign Daily Perf.'!$A:$A,0)-1,0),IF(SUMIFS(InTWRR!$D:$D,InTWRR!$B:$B,$A11,InTWRR!$A:$A,K$7)=0,0,SUMIFS(InTWRR!$D:$D,InTWRR!$B:$B,$A11,InTWRR!$A:$A,$C$7)/SUMIFS(InTWRR!$D:$D,InTWRR!$B:$B,$A11,InTWRR!$A:$A,K$7)-1)) -> -1 | M11: =SUMIFS(InPricePM!$E:$E,InPricePM!$B:$B,$A11,InPricePM!$A:$A,M$7) -> 0.4087 | N11: =SUMIFS(InPricePM!$E:$E,InPricePM!$B:$B,$A11,InPricePM!$A:$A,N$7) -> 0.4049 | O11: =SUMIFS(InPricePM!$E:$E,InPricePM!$B:$B,$A11,InPricePM!$A:$A,O$7) -> 0.4053
A12: ID | B12: BIMB Dana Al-Falah | C12: =IF(RIGHT(B12,1)="^",SUMIFS(InPricePM!$E:$E,InPricePM!$B:$B,$A12,InPricePM!$A:$A,ValueDateTm1),SUMIFS(InPricePM!$E:$E,InPricePM!$B:$B,$A12,InPricePM!$A:$A,ValueDate)) -> 0 | E12: -1 | F12: -1 | G12: -1 | I12: =IF(RIGHT($B12,1)="^",OFFSET('Foreign Daily Perf.'!E$1,MATCH($A12,'Foreign Daily Perf.'!$A:$A,0)-1,0),IF(SUMIFS(InTWRR!$D:$D,InTWRR!$B:$B,$A12,InTWRR!$A:$A,I$7)=0,0,SUMIFS(InTWRR!$D:$D,InTWRR!$B:$B,$A12,InTWRR!$A:$A,$C$7)/SUMIFS(InTWRR!$D:$D,InTWRR!$B:$B,$A12,InTWRR!$A:$A,I$7)-1)) -> -1 | J12: =IF(RIGHT($B12,1)="^",OFFSET('Foreign Daily Perf.'!F$1,MATCH($A12,'Foreign Daily Perf.'!$A:$A,0)-1,0),IF(SUMIFS(InTWRR!$D:$D,InTWRR!$B:$B,$A12,InTWRR!$A:$A,J$7)=0,0,SUMIFS(InTWRR!$D:$D,InTWRR!$B:$B,$A12,InTWRR!$A:$A,$C$7)/SUMIFS(InTWRR!$D:$D,InTWRR!$B:$B,$A12,InTWRR!$A:$A,J$7)-1)) -> -1 | K12: =IF(RIGHT($B12,1)="^",OFFSET('Foreign Daily Perf.'!G$1,MATCH($A12,'Foreign Daily Perf.'!$A:$A,0)-1,0),IF(SUMIFS(InTWRR!$D:$D,InTWRR!$B:$B,$A12,InTWRR!$A:$A,K$7)=0,0,SUMIFS(InTWRR!$D:$D,InTWRR!$B:$B,$A12,InTWRR!$A:$A,$C$7)/SUMIFS(InTWRR!$D:$D,InTWRR!$B:$B,$A12,InTWRR!$A:$A,K$7)-1)) -> -1 | M12: =SUMIFS(InPricePM!$E:$E,InPricePM!$B:$B,$A12,InPricePM!$A:$A,M$7) -> 0.3216 | N12: =SUMIFS(InPricePM!$E:$E,InPricePM!$B:$B,$A12,InPricePM!$A:$A,N$7) -> 0.3161 | O12: =SUMIFS(InPricePM!$E:$E,InPricePM!$B:$B,$A12,InPricePM!$A:$A,O$7) -> 0.3275
A13: BSIF | B13: BIMB Shariah IncomePlus Fund | C13: =IF(RIGHT(B13,1)="^",SUMIFS(InPricePM!$E:$E,InPricePM!$B:$B,$A13,InPricePM!$A:$A,ValueDateTm1),SUMIFS(InPricePM!$E:$E,InPricePM!$B:$B,$A13,InPricePM!$A:$A,ValueDate)) -> 0 | E13: -1 | F13: -1 | G13: -1 | I13: =IF(RIGHT($B13,1)="^",OFFSET('Foreign Daily Perf.'!E$1,MATCH($A13,'Foreign Daily Perf.'!$A:$A,0)-1,0),IF(SUMIFS(InTWRR!$D:$D,InTWRR!$B:$B,$A13,InTWRR!$A:$A,I$7)=0,0,SUMIFS(InTWRR!$D:$D,InTWRR!$B:$B,$A13,InTWRR!$A:$A,$C$7)/SUMIFS(InTWRR!$D:$D,InTWRR!$B:$B,$A13,InTWRR!$A:$A,I$7)-1)) -> -1 | J13: =IF(RIGHT($B13,1)="^",OFFSET('Foreign Daily Perf.'!F$1,MATCH($A13,'Foreign Daily Perf.'!$A:$A,0)-1,0),IF(SUMIFS(InTWRR!$D:$D,InTWRR!$B:$B,$A13,InTWRR!$A:$A,J$7)=0,0,SUMIFS(InTWRR!$D:$D,InTWRR!$B:$B,$A13,InTWRR!$A:$A,$C$7)/SUMIFS(InTWRR!$D:$D,InTWRR!$B:$B,$A13,InTWRR!$A:$A,J$7)-1)) -> -1 | K13: =IF(RIGHT($B13,1)="^",OFFSET('Foreign Daily Perf.'!G$1,MATCH($A13,'Foreign Daily Perf.'!$A:$A,0)-1,0),IF(SUMIFS(InTWRR!$D:$D,InTWRR!$B:$B,$A13,InTWRR!$A:$A,K$7)=0,0,SUMIFS(InTWRR!$D:$D,InTWRR!$B:$B,$A13,InTWRR!$A:$A,$C$7)/SUMIFS(InTWRR!$D:$D,InTWRR!$B:$B,$A13,InTWRR!$A:$A,K$7)-1)) -> -1 | M13: =SUMIFS(InPricePM!$E:$E,InPricePM!$B:$B,$A13,InPricePM!$A:$A,M$7) -> 0.9989 | N13: =SUMIFS(InPricePM!$E:$E,InPricePM!$B:$B,$A13,InPricePM!$A:$A,N$7) -> 0.9986 | O13: =SUMIFS(InPricePM!$E:$E,InPricePM!$B:$B,$A13,InPricePM!$A:$A,O$7) -> 1.0008
A14: IF | B14: BIMB i Flexi Fund | C14: =IF(RIGHT(B14,1)="^",SUMIFS(InPricePM!$E:$E,InPricePM!$B:$B,$A14,InPricePM!$A:$A,ValueDateTm1),SUMIFS(InPricePM!$E:$E,InPricePM!$B:$B,$A14,InPricePM!$A:$A,ValueDate)) -> 0 | E14: -1 | F14: -1 | G14: =IF(K14=0,$C14/O14-1,K14) -> -1 | I14: =IF(RIGHT($B14,1)="^",OFFSET('Foreign Daily Perf.'!E$1,MATCH($A14,'Foreign Daily Perf.'!$A:$A,0)-1,0),IF(SUMIFS(InTWRR!$D:$D,InTWRR!$B:$B,$A14,InTWRR!$A:$A,I$7)=0,0,SUMIFS(InTWRR!$D:$D,InTWRR!$B:$B,$A14,InTWRR!$A:$A,$C$7)/SUMIFS(InTWRR!$D:$D,InTWRR!$B:$B,$A14,InTWRR!$A:$A,I$7)-1)) -> -1 | J14: =IF(RIGHT($B14,1)="^",OFFSET('Foreign Daily Perf.'!F$1,MATCH($A14,'Foreign Daily Perf.'!$A:$A,0)-1,0),IF(SUMIFS(InTWRR!$D:$D,InTWRR!$B:$B,$A14,InTWRR!$A:$A,J$7)=0,0,SUMIFS(InTWRR!$D:$D,InTWRR!$B:$B,$A14,InTWRR!$A:$A,$C$7)/SUMIFS(InTWRR!$D:$D,InTWRR!$B:$B,$A14,InTWRR!$A:$A,J$7)-1)) -> -1 | K14: =IF(RIGHT($B14,1)="^",OFFSET('Foreign Daily Perf.'!G$1,MATCH($A14,'Foreign Daily Perf.'!$A:$A,0)-1,0),IF(SUMIFS(InTWRR!$D:$D,InTWRR!$B:$B,$A14,InTWRR!$A:$A,K$7)=0,0,SUMIFS(InTWRR!$D:$D,InTWRR!$B:$B,$A14,InTWRR!$A:$A,$C$7)/SUMIFS(InTWRR!$D:$D,InTWRR!$B:$B,$A14,InTWRR!$A:$A,K$7)-1)) -> -1 | M14: =SUMIFS(InPricePM!$E:$E,InPricePM!$B:$B,$A14,InPricePM!$A:$A,M$7) -> 0.3126 | N14: =SUMIFS(InPricePM!$E:$E,InPricePM!$B:$B,$A14,InPricePM!$A:$A,N$7) -> 0.3077 | O14: =SUMIFS(InPricePM!$E:$E,InPricePM!$B:$B,$A14,InPricePM!$A:$A,O$7) -> 0.3346
A15: BIPF | B15: Bank Islam Premier Fund ^ | C15: =IF(RIGHT(B15,1)="^",SUMIFS(InPricePM!$E:$E,InPricePM!$B:$B,$A15,InPricePM!$A:$A,ValueDateTm1),SUMIFS(InPricePM!$E:$E,InPricePM!$B:$B,$A15,InPricePM!$A:$A,ValueDate)) -> 0.9951 | E15: -0.005794784694 | F15: -0.002889021717 | G15: 0.0009 | I15: =IF(RIGHT($B15,1)="^",OFFSET('Foreign Daily Perf.'!E$1,MATCH($A15,'Foreign Daily Perf.'!$A:$A,0)-1,0),IF(SUMIFS(InTWRR!$D:$D,InTWRR!$B:$B,$A15,InTWRR!$A:$A,I$7)=0,0,SUMIFS(InTWRR!$D:$D,InTWRR!$B:$B,$A15,InTWRR!$A:$A,$C$7)/SUMIFS(InTWRR!$D:$D,InTWRR!$B:$B,$A15,InTWRR!$A:$A,I$7)-1)) -> -0.005794784694 | J15: =IF(RIGHT($B15,1)="^",OFFSET('Foreign Daily Perf.'!F$1,MATCH($A15,'Foreign Daily Perf.'!$A:$A,0)-1,0),IF(SUMIFS(InTWRR!$D:$D,InTWRR!$B:$B,$A15,InTWRR!$A:$A,J$7)=0,0,SUMIFS(InTWRR!$D:$D,InTWRR!$B:$B,$A15,InTWRR!$A:$A,$C$7)/SUMIFS(InTWRR!$D:$D,InTWRR!$B:$B,$A15,InTWRR!$A:$A,J$7)-1)) -> -0.002889021717 | K15: =IF(RIGHT($B15,1)="^",OFFSET('Foreign Daily Perf.'!G$1,MATCH($A15,'Foreign Daily Perf.'!$A:$A,0)-1,0),IF(SUMIFS(InTWRR!$D:$D,InTWRR!$B:$B,$A15,InTWRR!$A:$A,K$7)=0,0,SUMIFS(InTWRR!$D:$D,InTWRR!$B:$B,$A15,InTWRR!$A:$A,$C$7)/SUMIFS(InTWRR!$D:$D,InTWRR!$B:$B,$A15,InTWRR!$A:$A,K$7)-1)) -> 0.0009 | M15: =SUMIFS(InPricePM!$E:$E,InPricePM!$B:$B,$A15,InPricePM!$A:$A,M$7) -> 0.9951 | N15: =SUMIFS(InPricePM!$E:$E,InPricePM!$B:$B,$A15,InPricePM!$A:$A,N$7) -> 1.0038 | O15: =SUMIFS(InPricePM!$E:$E,InPricePM!$B:$B,$A15,InPricePM!$A:$A,O$7) -> 1
A16: GD1MYR | B16: BIMB-ARABESQUE i Global Dividend Fund 1 - RM Class ^ | C16: =IF(RIGHT(B16,1)="^",SUMIFS(InPricePM!$E:$E,InPricePM!$B:$B,$A16,InPricePM!$A:$A,ValueDateTm1),SUMIFS(InPricePM!$E:$E,InPricePM!$B:$B,$A16,InPricePM!$A:$A,ValueDate)) -> 0.4975 | E16: -0.006391052526 | F16: -0.01073772122 | G16: 0.04810729373 | I16: =IF(RIGHT($B16,1)="^",OFFSET('Foreign Daily Perf.'!E$1,MATCH($A16,'Foreign Daily Perf.'!$A:$A,0)-1,0),IF(SUMIFS(InTWRR!$D:$D,InTWRR!$B:$B,$A16,InTWRR!$A:$A,I$7)=0,0,SUMIFS(InTWRR!$D:$D,InTWRR!$B:$B,$A16,InTWRR!$A:$A,$C$7)/SUMIFS(InTWRR!$D:$D,InTWRR!$B:$B,$A16,InTWRR!$A:$A,I$7)-1)) -> -0.006391052526 | J16: =IF(RIGHT($B16,1)="^",OFFSET('Foreign Daily Perf.'!F$1,MATCH($A16,'Foreign Daily Perf.'!$A:$A,0)-1,0),IF(SUMIFS(InTWRR!$D:$D,InTWRR!$B:$B,$A16,InTWRR!$A:$A,J$7)=0,0,SUMIFS(InTWRR!$D:$D,InTWRR!$B:$B,$A16,InTWRR!$A:$A,$C$7)/SUMIFS(InTWRR!$D:$D,InTWRR!$B:$B,$A16,InTWRR!$A:$A,J$7)-1)) -> -0.01073772122 | K16: =IF(RIGHT($B16,1)="^",OFFSET('Foreign Daily Perf.'!G$1,MATCH($A16,'Foreign Daily Perf.'!$A:$A,0)-1,0),IF(SUMIFS(InTWRR!$D:$D,InTWRR!$B:$B,$A16,InTWRR!$A:$A,K$7)=0,0,SUMIFS(InTWRR!$D:$D,InTWRR!$B:$B,$A16,InTWRR!$A:$A,$C$7)/SUMIFS(InTWRR!$D:$D,InTWRR!$B:$B,$A16,InTWRR!$A:$A,K$7)-1)) -> 0.04810729373 | M16: =SUMIFS(InPricePM!$E:$E,InPricePM!$B:$B,$A16,InPricePM!$A:$A,M$7) -> 0.4975 | N16: =SUMIFS(InPricePM!$E:$E,InPricePM!$B:$B,$A16,InPricePM!$A:$A,N$7) -> 0.5029 | O16: =SUMIFS(InPricePM!$E:$E,InPricePM!$B:$B,$A16,InPricePM!$A:$A,O$7) -> 0.5082
A17: GD1USD | B17: BIMB-ARABESQUE i Global Dividend Fund 1 - USD Class ^ | C17: =IF(RIGHT(B17,1)="^",SUMIFS(InPricePM!$E:$E,InPricePM!$B:$B,$A17,InPricePM!$A:$A,ValueDateTm1),SUMIFS(InPricePM!$E:$E,InPricePM!$B:$B,$A17,InPricePM!$A:$A,ValueDate)) -> 0.5229 | E17: -0.007403189066 | F17: -0.01171801172 | G17: 0.02022573982 | I17: =IF(RIGHT($B17,1)="^",OFFSET('Foreign Daily Perf.'!E$1,MATCH($A17,'Foreign Daily Perf.'!$A:$A,0)-1,0),IF(SUMIFS(InTWRR!$D:$D,InTWRR!$B:$B,$A17,InTWRR!$A:$A,I$7)=0,0,SUMIFS(InTWRR!$D:$D,InTWRR!$B:$B,$A17,InTWRR!$A:$A,$C$7)/SUMIFS(InTWRR!$D:$D,InTWRR!$B:$B,$A17,InTWRR!$A:$A,I$7)-1)) -> -0.007403189066 | J17: =IF(RIGHT($B17,1)="^",OFFSET('Foreign Daily Perf.'!F$1,MATCH($A17,'Foreign Daily Perf.'!$A:$A,0)-1,0),IF(SUMIFS(InTWRR!$D:$D,InTWRR!$B:$B,$A17,InTWRR!$A:$A,J$7)=0,0,SUMIFS(InTWRR!$D:$D,InTWRR!$B:$B,$A17,InTWRR!$A:$A,$C$7)/SUMIFS(InTWRR!$D:$D,InTWRR!$B:$B,$A17,InTWRR!$A:$A,J$7)-1)) -> -0.01171801172 | K17: =IF(RIGHT($B17,1)="^",OFFSET('Foreign Daily Perf.'!G$1,MATCH($A17,'Foreign Daily Perf.'!$A:$A,0)-1,0),IF(SUMIFS(InTWRR!$D:$D,InTWRR!$B:$B,$A17,InTWRR!$A:$A,K$7)=0,0,SUMIFS(InTWRR!$D:$D,InTWRR!$B:$B,$A17,InTWRR!$A:$A,$C$7)/SUMIFS(InTWRR!$D:$D,InTWRR!$B:$B,$A17,InTWRR!$A:$A,K$7)-1)) -> 0.02022573982 | M17: =SUMIFS(InPricePM!$E:$E,InPricePM!$B:$B,$A17,InPricePM!$A:$A,M$7) -> 0.5229 | N17: =SUMIFS(InPricePM!$E:$E,InPricePM!$B:$B,$A17,InPricePM!$A:$A,N$7) -> 0.5291 | O17: =SUMIFS(InPricePM!$E:$E,InPricePM!$B:$B,$A17,InPricePM!$A:$A,O$7) -> 0.547
A18: GD1SGD | B18: BIMB-ARABESQUE i Global Dividend Fund 1 - SGD Class ^ | C18: =IF(RIGHT(B18,1)="^",SUMIFS(InPricePM!$E:$E,InPricePM!$B:$B,$A18,InPricePM!$A:$A,ValueDateTm1),SUMIFS(InPricePM!$E:$E,InPricePM!$B:$B,$A18,InPricePM!$A:$A,ValueDate)) -> 0.4706 | E18: -0.00968013468 | F18: -0.00968013468 | G18: 0.02333251722 | I18: =IF(RIGHT($B18,1)="^",OFFSET('Foreign Daily Perf.'!E$1,MATCH($A18,'Foreign Daily Perf.'!$A:$A,0)-1,0),IF(SUMIFS(InTWRR!$D:$D,InTWRR!$B:$B,$A18,InTWRR!$A:$A,I$7)=0,0,SUMIFS(InTWRR!$D:$D,InTWRR!$B:$B,$A18,InTWRR!$A:$A,$C$7)/SUMIFS(InTWRR!$D:$D,InTWRR!$B:$B,$A18,InTWRR!$A:$A,I$7)-1)) -> -0.00968013468 | J18: =IF(RIGHT($B18,1)="^",OFFSET('Foreign Daily Perf.'!F$1,MATCH($A18,'Foreign Daily Perf.'!$A:$A,0)-1,0),IF(SUMIFS(InTWRR!$D:$D,InTWRR!$B:$B,$A18,InTWRR!$A:$A,J$7)=0,0,SUMIFS(InTWRR!$D:$D,InTWRR!$B:$B,$A18,InTWRR!$A:$A,$C$7)/SUMIFS(InTWRR!$D:$D,InTWRR!$B:$B,$A18,InTWRR!$A:$A,J$7)-1)) -> -0.00968013468 | K18: =IF(RIGHT($B18,1)="^",OFFSET('Foreign Daily Perf.'!G$1,MATCH($A18,'Foreign Daily Perf.'!$A:$A,0)-1,0),IF(SUMIFS(InTWRR!$D:$D,InTWRR!$B:$B,$A18,InTWRR!$A:$A,K$7)=0,0,SUMIFS(InTWRR!$D:$D,InTWRR!$B:$B,$A18,InTWRR!$A:$A,$C$7)/SUMIFS(InTWRR!$D:$D,InTWRR!$B:$B,$A18,InTWRR!$A:$A,K$7)-1)) -> 0.02333251722 | M18: =SUMIFS(InPricePM!$E:$E,InPricePM!$B:$B,$A18,InPricePM!$A:$A,M$7) -> 0.4706 | N18: =SUMIFS(InPricePM!$E:$E,InPricePM!$B:$B,$A18,InPricePM!$A:$A,N$7) -> 0.4752 | O18: =SUMIFS(InPricePM!$E:$E,InPricePM!$B:$B,$A18,InPricePM!$A:$A,O$7) -> 0.4927
A19: GD1RMH | B19: BIMB-ARABESQUE i Global Dividend Fund 1 - RM Hedged Class ^ | C19: =IF(RIGHT(B19,1)="^",SUMIFS(InPricePM!$E:$E,InPricePM!$B:$B,$A19,InPricePM!$A:$A,ValueDateTm1),SUMIFS(InPricePM!$E:$E,InPricePM!$B:$B,$A19,InPricePM!$A:$A,ValueDate)) -> 0.5016 | E19: -0.008695652174 | F19: -0.01240401654 | G19: 0.000873508068 | I19: =IF(RIGHT($B19,1)="^",OFFSET('Foreign Daily Perf.'!E$1,MATCH($A19,'Foreign Daily Perf.'!$A:$A,0)-1,0),IF(SUMIFS(InTWRR!$D:$D,InTWRR!$B:$B,$A19,InTWRR!$A:$A,I$7)=0,0,SUMIFS(InTWRR!$D:$D,InTWRR!$B:$B,$A19,InTWRR!$A:$A,$C$7)/SUMIFS(InTWRR!$D:$D,InTWRR!$B:$B,$A19,InTWRR!$A:$A,I$7)-1)) -> -0.008695652174 | J19: =IF(RIGHT($B19,1)="^",OFFSET('Foreign Daily Perf.'!F$1,MATCH($A19,'Foreign Daily Perf.'!$A:$A,0)-1,0),IF(SUMIFS(InTWRR!$D:$D,InTWRR!$B:$B,$A19,InTWRR!$A:$A,J$7)=0,0,SUMIFS(InTWRR!$D:$D,InTWRR!$B:$B,$A19,InTWRR!$A:$A,$C$7)/SUMIFS(InTWRR!$D:$D,InTWRR!$B:$B,$A19,InTWRR!$A:$A,J$7)-1)) -> -0.01240401654 | K19: =IF(RIGHT($B19,1)="^",OFFSET('Foreign Daily Perf.'!G$1,MATCH($A19,'Foreign Daily Perf.'!$A:$A,0)-1,0),IF(SUMIFS(InTWRR!$D:$D,InTWRR!$B:$B,$A19,InTWRR!$A:$A,K$7)=0,0,SUMIFS(InTWRR!$D:$D,InTWRR!$B:$B,$A19,InTWRR!$A:$A,$C$7)/SUMIFS(InTWRR!$D:$D,InTWRR!$B:$B,$A19,InTWRR!$A:$A,K$7)-1)) -> 0.000873508068 | M19: =SUMIFS(InPricePM!$E:$E,InPricePM!$B:$B,$A19,InPricePM!$A:$A,M$7) -> 0.5016 | N19: =SUMIFS(InPricePM!$E:$E,InPricePM!$B:$B,$A19,InPricePM!$A:$A,N$7) -> 0.5079 | O19: =SUMIFS(InPricePM!$E:$E,InPricePM!$B:$B,$A19,InPricePM!$A:$A,O$7) -> 0.535
A20: BMSEFMYR | B20: BIMB-Arabesque Malaysia Shariah-ESG Equity Fund - RM CLASS ^ | C20: =IF(RIGHT(B20,1)="^",SUMIFS(InPricePM!$E:$E,InPricePM!$B:$B,$A20,InPricePM!$A:$A,ValueDateTm1),SUMIFS(InPricePM!$E:$E,InPricePM!$B:$B,$A20,InPricePM!$A:$A,ValueDate)) -> 0.3056 | E20: 0.0009826400262 | F20: 0.008248102936 | G20: 0.01427149021 | I20: =IF(RIGHT($B20,1)="^",OFFSET('Foreign Daily Perf.'!E$1,MATCH($A20,'Foreign Daily Perf.'!$A:$A,0)-1,0),IF(SUMIFS(InTWRR!$D:$D,InTWRR!$B:$B,$A20,InTWRR!$A:$A,I$7)=0,0,SUMIFS(InTWRR!$D:$D,InTWRR!$B:$B,$A20,InTWRR!$A:$A,$C$7)/SUMIFS(InTWRR!$D:$D,InTWRR!$B:$B,$A20,InTWRR!$A:$A,I$7)-1)) -> 0.0009826400262 | J20: =IF(RIGHT($B20,1)="^",OFFSET('Foreign Daily Perf.'!F$1,MATCH($A20,'Foreign Daily Perf.'!$A:$A,0)-1,0),IF(SUMIFS(InTWRR!$D:$D,InTWRR!$B:$B,$A20,InTWRR!$A:$A,J$7)=0,0,SUMIFS(InTWRR!$D:$D,InTWRR!$B:$B,$A20,InTWRR!$A:$A,$C$7)/SUMIFS(InTWRR!$D:$D,InTWRR!$B:$B,$A20,InTWRR!$A:$A,J$7)-1)) -> 0.008248102936 | K20: =IF(RIGHT($B20,1)="^",OFFSET('Foreign Daily Perf.'!G$1,MATCH($A20,'Foreign Daily Perf.'!$A:$A,0)-1,0),IF(SUMIFS(InTWRR!$D:$D,InTWRR!$B:$B,$A20,InTWRR!$A:$A,K$7)=0,0,SUMIFS(InTWRR!$D:$D,InTWRR!$B:$B,$A20,InTWRR!$A:$A,$C$7)/SUMIFS(InTWRR!$D:$D,InTWRR!$B:$B,$A20,InTWRR!$A:$A,K$7)-1)) -> 0.01427149021 | M20: =SUMIFS(InPricePM!$E:$E,InPricePM!$B:$B,$A20,InPricePM!$A:$A,M$7) -> 0.3056 | N20: =SUMIFS(InPricePM!$E:$E,InPricePM!$B:$B,$A20,InPricePM!$A:$A,N$7) -> 0.3031 | O20: =SUMIFS(InPricePM!$E:$E,InPricePM!$B:$B,$A20,InPricePM!$A:$A,O$7) -> 0.3013
A21: BMSEFUSD | B21: BIMB-Arabesque Malaysia Shariah-ESG Equity Fund - USD CLASS ^ | C21: =IF(RIGHT(B21,1)="^",SUMIFS(InPricePM!$E:$E,InPricePM!$B:$B,$A21,InPricePM!$A:$A,ValueDateTm1),SUMIFS(InPricePM!$E:$E,InPricePM!$B:$B,$A21,InPricePM!$A:$A,ValueDate)) -> 0.3276 | E21: 0.0006108735492 | F21: 0.007070396557 | G21: -0.01146650573 | I21: =IF(RIGHT($B21,1)="^",OFFSET('Foreign Daily Perf.'!E$1,MATCH($A21,'Foreign Daily Perf.'!$A:$A,0)-1,0),IF(SUMIFS(InTWRR!$D:$D,InTWRR!$B:$B,$A21,InTWRR!$A:$A,I$7)=0,0,SUMIFS(InTWRR!$D:$D,InTWRR!$B:$B,$A21,InTWRR!$A:$A,$C$7)/SUMIFS(InTWRR!$D:$D,InTWRR!$B:$B,$A21,InTWRR!$A:$A,I$7)-1)) -> 0.0006108735492 | J21: =IF(RIGHT($B21,1)="^",OFFSET('Foreign Daily Perf.'!F$1,MATCH($A21,'Foreign Daily Perf.'!$A:$A,0)-1,0),IF(SUMIFS(InTWRR!$D:$D,InTWRR!$B:$B,$A21,InTWRR!$A:$A,J$7)=0,0,SUMIFS(InTWRR!$D:$D,InTWRR!$B:$B,$A21,InTWRR!$A:$A,$C$7)/SUMIFS(InTWRR!$D:$D,InTWRR!$B:$B,$A21,InTWRR!$A:$A,J$7)-1)) -> 0.007070396557 | K21: =IF(RIGHT($B21,1)="^",OFFSET('Foreign Daily Perf.'!G$1,MATCH($A21,'Foreign Daily Perf.'!$A:$A,0)-1,0),IF(SUMIFS(InTWRR!$D:$D,InTWRR!$B:$B,$A21,InTWRR!$A:$A,K$7)=0,0,SUMIFS(InTWRR!$D:$D,InTWRR!$B:$B,$A21,InTWRR!$A:$A,$C$7)/SUMIFS(InTWRR!$D:$D,InTWRR!$B:$B,$A21,InTWRR!$A:$A,K$7)-1)) -> -0.01146650573 | M21: =SUMIFS(InPricePM!$E:$E,InPricePM!$B:$B,$A21,InPricePM!$A:$A,M$7) -> 0.3276 | N21: =SUMIFS(InPricePM!$E:$E,InPricePM!$B:$B,$A21,InPricePM!$A:$A,N$7) -> 0.3253 | O21: =SUMIFS(InPricePM!$E:$E,InPricePM!$B:$B,$A21,InPricePM!$A:$A,O$7) -> 0.3314
A22: BMSEFSGD | B22: BIMB-Arabesque Malaysia Shariah-ESG Equity Fund - SGD CLASS ^ | C22: =IF(RIGHT(B22,1)="^",SUMIFS(InPricePM!$E:$E,InPricePM!$B:$B,$A22,InPricePM!$A:$A,ValueDateTm1),SUMIFS(InPricePM!$E:$E,InPricePM!$B:$B,$A22,InPricePM!$A:$A,ValueDate)) -> 0.3112 | E22: 0.004194901581 | F22: 0.01236174366 | G22: -0.005433045702 | I22: =IF(RIGHT($B22,1)="^",OFFSET('Foreign Daily Perf.'!E$1,MATCH($A22,'Foreign Daily Perf.'!$A:$A,0)-1,0),IF(SUMIFS(InTWRR!$D:$D,InTWRR!$B:$B,$A22,InTWRR!$A:$A,I$7)=0,0,SUMIFS(InTWRR!$D:$D,InTWRR!$B:$B,$A22,InTWRR!$A:$A,$C$7)/SUMIFS(InTWRR!$D:$D,InTWRR!$B:$B,$A22,InTWRR!$A:$A,I$7)-1)) -> 0.004194901581 | J22: =IF(RIGHT($B22,1)="^",OFFSET('Foreign Daily Perf.'!F$1,MATCH($A22,'Foreign Daily Perf.'!$A:$A,0)-1,0),IF(SUMIFS(InTWRR!$D:$D,InTWRR!$B:$B,$A22,InTWRR!$A:$A,J$7)=0,0,SUMIFS(InTWRR!$D:$D,InTWRR!$B:$B,$A22,InTWRR!$A:$A,$C$7)/SUMIFS(InTWRR!$D:$D,InTWRR!$B:$B,$A22,InTWRR!$A:$A,J$7)-1)) -> 0.01236174366 | K22: =IF(RIGHT($B22,1)="^",OFFSET('Foreign Daily Perf.'!G$1,MATCH($A22,'Foreign Daily Perf.'!$A:$A,0)-1,0),IF(SUMIFS(InTWRR!$D:$D,InTWRR!$B:$B,$A22,InTWRR!$A:$A,K$7)=0,0,SUMIFS(InTWRR!$D:$D,InTWRR!$B:$B,$A22,InTWRR!$A:$A,$C$7)/SUMIFS(InTWRR!$D:$D,InTWRR!$B:$B,$A22,InTWRR!$A:$A,K$7)-1)) -> -0.005433045702 | M22: =SUMIFS(InPricePM!$E:$E,InPricePM!$B:$B,$A22,InPricePM!$A:$A,M$7) -> 0.3112 | N22: =SUMIFS(InPricePM!$E:$E,InPricePM!$B:$B,$A22,InPricePM!$A:$A,N$7) -> 0.3074 | O22: =SUMIFS(InPricePM!$E:$E,InPricePM!$B:$B,$A22,InPricePM!$A:$A,O$7) -> 0.3129
A23: BMSEFEUR | B23: BIMB-Arabesque Malaysia Shariah-ESG Equity Fund - EUR CLASS ^ | C23: =IF(RIGHT(B23,1)="^",SUMIFS(InPricePM!$E:$E,InPricePM!$B:$B,$A23,InPricePM!$A:$A,ValueDateTm1),SUMIFS(InPricePM!$E:$E,InPricePM!$B:$B,$A23,InPricePM!$A:$A,ValueDate)) -> 0.2873 | E23: -0.002776813606 | F23: 0.01233262861 | G23: -0.006913238852 | I23: =IF(RIGHT($B23,1)="^",OFFSET('Foreign Daily Perf.'!E$1,MATCH($A23,'Foreign Daily Perf.'!$A:$A,0)-1,0),IF(SUMIFS(InTWRR!$D:$D,InTWRR!$B:$B,$A23,InTWRR!$A:$A,I$7)=0,0,SUMIFS(InTWRR!$D:$D,InTWRR!$B:$B,$A23,InTWRR!$A:$A,$C$7)/SUMIFS(InTWRR!$D:$D,InTWRR!$B:$B,$A23,InTWRR!$A:$A,I$7)-1)) -> -0.002776813606 | J23: =IF(RIGHT($B23,1)="^",OFFSET('Foreign Daily Perf.'!F$1,MATCH($A23,'Foreign Daily Perf.'!$A:$A,0)-1,0),IF(SUMIFS(InTWRR!$D:$D,InTWRR!$B:$B,$A23,InTWRR!$A:$A,J$7)=0,0,SUMIFS(InTWRR!$D:$D,InTWRR!$B:$B,$A23,InTWRR!$A:$A,$C$7)/SUMIFS(InTWRR!$D:$D,InTWRR!$B:$B,$A23,InTWRR!$A:$A,J$7)-1)) -> 0.01233262861 | K23: =IF(RIGHT($B23,1)="^",OFFSET('Foreign Daily Perf.'!G$1,MATCH($A23,'Foreign Daily Perf.'!$A:$A,0)-1,0),IF(SUMIFS(InTWRR!$D:$D,InTWRR!$B:$B,$A23,InTWRR!$A:$A,K$7)=0,0,SUMIFS(InTWRR!$D:$D,InTWRR!$B:$B,$A23,InTWRR!$A:$A,$C$7)/SUMIFS(InTWRR!$D:$D,InTWRR!$B:$B,$A23,InTWRR!$A:$A,K$7)-1)) -> -0.006913238852 | M23: =SUMIFS(InPricePM!$E:$E,InPricePM!$B:$B,$A23,InPricePM!$A:$A,M$7) -> 0.2873 | N23: =SUMIFS(InPricePM!$E:$E,InPricePM!$B:$B,$A23,InPricePM!$A:$A,N$7) -> 0.2838 | O23: =SUMIFS(InPricePM!$E:$E,InPricePM!$B:$B,$A23,InPricePM!$A:$A,O$7) -> 0.2893
A24: BAPACUSD | B24: BIMB-Arabesque Asia Pacific Shariah-ESG Equity Fund - USD CLASS ^ | C24: =IF(RIGHT(B24,1)="^",SUMIFS(InPricePM!$E:$E,InPricePM!$B:$B,$A24,InPricePM!$A:$A,ValueDateTm1),SUMIFS(InPricePM!$E:$E,InPricePM!$B:$B,$A24,InPricePM!$A:$A,ValueDate)) -> 0.2363 | E24: 0.002120441052 | F24: 0.006388415673 | G24: 0.0251626898 | I24: =IF(RIGHT($B24,1)="^",OFFSET('Foreign Daily Perf.'!E$1,MATCH($A24,'Foreign Daily Perf.'!$A:$A,0)-1,0),IF(SUMIFS(InTWRR!$D:$D,InTWRR!$B:$B,$A24,InTWRR!$A:$A,I$7)=0,0,SUMIFS(InTWRR!$D:$D,InTWRR!$B:$B,$A24,InTWRR!$A:$A,$C$7)/SUMIFS(InTWRR!$D:$D,InTWRR!$B:$B,$A24,InTWRR!$A:$A,I$7)-1)) -> 0.002120441052 | J24: =IF(RIGHT($B24,1)="^",OFFSET('Foreign Daily Perf.'!F$1,MATCH($A24,'Foreign Daily Perf.'!$A:$A,0)-1,0),IF(SUMIFS(InTWRR!$D:$D,InTWRR!$B:$B,$A24,InTWRR!$A:$A,J$7)=0,0,SUMIFS(InTWRR!$D:$D,InTWRR!$B:$B,$A24,InTWRR!$A:$A,$C$7)/SUMIFS(InTWRR!$D:$D,InTWRR!$B:$B,$A24,InTWRR!$A:$A,J$7)-1)) -> 0.006388415673 | K24: =IF(RIGHT($B24,1)="^",OFFSET('Foreign Daily Perf.'!G$1,MATCH($A24,'Foreign Daily Perf.'!$A:$A,0)-1,0),IF(SUMIFS(InTWRR!$D:$D,InTWRR!$B:$B,$A24,InTWRR!$A:$A,K$7)=0,0,SUMIFS(InTWRR!$D:$D,InTWRR!$B:$B,$A24,InTWRR!$A:$A,$C$7)/SUMIFS(InTWRR!$D:$D,InTWRR!$B:$B,$A24,InTWRR!$A:$A,K$7)-1)) -> 0.0251626898 | M24: =SUMIFS(InPricePM!$E:$E,InPricePM!$B:$B,$A24,InPricePM!$A:$A,M$7) -> 0.2363 | N24: =SUMIFS(InPricePM!$E:$E,InPricePM!$B:$B,$A24,InPricePM!$A:$A,N$7) -> 0.2348 | O24: =SUMIFS(InPricePM!$E:$E,InPricePM!$B:$B,$A24,InPricePM!$A:$A,O$7) -> 0.2305
A25: BAPACMYR | B25: BIMB-Arabesque Asia Pacific Shariah-ESG Equity Fund - RM CLASS ^ | C25: =IF(RIGHT(B25,1)="^",SUMIFS(InPricePM!$E:$E,InPricePM!$B:$B,$A25,InPricePM!$A:$A,ValueDateTm1),SUMIFS(InPricePM!$E:$E,InPricePM!$B:$B,$A25,InPricePM!$A:$A,ValueDate)) -> 0.2475 | E25: 0.0028363047 | F25: 0.007326007326 | G25: 0.0527435134 | I25: =IF(RIGHT($B25,1)="^",OFFSET('Foreign Daily Perf.'!E$1,MATCH($A25,'Foreign Daily Perf.'!$A:$A,0)-1,0),IF(SUMIFS(InTWRR!$D:$D,InTWRR!$B:$B,$A25,InTWRR!$A:$A,I$7)=0,0,SUMIFS(InTWRR!$D:$D,InTWRR!$B:$B,$A25,InTWRR!$A:$A,$C$7)/SUMIFS(InTWRR!$D:$D,InTWRR!$B:$B,$A25,InTWRR!$A:$A,I$7)-1)) -> 0.0028363047 | J25: =IF(RIGHT($B25,1)="^",OFFSET('Foreign Daily Perf.'!F$1,MATCH($A25,'Foreign Daily Perf.'!$A:$A,0)-1,0),IF(SUMIFS(InTWRR!$D:$D,InTWRR!$B:$B,$A25,InTWRR!$A:$A,J$7)=0,0,SUMIFS(InTWRR!$D:$D,InTWRR!$B:$B,$A25,InTWRR!$A:$A,$C$7)/SUMIFS(InTWRR!$D:$D,InTWRR!$B:$B,$A25,InTWRR!$A:$A,J$7)-1)) -> 0.007326007326 | K25: =IF(RIGHT($B25,1)="^",OFFSET('Foreign Daily Perf.'!G$1,MATCH($A25,'Foreign Daily Perf.'!$A:$A,0)-1,0),IF(SUMIFS(InTWRR!$D:$D,InTWRR!$B:$B,$A25,InTWRR!$A:$A,K$7)=0,0,SUMIFS(InTWRR!$D:$D,InTWRR!$B:$B,$A25,InTWRR!$A:$A,$C$7)/SUMIFS(InTWRR!$D:$D,InTWRR!$B:$B,$A25,InTWRR!$A:$A,K$7)-1)) -> 0.0527435134 | M25: =SUMIFS(InPricePM!$E:$E,InPricePM!$B:$B,$A25,InPricePM!$A:$A,M$7) -> 0.2475 | N25: =SUMIFS(InPricePM!$E:$E,InPricePM!$B:$B,$A25,InPricePM!$A:$A,N$7) -> 0.2457 | O25: =SUMIFS(InPricePM!$E:$E,InPricePM!$B:$B,$A25,InPricePM!$A:$A,O$7) -> 0.2351
A26: BSF-Class A | B26: BIMB ESG Sukuk Fund - Class A ^ | C26: =IF(RIGHT(B26,1)="^",SUMIFS(InPricePM!$E:$E,InPricePM!$B:$B,$A26,InPricePM!$A:$A,ValueDateTm1),SUMIFS(InPricePM!$E:$E,InPricePM!$B:$B,$A26,InPricePM!$A:$A,ValueDate)) -> 0.2512 | E26: 0 | F26: 0 | G26: -0.008290564548 | I26: =IF(RIGHT($B26,1)="^",OFFSET('Foreign Daily Perf.'!E$1,MATCH($A26,'Foreign Daily Perf.'!$A:$A,0)-1,0),IF(SUMIFS(InTWRR!$D:$D,InTWRR!$B:$B,$A26,InTWRR!$A:$A,I$7)=0,0,SUMIFS(InTWRR!$D:$D,InTWRR!$B:$B,$A26,InTWRR!$A:$A,$C$7)/SUMIFS(InTWRR!$D:$D,InTWRR!$B:$B,$A26,InTWRR!$A:$A,I$7)-1)) -> 0 | J26: =IF(RIGHT($B26,1)="^",OFFSET('Foreign Daily Perf.'!F$1,MATCH($A26,'Foreign Daily Perf.'!$A:$A,0)-1,0),IF(SUMIFS(InTWRR!$D:$D,InTWRR!$B:$B,$A26,InTWRR!$A:$A,J$7)=0,0,SUMIFS(InTWRR!$D:$D,InTWRR!$B:$B,$A26,InTWRR!$A:$A,$C$7)/SUMIFS(InTWRR!$D:$D,InTWRR!$B:$B,$A26,InTWRR!$A:$A,J$7)-1)) -> 0 | K26: =IF(RIGHT($B26,1)="^",OFFSET('Foreign Daily Perf.'!G$1,MATCH($A26,'Foreign Daily Perf.'!$A:$A,0)-1,0),IF(SUMIFS(InTWRR!$D:$D,InTWRR!$B:$B,$A26,InTWRR!$A:$A,K$7)=0,0,SUMIFS(InTWRR!$D:$D,InTWRR!$B:$B,$A26,InTWRR!$A:$A,$C$7)/SUMIFS(InTWRR!$D:$D,InTWRR!$B:$B,$A26,InTWRR!$A:$A,K$7)-1)) -> -0.008290564548 | M26: =SUMIFS(InPricePM!$E:$E,InPricePM!$B:$B,$A26,InPricePM!$A:$A,M$7) -> 0.2512 | N26: =SUMIFS(InPricePM!$E:$E,InPricePM!$B:$B,$A26,InPricePM!$A:$A,N$7) -> 0.2512 | O26: =SUMIFS(InPricePM!$E:$E,InPricePM!$B:$B,$A26,InPricePM!$A:$A,O$7) -> 0.2533
A27: BSF-Class B | B27: BIMB ESG Sukuk Fund - Class B ^ | C27: =IF(RIGHT(B27,1)="^",SUMIFS(InPricePM!$E:$E,InPricePM!$B:$B,$A27,InPricePM!$A:$A,ValueDateTm1),SUMIFS(InPricePM!$E:$E,InPricePM!$B:$B,$A27,InPricePM!$A:$A,ValueDate)) -> 0.25 | E27: -0.0007993605116 | F27: -0.001198561726 | G27: -0.0336296869 | I27: =IF(RIGHT($B27,1)="^",OFFSET('Foreign Daily Perf.'!E$1,MATCH($A27,'Foreign Daily Perf.'!$A:$A,0)-1,0),IF(SUMIFS(InTWRR!$D:$D,InTWRR!$B:$B,$A27,InTWRR!$A:$A,I$7)=0,0,SUMIFS(InTWRR!$D:$D,InTWRR!$B:$B,$A27,InTWRR!$A:$A,$C$7)/SUMIFS(InTWRR!$D:$D,InTWRR!$B:$B,$A27,InTWRR!$A:$A,I$7)-1)) -> -0.0007993605116 | J27: =IF(RIGHT($B27,1)="^",OFFSET('Foreign Daily Perf.'!F$1,MATCH($A27,'Foreign Daily Perf.'!$A:$A,0)-1,0),IF(SUMIFS(InTWRR!$D:$D,InTWRR!$B:$B,$A27,InTWRR!$A:$A,J$7)=0,0,SUMIFS(InTWRR!$D:$D,InTWRR!$B:$B,$A27,InTWRR!$A:$A,$C$7)/SUMIFS(InTWRR!$D:$D,InTWRR!$B:$B,$A27,InTWRR!$A:$A,J$7)-1)) -> -0.001198561726 | K27: =IF(RIGHT($B27,1)="^",OFFSET('Foreign Daily Perf.'!G$1,MATCH($A27,'Foreign Daily Perf.'!$A:$A,0)-1,0),IF(SUMIFS(InTWRR!$D:$D,InTWRR!$B:$B,$A27,InTWRR!$A:$A,K$7)=0,0,SUMIFS(InTWRR!$D:$D,InTWRR!$B:$B,$A27,InTWRR!$A:$A,$C$7)/SUMIFS(InTWRR!$D:$D,InTWRR!$B:$B,$A27,InTWRR!$A:$A,K$7)-1)) -> -0.0336296869 | M27: =SUMIFS(InPricePM!$E:$E,InPricePM!$B:$B,$A27,InPricePM!$A:$A,M$7) -> 0.25 | N27: =SUMIFS(InPricePM!$E:$E,InPricePM!$B:$B,$A27,InPricePM!$A:$A,N$7) -> 0.2503 | O27: =SUMIFS(InPricePM!$E:$E,InPricePM!$B:$B,$A27,InPricePM!$A:$A,O$7) -> 0.2587
A28: BSF-Class C | B28: BIMB ESG Sukuk Fund - Class C ^ | C28: =IF(RIGHT(B28,1)="^",SUMIFS(InPricePM!$E:$E,InPricePM!$B:$B,$A28,InPricePM!$A:$A,ValueDateTm1),SUMIFS(InPricePM!$E:$E,InPricePM!$B:$B,$A28,InPricePM!$A:$A,ValueDate)) -> 0.2416 | E28: 0.002489626556 | F28: 0.003322259136 | G28: -0.02815768302 | I28: =IF(RIGHT($B28,1)="^",OFFSET('Foreign Daily Perf.'!E$1,MATCH($A28,'Foreign Daily Perf.'!$A:$A,0)-1,0),IF(SUMIFS(InTWRR!$D:$D,InTWRR!$B:$B,$A28,InTWRR!$A:$A,I$7)=0,0,SUMIFS(InTWRR!$D:$D,InTWRR!$B:$B,$A28,InTWRR!$A:$A,$C$7)/SUMIFS(InTWRR!$D:$D,InTWRR!$B:$B,$A28,InTWRR!$A:$A,I$7)-1)) -> 0.002489626556 | J28: =IF(RIGHT($B28,1)="^",OFFSET('Foreign Daily Perf.'!F$1,MATCH($A28,'Foreign Daily Perf.'!$A:$A,0)-1,0),IF(SUMIFS(InTWRR!$D:$D,InTWRR!$B:$B,$A28,InTWRR!$A:$A,J$7)=0,0,SUMIFS(InTWRR!$D:$D,InTWRR!$B:$B,$A28,InTWRR!$A:$A,$C$7)/SUMIFS(InTWRR!$D:$D,InTWRR!$B:$B,$A28,InTWRR!$A:$A,J$7)-1)) -> 0.003322259136 | K28: =IF(RIGHT($B28,1)="^",OFFSET('Foreign Daily Perf.'!G$1,MATCH($A28,'Foreign Daily Perf.'!$A:$A,0)-1,0),IF(SUMIFS(InTWRR!$D:$D,InTWRR!$B:$B,$A28,InTWRR!$A:$A,K$7)=0,0,SUMIFS(InTWRR!$D:$D,InTWRR!$B:$B,$A28,InTWRR!$A:$A,$C$7)/SUMIFS(InTWRR!$D:$D,InTWRR!$B:$B,$A28,InTWRR!$A:$A,K$7)-1)) -> -0.02815768302 | M28: =SUMIFS(InPricePM!$E:$E,InPricePM!$B:$B,$A28,InPricePM!$A:$A,M$7) -> 0.2416 | N28: =SUMIFS(InPricePM!$E:$E,InPricePM!$B:$B,$A28,InPricePM!$A:$A,N$7) -> 0.2408 | O28: =SUMIFS(InPricePM!$E:$E,InPricePM!$B:$B,$A28,InPricePM!$A:$A,O$7) -> 0.2486
A29: BSF-Class D | B29: BIMB ESG Sukuk Fund - Class D ^ | C29: =IF(RIGHT(B29,1)="^",SUMIFS(InPricePM!$E:$E,InPricePM!$B:$B,$A29,InPricePM!$A:$A,ValueDateTm1),SUMIFS(InPricePM!$E:$E,InPricePM!$B:$B,$A29,InPricePM!$A:$A,ValueDate)) -> 0.2512 | E29: 0 | F29: 0 | G29: -0.008290564548 | I29: =IF(RIGHT($B29,1)="^",OFFSET('Foreign Daily Perf.'!E$1,MATCH($A29,'Foreign Daily Perf.'!$A:$A,0)-1,0),IF(SUMIFS(InTWRR!$D:$D,InTWRR!$B:$B,$A29,InTWRR!$A:$A,I$7)=0,0,SUMIFS(InTWRR!$D:$D,InTWRR!$B:$B,$A29,InTWRR!$A:$A,$C$7)/SUMIFS(InTWRR!$D:$D,InTWRR!$B:$B,$A29,InTWRR!$A:$A,I$7)-1)) -> 0 | J29: =IF(RIGHT($B29,1)="^",OFFSET('Foreign Daily Perf.'!F$1,MATCH($A29,'Foreign Daily Perf.'!$A:$A,0)-1,0),IF(SUMIFS(InTWRR!$D:$D,InTWRR!$B:$B,$A29,InTWRR!$A:$A,J$7)=0,0,SUMIFS(InTWRR!$D:$D,InTWRR!$B:$B,$A29,InTWRR!$A:$A,$C$7)/SUMIFS(InTWRR!$D:$D,InTWRR!$B:$B,$A29,InTWRR!$A:$A,J$7)-1)) -> 0 | K29: =IF(RIGHT($B29,1)="^",OFFSET('Foreign Daily Perf.'!G$1,MATCH($A29,'Foreign Daily Perf.'!$A:$A,0)-1,0),IF(SUMIFS(InTWRR!$D:$D,InTWRR!$B:$B,$A29,InTWRR!$A:$A,K$7)=0,0,SUMIFS(InTWRR!$D:$D,InTWRR!$B:$B,$A29,InTWRR!$A:$A,$C$7)/SUMIFS(InTWRR!$D:$D,InTWRR!$B:$B,$A29,InTWRR!$A:$A,K$7)-1)) -> -0.008290564548 | M29: =SUMIFS(InPricePM!$E:$E,InPricePM!$B:$B,$A29,InPricePM!$A:$A,M$7) -> 0.2512 | N29: =SUMIFS(InPricePM!$E:$E,InPricePM!$B:$B,$A29,InPricePM!$A:$A,N$7) -> 0.2512 | O29: =SUMIFS(InPricePM!$E:$E,InPricePM!$B:$B,$A29,InPricePM!$A:$A,O$7) -> 0.2533
A30: BSF-Class E | B30: BIMB ESG Sukuk Fund - Class E ^ | C30: =IF(RIGHT(B30,1)="^",SUMIFS(InPricePM!$E:$E,InPricePM!$B:$B,$A30,InPricePM!$A:$A,ValueDateTm1),SUMIFS(InPricePM!$E:$E,InPricePM!$B:$B,$A30,InPricePM!$A:$A,ValueDate)) -> 0.25 | E30: =IF(I30=0,$C30/M30-1,I30) -> -0.0007993605116 | F30: =IF(J30=0,$C30/N30-1,J30) -> -0.001198561726 | G30: =IF(K30=0,$C30/O30-1,K30) -> -0.0336296869 | I30: =IF(RIGHT($B30,1)="^",OFFSET('Foreign Daily Perf.'!E$1,MATCH($A30,'Foreign Daily Perf.'!$A:$A,0)-1,0),IF(SUMIFS(InTWRR!$D:$D,InTWRR!$B:$B,$A30,InTWRR!$A:$A,I$7)=0,0,SUMIFS(InTWRR!$D:$D,InTWRR!$B:$B,$A30,InTWRR!$A:$A,$C$7)/SUMIFS(InTWRR!$D:$D,InTWRR!$B:$B,$A30,InTWRR!$A:$A,I$7)-1)) -> -0.0007993605116 | J30: =IF(RIGHT($B30,1)="^",OFFSET('Foreign Daily Perf.'!F$1,MATCH($A30,'Foreign Daily Perf.'!$A:$A,0)-1,0),IF(SUMIFS(InTWRR!$D:$D,InTWRR!$B:$B,$A30,InTWRR!$A:$A,J$7)=0,0,SUMIFS(InTWRR!$D:$D,InTWRR!$B:$B,$A30,InTWRR!$A:$A,$C$7)/SUMIFS(InTWRR!$D:$D,InTWRR!$B:$B,$A30,InTWRR!$A:$A,J$7)-1)) -> -0.001198561726 | K30: =IF(RIGHT($B30,1)="^",OFFSET('Foreign Daily Perf.'!G$1,MATCH($A30,'Foreign Daily Perf.'!$A:$A,0)-1,0),IF(SUMIFS(InTWRR!$D:$D,InTWRR!$B:$B,$A30,InTWRR!$A:$A,K$7)=0,0,SUMIFS(InTWRR!$D:$D,InTWRR!$B:$B,$A30,InTWRR!$A:$A,$C$7)/SUMIFS(InTWRR!$D:$D,InTWRR!$B:$B,$A30,InTWRR!$A:$A,K$7)-1)) -> -0.0336296869 | M30: =SUMIFS(InPricePM!$E:$E,InPricePM!$B:$B,$A30,InPricePM!$A:$A,M$7) -> 0.25 | N30: =SUMIFS(InPricePM!$E:$E,InPricePM!$B:$B,$A30,InPricePM!$A:$A,N$7) -> 0.2503 | O30: =SUMIFS(InPricePM!$E:$E,InPricePM!$B:$B,$A30,InPricePM!$A:$A,O$7) -> 0.2587
A31: BGSEFMYR | B31: Bimb-Arabesque Global Shariah Sustainable Equity Fund - RM Class ^ | C31: =IF(RIGHT(B31,1)="^",SUMIFS(InPricePM!$E:$E,InPricePM!$B:$B,$A31,InPricePM!$A:$A,ValueDateTm1),SUMIFS(InPricePM!$E:$E,InPricePM!$B:$B,$A31,InPricePM!$A:$A,ValueDate)) -> 0.2488 | E31: -0.005595523581 | F31: -0.008369868473 | G31: =IFERROR(IF(K31=0,$C31/O31-1,K31),0) -> 0 | I31: =IF(RIGHT($B31,1)="^",OFFSET('Foreign Daily Perf.'!E$1,MATCH($A31,'Foreign Daily Perf.'!$A:$A,0)-1,0),IF(SUMIFS(InTWRR!$D:$D,InTWRR!$B:$B,$A31,InTWRR!$A:$A,I$7)=0,0,SUMIFS(InTWRR!$D:$D,InTWRR!$B:$B,$A31,InTWRR!$A:$A,$C$7)/SUMIFS(InTWRR!$D:$D,InTWRR!$B:$B,$A31,InTWRR!$A:$A,I$7)-1)) -> -0.005595523581 | J31: =IF(RIGHT($B31,1)="^",OFFSET('Foreign Daily Perf.'!F$1,MATCH($A31,'Foreign Daily Perf.'!$A:$A,0)-1,0),IF(SUMIFS(InTWRR!$D:$D,InTWRR!$B:$B,$A31,InTWRR!$A:$A,J$7)=0,0,SUMIFS(InTWRR!$D:$D,InTWRR!$B:$B,$A31,InTWRR!$A:$A,$C$7)/SUMIFS(InTWRR!$D:$D,InTWRR!$B:$B,$A31,InTWRR!$A:$A,J$7)-1)) -> -0.008369868473 | K31: =IF(RIGHT($B31,1)="^",OFFSET('Foreign Daily Perf.'!G$1,MATCH($A31,'Foreign Daily Perf.'!$A:$A,0)-1,0),IF(SUMIFS(InTWRR!$D:$D,InTWRR!$B:$B,$A31,InTWRR!$A:$A,K$7)=0,0,SUMIFS(InTWRR!$D:$D,InTWRR!$B:$B,$A31,InTWRR!$A:$A,$C$7)/SUMIFS(InTWRR!$D:$D,InTWRR!$B:$B,$A31,InTWRR!$A:$A,K$7)-1)) -> 0 | M31: =SUMIFS(InPricePM!$E:$E,InPricePM!$B:$B,$A31,InPricePM!$A:$A,M$7) -> 0.2488 | N31: =SUMIFS(InPricePM!$E:$E,InPricePM!$B:$B,$A31,InPricePM!$A:$A,N$7) -> 0.2509 | O31: =SUMIFS(InPricePM!$E:$E,InPricePM!$B:$B,$A31,InPricePM!$A:$A,O$7) -> 0
A32: BGSEFRMH | B32: Bimb-Arabesque Global Shariah Sustainable Equity Fund - RM Hedged Class ^ | C32: =IF(RIGHT(B32,1)="^",SUMIFS(InPricePM!$E:$E,InPricePM!$B:$B,$A32,InPricePM!$A:$A,ValueDateTm1),SUMIFS(InPricePM!$E:$E,InPricePM!$B:$B,$A32,InPricePM!$A:$A,ValueDate)) -> 0.2486 | E32: -0.007584830339 | F32: -0.009956192752 | G32: =IFERROR(IF(K32=0,$C32/O32-1,K32),0) -> 0 | I32: =IF(RIGHT($B32,1)="^",OFFSET('Foreign Daily Perf.'!E$1,MATCH($A32,'Foreign Daily Perf.'!$A:$A,0)-1,0),IF(SUMIFS(InTWRR!$D:$D,InTWRR!$B:$B,$A32,InTWRR!$A:$A,I$7)=0,0,SUMIFS(InTWRR!$D:$D,InTWRR!$B:$B,$A32,InTWRR!$A:$A,$C$7)/SUMIFS(InTWRR!$D:$D,InTWRR!$B:$B,$A32,InTWRR!$A:$A,I$7)-1)) -> -0.007584830339 | J32: =IF(RIGHT($B32,1)="^",OFFSET('Foreign Daily Perf.'!F$1,MATCH($A32,'Foreign Daily Perf.'!$A:$A,0)-1,0),IF(SUMIFS(InTWRR!$D:$D,InTWRR!$B:$B,$A32,InTWRR!$A:$A,J$7)=0,0,SUMIFS(InTWRR!$D:$D,InTWRR!$B:$B,$A32,InTWRR!$A:$A,$C$7)/SUMIFS(InTWRR!$D:$D,InTWRR!$B:$B,$A32,InTWRR!$A:$A,J$7)-1)) -> -0.009956192752 | K32: =IF(RIGHT($B32,1)="^",OFFSET('Foreign Daily Perf.'!G$1,MATCH($A32,'Foreign Daily Perf.'!$A:$A,0)-1,0),IF(SUMIFS(InTWRR!$D:$D,InTWRR!$B:$B,$A32,InTWRR!$A:$A,K$7)=0,0,SUMIFS(InTWRR!$D:$D,InTWRR!$B:$B,$A32,InTWRR!$A:$A,$C$7)/SUMIFS(InTWRR!$D:$D,InTWRR!$B:$B,$A32,InTWRR!$A:$A,K$7)-1)) -> 0 | M32: =SUMIFS(InPricePM!$E:$E,InPricePM!$B:$B,$A32,InPricePM!$A:$A,M$7) -> 0.2486 | N32: =SUMIFS(InPricePM!$E:$E,InPricePM!$B:$B,$A32,InPricePM!$A:$A,N$7) -> 0.2511 | O32: =SUMIFS(InPricePM!$E:$E,InPricePM!$B:$B,$A32,InPricePM!$A:$A,O$7) -> 0
A33: BGSEFUSD | B33: Bimb-Arabesque Global Shariah Sustainable Equity Fund - USD Class ^ | C33: =IF(RIGHT(B33,1)="^",SUMIFS(InPricePM!$E:$E,InPricePM!$B:$B,$A33,InPricePM!$A:$A,ValueDateTm1),SUMIFS(InPricePM!$E:$E,InPricePM!$B:$B,$A33,InPricePM!$A:$A,ValueDate)) -> 0.2497 | E33: -0.00676213206 | F33: -0.009520031733 | G33: 0 | I33: =IF(RIGHT($B33,1)="^",OFFSET('Foreign Daily Perf.'!E$1,MATCH($A33,'Foreign Daily Perf.'!$A:$A,0)-1,0),IF(SUMIFS(InTWRR!$D:$D,InTWRR!$B:$B,$A33,InTWRR!$A:$A,I$7)=0,0,SUMIFS(InTWRR!$D:$D,InTWRR!$B:$B,$A33,InTWRR!$A:$A,$C$7)/SUMIFS(InTWRR!$D:$D,InTWRR!$B:$B,$A33,InTWRR!$A:$A,I$7)-1)) -> -0.00676213206 | J33: =IF(RIGHT($B33,1)="^",OFFSET('Foreign Daily Perf.'!F$1,MATCH($A33,'Foreign Daily Perf.'!$A:$A,0)-1,0),IF(SUMIFS(InTWRR!$D:$D,InTWRR!$B:$B,$A33,InTWRR!$A:$A,J$7)=0,0,SUMIFS(InTWRR!$D:$D,InTWRR!$B:$B,$A33,InTWRR!$A:$A,$C$7)/SUMIFS(InTWRR!$D:$D,InTWRR!$B:$B,$A33,InTWRR!$A:$A,J$7)-1)) -> -0.009520031733 | K33: =IF(RIGHT($B33,1)="^",OFFSET('Foreign Daily Perf.'!G$1,MATCH($A33,'Foreign Daily Perf.'!$A:$A,0)-1,0),IF(SUMIFS(InTWRR!$D:$D,InTWRR!$B:$B,$A33,InTWRR!$A:$A,K$7)=0,0,SUMIFS(InTWRR!$D:$D,InTWRR!$B:$B,$A33,InTWRR!$A:$A,$C$7)/SUMIFS(InTWRR!$D:$D,InTWRR!$B:$B,$A33,InTWRR!$A:$A,K$7)-1)) -> 0 | M33: =SUMIFS(InPricePM!$E:$E,InPricePM!$B:$B,$A33,InPricePM!$A:$A,M$7) -> 0.2497 | N33: =SUMIFS(InPricePM!$E:$E,InPricePM!$B:$B,$A33,InPricePM!$A:$A,N$7) -> 0.2521 | O33: =SUMIFS(InPricePM!$E:$E,InPricePM!$B:$B,$A33,InPricePM!$A:$A,O$7) -> 0
A34: BGSEFAUD | B34: Bimb-Arabesque Global Shariah Sustainable Equity Fund - AUD Class ^ | C34: =IF(RIGHT(B34,1)="^",SUMIFS(InPricePM!$E:$E,InPricePM!$B:$B,$A34,InPricePM!$A:$A,ValueDateTm1),SUMIFS(InPricePM!$E:$E,InPricePM!$B:$B,$A34,InPricePM!$A:$A,ValueDate)) -> 0.2449 | E34: -0.01725521669 | F34: -0.01050505051 | G34: 0 | I34: =IF(RIGHT($B34,1)="^",OFFSET('Foreign Daily Perf.'!E$1,MATCH($A34,'Foreign Daily Perf.'!$A:$A,0)-1,0),IF(SUMIFS(InTWRR!$D:$D,InTWRR!$B:$B,$A34,InTWRR!$A:$A,I$7)=0,0,SUMIFS(InTWRR!$D:$D,InTWRR!$B:$B,$A34,InTWRR!$A:$A,$C$7)/SUMIFS(InTWRR!$D:$D,InTWRR!$B:$B,$A34,InTWRR!$A:$A,I$7)-1)) -> -0.01725521669 | J34: =IF(RIGHT($B34,1)="^",OFFSET('Foreign Daily Perf.'!F$1,MATCH($A34,'Foreign Daily Perf.'!$A:$A,0)-1,0),IF(SUMIFS(InTWRR!$D:$D,InTWRR!$B:$B,$A34,InTWRR!$A:$A,J$7)=0,0,SUMIFS(InTWRR!$D:$D,InTWRR!$B:$B,$A34,InTWRR!$A:$A,$C$7)/SUMIFS(InTWRR!$D:$D,InTWRR!$B:$B,$A34,InTWRR!$A:$A,J$7)-1)) -> -0.01050505051 | K34: =IF(RIGHT($B34,1)="^",OFFSET('Foreign Daily Perf.'!G$1,MATCH($A34,'Foreign Daily Perf.'!$A:$A,0)-1,0),IF(SUMIFS(InTWRR!$D:$D,InTWRR!$B:$B,$A34,InTWRR!$A:$A,K$7)=0,0,SUMIFS(InTWRR!$D:$D,InTWRR!$B:$B,$A34,InTWRR!$A:$A,$C$7)/SUMIFS(InTWRR!$D:$D,InTWRR!$B:$B,$A34,InTWRR!$A:$A,K$7)-1)) -> 0 | M34: =SUMIFS(InPricePM!$E:$E,InPricePM!$B:$B,$A34,InPricePM!$A:$A,M$7) -> 0.2449 | N34: =SUMIFS(InPricePM!$E:$E,InPricePM!$B:$B,$A34,InPricePM!$A:$A,N$7) -> 0.2475 | O34: =SUMIFS(InPricePM!$E:$E,InPricePM!$B:$B,$A34,InPricePM!$A:$A,O$7) -> 0
A35: BGSEFSGD | B35: Bimb-Arabesque Global Shariah Sustainable Equity Fund - SGD Class ^ | C35: =IF(RIGHT(B35,1)="^",SUMIFS(InPricePM!$E:$E,InPricePM!$B:$B,$A35,InPricePM!$A:$A,ValueDateTm1),SUMIFS(InPricePM!$E:$E,InPricePM!$B:$B,$A35,InPricePM!$A:$A,ValueDate)) -> 0.2459 | E35: -0.008867392181 | F35: -0.007667473769 | G35: 0 | I35: =IF(RIGHT($B35,1)="^",OFFSET('Foreign Daily Perf.'!E$1,MATCH($A35,'Foreign Daily Perf.'!$A:$A,0)-1,0),IF(SUMIFS(InTWRR!$D:$D,InTWRR!$B:$B,$A35,InTWRR!$A:$A,I$7)=0,0,SUMIFS(InTWRR!$D:$D,InTWRR!$B:$B,$A35,InTWRR!$A:$A,$C$7)/SUMIFS(InTWRR!$D:$D,InTWRR!$B:$B,$A35,InTWRR!$A:$A,I$7)-1)) -> -0.008867392181 | J35: =IF(RIGHT($B35,1)="^",OFFSET('Foreign Daily Perf.'!F$1,MATCH($A35,'Foreign Daily Perf.'!$A:$A,0)-1,0),IF(SUMIFS(InTWRR!$D:$D,InTWRR!$B:$B,$A35,InTWRR!$A:$A,J$7)=0,0,SUMIFS(InTWRR!$D:$D,InTWRR!$B:$B,$A35,InTWRR!$A:$A,$C$7)/SUMIFS(InTWRR!$D:$D,InTWRR!$B:$B,$A35,InTWRR!$A:$A,J$7)-1)) -> -0.007667473769 | K35: =IF(RIGHT($B35,1)="^",OFFSET('Foreign Daily Perf.'!G$1,MATCH($A35,'Foreign Daily Perf.'!$A:$A,0)-1,0),IF(SUMIFS(InTWRR!$D:$D,InTWRR!$B:$B,$A35,InTWRR!$A:$A,K$7)=0,0,SUMIFS(InTWRR!$D:$D,InTWRR!$B:$B,$A35,InTWRR!$A:$A,$C$7)/SUMIFS(InTWRR!$D:$D,InTWRR!$B:$B,$A35,InTWRR!$A:$A,K$7)-1)) -> 0 | M35: =SUMIFS(InPricePM!$E:$E,InPricePM!$B:$B,$A35,InPricePM!$A:$A,M$7) -> 0.2459 | N35: =SUMIFS(InPricePM!$E:$E,InPricePM!$B:$B,$A35,InPricePM!$A:$A,N$7) -> 0.2478 | O35: =SUMIFS(InPricePM!$E:$E,InPricePM!$B:$B,$A35,InPricePM!$A:$A,O$7) -> 0
A36: MWFMYR | B36: Makmur myWakaf Fund - RM CLASS ^ | C36: =IF(RIGHT(B36,1)="^",SUMIFS(InPricePM!$E:$E,InPricePM!$B:$B,$A36,InPricePM!$A:$A,ValueDateTm1),SUMIFS(InPricePM!$E:$E,InPricePM!$B:$B,$A36,InPricePM!$A:$A,ValueDate)) -> 0.2469 | E36: =IF(I36=0,$C36/M36-1,I36) -> -0.0004048582996 | F36: =IF(J36=0,$C36/N36-1,J36) -> 0.007343941248 | G36: =IFERROR(IF(K36=0,$C36/O36-1,K36),0) -> 0 | I36: =IF(RIGHT($B36,1)="^",OFFSET('Foreign Daily Perf.'!E$1,MATCH($A36,'Foreign Daily Perf.'!$A:$A,0)-1,0),IF(SUMIFS(InTWRR!$D:$D,InTWRR!$B:$B,$A36,InTWRR!$A:$A,I$7)=0,0,SUMIFS(InTWRR!$D:$D,InTWRR!$B:$B,$A36,InTWRR!$A:$A,$C$7)/SUMIFS(InTWRR!$D:$D,InTWRR!$B:$B,$A36,InTWRR!$A:$A,I$7)-1)) -> -0.0004048582996 | J36: =IF(RIGHT($B36,1)="^",OFFSET('Foreign Daily Perf.'!F$1,MATCH($A36,'Foreign Daily Perf.'!$A:$A,0)-1,0),IF(SUMIFS(InTWRR!$D:$D,InTWRR!$B:$B,$A36,InTWRR!$A:$A,J$7)=0,0,SUMIFS(InTWRR!$D:$D,InTWRR!$B:$B,$A36,InTWRR!$A:$A,$C$7)/SUMIFS(InTWRR!$D:$D,InTWRR!$B:$B,$A36,InTWRR!$A:$A,J$7)-1)) -> 0.007343941248 | K36: =IF(RIGHT($B36,1)="^",OFFSET('Foreign Daily Perf.'!G$1,MATCH($A36,'Foreign Daily Perf.'!$A:$A,0)-1,0),IF(SUMIFS(InTWRR!$D:$D,InTWRR!$B:$B,$A36,InTWRR!$A:$A,K$7)=0,0,SUMIFS(InTWRR!$D:$D,InTWRR!$B:$B,$A36,InTWRR!$A:$A,$C$7)/SUMIFS(InTWRR!$D:$D,InTWRR!$B:$B,$A36,InTWRR!$A:$A,K$7)-1)) -> 0 | M36: =SUMIFS(InPricePM!$E:$E,InPricePM!$B:$B,$A36,InPricePM!$A:$A,M$7) -> 0.2469 | N36: =SUMIFS(InPricePM!$E:$E,InPricePM!$B:$B,$A36,InPricePM!$A:$A,N$7) -> 0.2451 | O36: =SUMIFS(InPricePM!$E:$E,InPricePM!$B:$B,$A36,InPricePM!$A:$A,O$7) -> 0
A37: MWFUSD | B37: Makmur myWakaf Fund - USD CLASS ^ | C37: =IF(RIGHT(B37,1)="^",SUMIFS(InPricePM!$E:$E,InPricePM!$B:$B,$A37,InPricePM!$A:$A,ValueDateTm1),SUMIFS(InPricePM!$E:$E,InPricePM!$B:$B,$A37,InPricePM!$A:$A,ValueDate)) -> 0.2473 | E37: =IF(I37=0,$C37/M37-1,I37) -> -0.001614856681 | F37: 0.006102522376 | G37: 0 | I37: =IF(RIGHT($B37,1)="^",OFFSET('Foreign Daily Perf.'!E$1,MATCH($A37,'Foreign Daily Perf.'!$A:$A,0)-1,0),IF(SUMIFS(InTWRR!$D:$D,InTWRR!$B:$B,$A37,InTWRR!$A:$A,I$7)=0,0,SUMIFS(InTWRR!$D:$D,InTWRR!$B:$B,$A37,InTWRR!$A:$A,$C$7)/SUMIFS(InTWRR!$D:$D,InTWRR!$B:$B,$A37,InTWRR!$A:$A,I$7)-1)) -> -0.001614856681 | J37: =IF(RIGHT($B37,1)="^",OFFSET('Foreign Daily Perf.'!F$1,MATCH($A37,'Foreign Daily Perf.'!$A:$A,0)-1,0),IF(SUMIFS(InTWRR!$D:$D,InTWRR!$B:$B,$A37,InTWRR!$A:$A,J$7)=0,0,SUMIFS(InTWRR!$D:$D,InTWRR!$B:$B,$A37,InTWRR!$A:$A,$C$7)/SUMIFS(InTWRR!$D:$D,InTWRR!$B:$B,$A37,InTWRR!$A:$A,J$7)-1)) -> 0.006102522376 | K37: =IF(RIGHT($B37,1)="^",OFFSET('Foreign Daily Perf.'!G$1,MATCH($A37,'Foreign Daily Perf.'!$A:$A,0)-1,0),IF(SUMIFS(InTWRR!$D:$D,InTWRR!$B:$B,$A37,InTWRR!$A:$A,K$7)=0,0,SUMIFS(InTWRR!$D:$D,InTWRR!$B:$B,$A37,InTWRR!$A:$A,$C$7)/SUMIFS(InTWRR!$D:$D,InTWRR!$B:$B,$A37,InTWRR!$A:$A,K$7)-1)) -> 0 | M37: =SUMIFS(InPricePM!$E:$E,InPricePM!$B:$B,$A37,InPricePM!$A:$A,M$7) -> 0.2473 | N37: =SUMIFS(InPricePM!$E:$E,InPricePM!$B:$B,$A37,InPricePM!$A:$A,N$7) -> 0.2458 | O37: =SUMIFS(InPricePM!$E:$E,InPricePM!$B:$B,$A37,InPricePM!$A:$A,O$7) -> 0
A38: MWFAUD | B38: Makmur myWakaf Fund - AUD CLASS ^ | C38: =IF(RIGHT(B38,1)="^",SUMIFS(InPricePM!$E:$E,InPricePM!$B:$B,$A38,InPricePM!$A:$A,ValueDateTm1),SUMIFS(InPricePM!$E:$E,InPricePM!$B:$B,$A38,InPricePM!$A:$A,ValueDate)) -> 0.2474 | E38: =IF(I38=0,$C38/M38-1,I38) -> 0.007328990228 | F38: 0.01685162351 | G38: 0 | I38: =IF(RIGHT($B38,1)="^",OFFSET('Foreign Daily Perf.'!E$1,MATCH($A38,'Foreign Daily Perf.'!$A:$A,0)-1,0),IF(SUMIFS(InTWRR!$D:$D,InTWRR!$B:$B,$A38,InTWRR!$A:$A,I$7)=0,0,SUMIFS(InTWRR!$D:$D,InTWRR!$B:$B,$A38,InTWRR!$A:$A,$C$7)/SUMIFS(InTWRR!$D:$D,InTWRR!$B:$B,$A38,InTWRR!$A:$A,I$7)-1)) -> 0.007328990228 | J38: =IF(RIGHT($B38,1)="^",OFFSET('Foreign Daily Perf.'!F$1,MATCH($A38,'Foreign Daily Perf.'!$A:$A,0)-1,0),IF(SUMIFS(InTWRR!$D:$D,InTWRR!$B:$B,$A38,InTWRR!$A:$A,J$7)=0,0,SUMIFS(InTWRR!$D:$D,InTWRR!$B:$B,$A38,InTWRR!$A:$A,$C$7)/SUMIFS(InTWRR!$D:$D,InTWRR!$B:$B,$A38,InTWRR!$A:$A,J$7)-1)) -> 0.01685162351 | K38: =IF(RIGHT($B38,1)="^",OFFSET('Foreign Daily Perf.'!G$1,MATCH($A38,'Foreign Daily Perf.'!$A:$A,0)-1,0),IF(SUMIFS(InTWRR!$D:$D,InTWRR!$B:$B,$A38,InTWRR!$A:$A,K$7)=0,0,SUMIFS(InTWRR!$D:$D,InTWRR!$B:$B,$A38,InTWRR!$A:$A,$C$7)/SUMIFS(InTWRR!$D:$D,InTWRR!$B:$B,$A38,InTWRR!$A:$A,K$7)-1)) -> 0 | M38: =SUMIFS(InPricePM!$E:$E,InPricePM!$B:$B,$A38,InPricePM!$A:$A,M$7) -> 0.2474 | N38: =SUMIFS(InPricePM!$E:$E,InPricePM!$B:$B,$A38,InPricePM!$A:$A,N$7) -> 0.2433 | O38: =SUMIFS(InPricePM!$E:$E,InPricePM!$B:$B,$A38,InPricePM!$A:$A,O$7) -> 0
A39: BOSIF | B39: BIMB One-Year Shariah Income Fund | C39: =IF(RIGHT(B39,1)="^",SUMIFS(InPricePM!$E:$E,InPricePM!$B:$B,$A39,InPricePM!$A:$A,ValueDateTm1),SUMIFS(InPricePM!$E:$E,InPricePM!$B:$B,$A39,InPricePM!$A:$A,ValueDate)) -> 0 | E39: =IF(I39=0,$C39/M39-1,I39) -> -1 | F39: =IF(J39=0,$C39/N39-1,J39) -> -1 | G39: =IFERROR(IF(K39=0,$C39/O39-1,K39),0) -> 0 | I39: =IF(RIGHT($B39,1)="^",OFFSET('Foreign Daily Perf.'!E$1,MATCH($A39,'Foreign Daily Perf.'!$A:$A,0)-1,0),IF(SUMIFS(InTWRR!$D:$D,InTWRR!$B:$B,$A39,InTWRR!$A:$A,I$7)=0,0,SUMIFS(InTWRR!$D:$D,InTWRR!$B:$B,$A39,InTWRR!$A:$A,$C$7)/SUMIFS(InTWRR!$D:$D,InTWRR!$B:$B,$A39,InTWRR!$A:$A,I$7)-1)) -> -1 | J39: =IF(RIGHT($B39,1)="^",OFFSET('Foreign Daily Perf.'!F$1,MATCH($A39,'Foreign Daily Perf.'!$A:$A,0)-1,0),IF(SUMIFS(InTWRR!$D:$D,InTWRR!$B:$B,$A39,InTWRR!$A:$A,J$7)=0,0,SUMIFS(InTWRR!$D:$D,InTWRR!$B:$B,$A39,InTWRR!$A:$A,$C$7)/SUMIFS(InTWRR!$D:$D,InTWRR!$B:$B,$A39,InTWRR!$A:$A,J$7)-1)) -> -1 | K39: =IF(RIGHT($B39,1)="^",OFFSET('Foreign Daily Perf.'!G$1,MATCH($A39,'Foreign Daily Perf.'!$A:$A,0)-1,0),IF(SUMIFS(InTWRR!$D:$D,InTWRR!$B:$B,$A39,InTWRR!$A:$A,K$7)=0,0,SUMIFS(InTWRR!$D:$D,InTWRR!$B:$B,$A39,InTWRR!$A:$A,$C$7)/SUMIFS(InTWRR!$D:$D,InTWRR!$B:$B,$A39,InTWRR!$A:$A,K$7)-1)) -> 0 | M39: =SUMIFS(InPricePM!$E:$E,InPricePM!$B:$B,$A39,InPricePM!$A:$A,M$7) -> 1.0057 | N39: =SUMIFS(InPricePM!$E:$E,InPricePM!$B:$B,$A39,InPricePM!$A:$A,N$7) -> 1.0048 | O39: =SUMIFS(InPricePM!$E:$E,InPricePM!$B:$B,$A39,InPricePM!$A:$A,O$7) -> 0
B40: ^ NAV of 1 preceding business days
A43: Historical Col.-1 | B43: BENCHMARK | I43: =I7 -> 2021-06-04 | J43: =J7 -> 2021-05-31 | K43: =K7 -> 2020-12-31
A44: 40 | B44: FBMSHARIAH | C44: =VLOOKUP(ValueDate,Historical!$B:$BI,$A44,0) -> 0 | E44: =$C44/I44-1 ->  | F44: =$C44/J44-1 ->  | G44: -1 | I44: =VLOOKUP(I$43,Historical!$B:$BI,$A44) -> 0 | J44: =VLOOKUP(J$43,Historical!$B:$BI,$A44) -> 0 | K44: =VLOOKUP(K$43,Historical!$B:$BI,$A44) -> 13159.15
B45: MSCI All Country World Index Net Return USD | E45: ='Foreign Daily Perf.'!E36 ->  | F45: ='Foreign Daily Perf.'!F36 ->  | G45: ='Foreign Daily Perf.'!G36 -> -1
B46: MSCI All Country World Index Net Return MYR | E46: ='Foreign Daily Perf.'!E37 ->  | F46: ='Foreign Daily Perf.'!F37 ->  | G46: ='Foreign Daily Perf.'!G37 -> -1
B47: ='Foreign Daily Perf.'!B38 -> 30% MSCI All Country World Index Net Return MYR | E47: ='Foreign Daily Perf.'!E38 ->  | F47: ='Foreign Daily Perf.'!F38 ->  | G47: ='Foreign Daily Perf.'!G38 -> -0.3
B48: ='Foreign Daily Perf.'!B39 -> 70% FBM KLCI | E48: ='Foreign Daily Perf.'!E39 ->  | F48: ='Foreign Daily Perf.'!F39 ->  | G48: ='Foreign Daily Perf.'!G39 -> -0.7
B49: ='Foreign Daily Perf.'!B40 -> 70% FBM KLCI + 30% MSCI All Country World Index Net Return MYR | E49: ='Foreign Daily Perf.'!E40 ->  | F49: ='Foreign Daily Perf.'!F40 ->  | G49: ='Foreign Daily Perf.'!G40 -> -1
B50: ='Foreign Daily Perf.'!B41 -> MSCI AC Asia Pacific NR Index USD | E50: ='Foreign Daily Perf.'!E41 ->  | F50: ='Foreign Daily Perf.'!F41 ->  | G50: ='Foreign Daily Perf.'!G41 -> -1
B51: ='Foreign Daily Perf.'!B42 -> MSCI AC Asia Pacific NR Index MYR | E51: ='Foreign Daily Perf.'!E42 ->  | F51: ='Foreign Daily Perf.'!F42 ->  | G51: ='Foreign Daily Perf.'!G42 -> -1
B52: (Under)/Over Perform Benchmark
B53: BIMB i Growth (Al-Mubin) | E53: =E9-E44 ->  | F53: =F9-F44 ->  | G53: =G9-G44 -> 0
B56: ** Bank Islam Premier Fund Launched on 17 November 2020
B58: ** BIMB-Arabesque Valuecap Malaysia Shariah-ESG Equity Fund Launched on 5 July 2018
B59: * BIMB Shariah IncomePlus Fund Launched on 28 May 2020
B60: ** Bank Islam Premier Fund Launched on 17 November 2020
B62: NAV PRICE MOVEMENT AGAINST BENCHMARK MOVEMENT (TOLERENCE LEVEL = 0.5%)
C63: NAV | E63: BENCHMARK | F63: DIFFERENCE | G63: ALERT | H63: REMARKS
B64: =B8 -> BIMB i-Tactical Fund (Formerly known as BIMB i Dividend Fund | C64: =$E$8 -> -1 | E64: =$E$44 ->  | F64: =+C64-E64 ->  | G64: =IF(F64>= 0.005,"PLS CHECK",)&IF(F64<= -0.005,"PLS CHECK",) -> 
B65: =B9 -> BIMB i Growth (Al-Mubin) | C65: =$E$9 -> -1 | E65: =$E$44 ->  | F65: =+C65-E65 ->  | G65: =IF(F65>= 0.005,"PLS CHECK",)&IF(F65<= -0.005,"PLS CHECK",) -> 
B66: =B11 -> BIMB Dana Al-Munsif | C66: =$E$11 -> -1 | E66: =$E$44 ->  | F66: =+C66-E66 ->  | G66: =IF(F66>= 0.005,"PLS CHECK",)&IF(F66<= -0.005,"PLS CHECK",) ->  | H66: stock weightage
B67: =B12 -> BIMB Dana Al-Falah | C67: =$E$12 -> -1 | E67: =$E$44 ->  | F67: =+C67-E67 ->  | G67: =IF(F67>= 0.005,"PLS CHECK",)&IF(F67<= -0.005,"PLS CHECK",) -> 
B68: =B14 -> BIMB i Flexi Fund | C68: =$E$14 -> -1 | E68: =$E$44 ->  | F68: =+C68-E68 ->  | G68: =IF(F68>= 0.005,"PLS CHECK",)&IF(F68<= -0.005,"PLS CHECK",) -> 
F71: =Y71 -> 0
F72: 0
F73: 0
F74: 0
F75: 0
F76: 0
F77: 0
F78: 0
F79: 0
F80: 0
F81: 0
F82: 0
F83: 0
F84: 0
F85: 0
F86: 0
F87: 0
F88: 0
F89: 0
F90: 0
F91: 0
F92: 0
F93: 0
F94: 0
F95: 0
F96: 0
F97: 0
F98: 0
F99: 0
F100: 0
F101: 0
F102: 0
F103: =Y103 -> 0
F104: 0
F105: 0
F106: 0
F107: 0
F108: 0
F109: 0
F110: 0
F111: 0
F112: 0
F113: 0
F114: 0
F115: 0
F116: 0
F117: 0
F118: 0
F119: 0
F120: 0
F121: 0
F122: 0
F123: 0
F124: 0
F125: 0
F126: 0
F127: 0
F128: 0
F129: 0
F130: 0
F131: 0
F132: 0
F133: =Y133 -> 0
F134: 0
F135: =Y135 -> 0
F136: =Y136 -> 0
F137: =Y137 -> 0
F138: 0
F139: 0
F140: =Y140 -> 0
F141: =Y141 -> 0
F142: 0
F143: =Y143 -> 0
F144: 0
F145: 0
F146: 0
F147: 0
F148: 0
F149: =Y149 -> 0

Sheet Foreign Daily Perf.
B1: =CompanyName -> BIMB INVESTMENT MANAGEMENT BERHAD
B2: PRICING SHEET
B4: Valuation Date : | C4: =ValueDateTm1 -> 2021-06-04
I5: TWRR | M5: NAV Price | Q5: Distribution Adj.
B6: FUND | C6: NAV | E6: Daily | F6: MTD | G6: YTD | I6: Daily | J6: MTD | K6: YTD | M6: Daily | N6: MTD | O6: YTD | Q6: Daily | R6: MTD | S6: YTD
A7: Fund Code | C7: =C4 -> 2021-06-04 | E7: % | F7: % | G7: % | I7: =Tm1Daily -> 2021-06-03 | J7: =Tm1MTD -> 2021-05-31 | K7: =Tm1YTD -> 2020-12-31 | M7: =Tm1Daily -> 2021-06-03 | N7: =Tm1MTD -> 2021-05-31 | O7: =Tm1YTD -> 2020-12-31 | Q7: =Tm1Daily -> 2021-06-03 | R7: =Tm1MTD -> 2021-05-31 | S7: =Tm1YTD -> 2020-12-31
A8: GD1USD | B8: BIMB-ARABESQUE i Global Dividend Fund 1 - USD CLASS | C8: =SUMIFS(InPricePM!$E:$E,InPricePM!$B:$B,$A8,InPricePM!$A:$A,ValueDateTm1) -> 0.5229 | E8: =IF(I8=0,$C8/M8*IF(Q8=0,1,Q8)-1,I8) -> -0.007403189066 | F8: =IF(J8=0,$C8/N8*IF(R8=0,1,R8)-1,J8) -> -0.01171801172 | G8: =IF(K8=0,$C8/O8*IF(S8=0,1,S8)-1,K8) -> 0.02022573982 | I8: =IF(SUMIFS(InTWRR!$D:$D,InTWRR!$B:$B,$A8,InTWRR!$A:$A,I$7)=0,0,SUMIFS(InTWRR!$D:$D,InTWRR!$B:$B,$A8,InTWRR!$A:$A,$C$7)/SUMIFS(InTWRR!$D:$D,InTWRR!$B:$B,$A8,InTWRR!$A:$A,I$7)-1) -> 0 | J8: =IF(SUMIFS(InTWRR!$D:$D,InTWRR!$B:$B,$A8,InTWRR!$A:$A,J$7)=0,0,SUMIFS(InTWRR!$D:$D,InTWRR!$B:$B,$A8,InTWRR!$A:$A,$C$7)/SUMIFS(InTWRR!$D:$D,InTWRR!$B:$B,$A8,InTWRR!$A:$A,J$7)-1) -> 0 | K8: =IF(SUMIFS(InTWRR!$D:$D,InTWRR!$B:$B,$A8,InTWRR!$A:$A,K$7)=0,0,SUMIFS(InTWRR!$D:$D,InTWRR!$B:$B,$A8,InTWRR!$A:$A,$C$7)/SUMIFS(InTWRR!$D:$D,InTWRR!$B:$B,$A8,InTWRR!$A:$A,K$7)-1) -> 0 | M8: =SUMIFS(InPricePM!$E:$E,InPricePM!$B:$B,$A8,InPricePM!$A:$A,M$7) -> 0.5268 | N8: =SUMIFS(InPricePM!$E:$E,InPricePM!$B:$B,$A8,InPricePM!$A:$A,N$7) -> 0.5291 | O8: =SUMIFS(InPricePM!$E:$E,InPricePM!$B:$B,$A8,InPricePM!$A:$A,O$7) -> 0.547 | Q8: =PRODUCT(IF(InDistMC!$B$3:$B$500=$A8,InDistMC!H$3:H$500)) -> 0 | R8: =PRODUCT(IF(InDistMC!$B$3:$B$500=$A8,InDistMC!I$3:I$500)) -> 0 | S8: =PRODUCT(IF(InDistMC!$B$3:$B$500=$A8,InDistMC!J$3:J$500)) -> 1.067247045
A9: GD1MYR | B9: BIMB-ARABESQUE i Global Dividend Fund 1 - RM CLASS | C9: =SUMIFS(InPricePM!$E:$E,InPricePM!$B:$B,$A9,InPricePM!$A:$A,ValueDateTm1) -> 0.4975 | E9: =IF(I9=0,$C9/M9*IF(Q9=0,1,Q9)-1,I9) -> -0.006391052526 | F9: =IF(J9=0,$C9/N9*IF(R9=0,1,R9)-1,J9) -> -0.01073772122 | G9: =IF(K9=0,$C9/O9*IF(S9=0,1,S9)-1,K9) -> 0.04810729373 | I9: =IF(SUMIFS(InTWRR!$D:$D,InTWRR!$B:$B,$A9,InTWRR!$A:$A,I$7)=0,0,SUMIFS(InTWRR!$D:$D,InTWRR!$B:$B,$A9,InTWRR!$A:$A,$C$7)/SUMIFS(InTWRR!$D:$D,InTWRR!$B:$B,$A9,InTWRR!$A:$A,I$7)-1) -> 0 | J9: =IF(SUMIFS(InTWRR!$D:$D,InTWRR!$B:$B,$A9,InTWRR!$A:$A,J$7)=0,0,SUMIFS(InTWRR!$D:$D,InTWRR!$B:$B,$A9,InTWRR!$A:$A,$C$7)/SUMIFS(InTWRR!$D:$D,InTWRR!$B:$B,$A9,InTWRR!$A:$A,J$7)-1) -> 0 | K9: =IF(SUMIFS(InTWRR!$D:$D,InTWRR!$B:$B,$A9,InTWRR!$A:$A,K$7)=0,0,SUMIFS(InTWRR!$D:$D,InTWRR!$B:$B,$A9,InTWRR!$A:$A,$C$7)/SUMIFS(InTWRR!$D:$D,InTWRR!$B:$B,$A9,InTWRR!$A:$A,K$7)-1) -> 0 | M9: =SUMIFS(InPricePM!$E:$E,InPricePM!$B:$B,$A9,InPricePM!$A:$A,M$7) -> 0.5007 | N9: =SUMIFS(InPricePM!$E:$E,InPricePM!$B:$B,$A9,InPricePM!$A:$A,N$7) -> 0.5029 | O9: =SUMIFS(InPricePM!$E:$E,InPricePM!$B:$B,$A9,InPricePM!$A:$A,O$7) -> 0.5082 | Q9: =PRODUCT(IF(InDistMC!$B$3:$B$500=$A9,InDistMC!H$3:H$500)) -> 0 | R9: =PRODUCT(IF(InDistMC!$B$3:$B$500=$A9,InDistMC!I$3:I$500)) -> 0 | S9: =PRODUCT(IF(InDistMC!$B$3:$B$500=$A9,InDistMC!J$3:J$500)) -> 1.070649501
A10: GD1SGD | B10: BIMB-ARABESQUE i Global Dividend Fund 1 - SGD CLASS | C10: =SUMIFS(InPricePM!$E:$E,InPricePM!$B:$B,$A10,InPricePM!$A:$A,ValueDateTm1) -> 0.4706 | E10: -0.00968013468 | F10: -0.00968013468 | G10: 0.02333251722 | I10: =IF(SUMIFS(InTWRR!$D:$D,InTWRR!$B:$B,$A10,InTWRR!$A:$A,I$7)=0,0,SUMIFS(InTWRR!$D:$D,InTWRR!$B:$B,$A10,InTWRR!$A:$A,$C$7)/SUMIFS(InTWRR!$D:$D,InTWRR!$B:$B,$A10,InTWRR!$A:$A,I$7)-1) -> 0 | J10: =IF(SUMIFS(InTWRR!$D:$D,InTWRR!$B:$B,$A10,InTWRR!$A:$A,J$7)=0,0,SUMIFS(InTWRR!$D:$D,InTWRR!$B:$B,$A10,InTWRR!$A:$A,$C$7)/SUMIFS(InTWRR!$D:$D,InTWRR!$B:$B,$A10,InTWRR!$A:$A,J$7)-1) -> 0 | K10: =IF(SUMIFS(InTWRR!$D:$D,InTWRR!$B:$B,$A10,InTWRR!$A:$A,K$7)=0,0,SUMIFS(InTWRR!$D:$D,InTWRR!$B:$B,$A10,InTWRR!$A:$A,$C$7)/SUMIFS(InTWRR!$D:$D,InTWRR!$B:$B,$A10,InTWRR!$A:$A,K$7)-1) -> 0 | M10: =SUMIFS(InPricePM!$E:$E,InPricePM!$B:$B,$A10,InPricePM!$A:$A,M$7) -> 0.4752 | N10: =SUMIFS(InPricePM!$E:$E,InPricePM!$B:$B,$A10,InPricePM!$A:$A,N$7) -> 0.4752 | O10: =SUMIFS(InPricePM!$E:$E,InPricePM!$B:$B,$A10,InPricePM!$A:$A,O$7) -> 0.4927 | Q10: =PRODUCT(IF(InDistMC!$B$3:$B$500=$A10,InDistMC!H$3:H$500)) -> 0 | R10: =PRODUCT(IF(InDistMC!$B$3:$B$500=$A10,InDistMC!I$3:I$500)) -> 0 | S10: =PRODUCT(IF(InDistMC!$B$3:$B$500=$A10,InDistMC!J$3:J$500)) -> 1.071389569
A11: GD1RMH | B11: BIMB-ARABESQUE i Global Dividend Fund 1 - RM HEDGED CLASS | C11: =SUMIFS(InPricePM!$E:$E,InPricePM!$B:$B,$A11,InPricePM!$A:$A,ValueDateTm1) -> 0.5016 | E11: =IF(I11=0,$C11/M11*IF(Q11=0,1,Q11)-1,I11) -> -0.008695652174 | F11: -0.01240401654 | G11: 0.000873508068 | I11: =IF(SUMIFS(InTWRR!$D:$D,InTWRR!$B:$B,$A11,InTWRR!$A:$A,I$7)=0,0,SUMIFS(InTWRR!$D:$D,InTWRR!$B:$B,$A11,InTWRR!$A:$A,$C$7)/SUMIFS(InTWRR!$D:$D,InTWRR!$B:$B,$A11,InTWRR!$A:$A,I$7)-1) -> 0 | J11: =IF(SUMIFS(InTWRR!$D:$D,InTWRR!$B:$B,$A11,InTWRR!$A:$A,J$7)=0,0,SUMIFS(InTWRR!$D:$D,InTWRR!$B:$B,$A11,InTWRR!$A:$A,$C$7)/SUMIFS(InTWRR!$D:$D,InTWRR!$B:$B,$A11,InTWRR!$A:$A,J$7)-1) -> 0 | K11: =IF(SUMIFS(InTWRR!$D:$D,InTWRR!$B:$B,$A11,InTWRR!$A:$A,K$7)=0,0,SUMIFS(InTWRR!$D:$D,InTWRR!$B:$B,$A11,InTWRR!$A:$A,$C$7)/SUMIFS(InTWRR!$D:$D,InTWRR!$B:$B,$A11,InTWRR!$A:$A,K$7)-1) -> 0 | M11: =SUMIFS(InPricePM!$E:$E,InPricePM!$B:$B,$A11,InPricePM!$A:$A,M$7) -> 0.506 | N11: =SUMIFS(InPricePM!$E:$E,InPricePM!$B:$B,$A11,InPricePM!$A:$A,N$7) -> 0.5079 | O11: =SUMIFS(InPricePM!$E:$E,InPricePM!$B:$B,$A11,InPricePM!$A:$A,O$7) -> 0.535 | Q11: =PRODUCT(IF(InDistMC!$B$3:$B$500=$A11,InDistMC!H$3:H$500)) -> 0 | R11: =PRODUCT(IF(InDistMC!$B$3:$B$500=$A11,InDistMC!I$3:I$500)) -> 0 | S11: =PRODUCT(IF(InDistMC!$B$3:$B$500=$A11,InDistMC!J$3:J$500)) -> 1.067518594
A12: BMSEFMYR | B12: BIMB-Arabesque Malaysia Shariah-ESG Equity Fund - RM CLASS | C12: =SUMIFS(InPricePM!$E:$E,InPricePM!$B:$B,$A12,InPricePM!$A:$A,ValueDateTm1) -> 0.3056 | E12: =IF(I12=0,$C12/M12*IF(Q12=0,1,Q12)-1,I12) -> 0.0009826400262 | F12: 0.008248102936 | G12: 0.01427149021 | I12: =IF(SUMIFS(InTWRR!$D:$D,InTWRR!$B:$B,$A12,InTWRR!$A:$A,I$7)=0,0,SUMIFS(InTWRR!$D:$D,InTWRR!$B:$B,$A12,InTWRR!$A:$A,$C$7)/SUMIFS(InTWRR!$D:$D,InTWRR!$B:$B,$A12,InTWRR!$A:$A,I$7)-1) -> 0 | J12: =IF(SUMIFS(InTWRR!$D:$D,InTWRR!$B:$B,$A12,InTWRR!$A:$A,J$7)=0,0,SUMIFS(InTWRR!$D:$D,InTWRR!$B:$B,$A12,InTWRR!$A:$A,$C$7)/SUMIFS(InTWRR!$D:$D,InTWRR!$B:$B,$A12,InTWRR!$A:$A,J$7)-1) -> 0 | K12: =IF(SUMIFS(InTWRR!$D:$D,InTWRR!$B:$B,$A12,InTWRR!$A:$A,K$7)=0,0,SUMIFS(InTWRR!$D:$D,InTWRR!$B:$B,$A12,InTWRR!$A:$A,$C$7)/SUMIFS(InTWRR!$D:$D,InTWRR!$B:$B,$A12,InTWRR!$A:$A,K$7)-1) -> 0 | M12: =SUMIFS(InPricePM!$E:$E,InPricePM!$B:$B,$A12,InPricePM!$A:$A,M$7) -> 0.3053 | N12: =SUMIFS(InPricePM!$E:$E,InPricePM!$B:$B,$A12,InPricePM!$A:$A,N$7) -> 0.3031 | O12: =SUMIFS(InPricePM!$E:$E,InPricePM!$B:$B,$A12,InPricePM!$A:$A,O$7) -> 0.3013 | Q12: =PRODUCT(IF(InDistMC!$B$3:$B$500=$A12,InDistMC!H$3:H$500)) -> 0 | R12: =PRODUCT(IF(InDistMC!$B$3:$B$500=$A12,InDistMC!I$3:I$500)) -> 0 | S12: =PRODUCT(IF(InDistMC!$B$3:$B$500=$A12,InDistMC!J$3:J$500)) -> 0
A13: BMSEFUSD | B13: BIMB-Arabesque Malaysia Shariah-ESG Equity Fund - USD CLASS | C13: =SUMIFS(InPricePM!$E:$E,InPricePM!$B:$B,$A13,InPricePM!$A:$A,ValueDateTm1) -> 0.3276 | E13: 0.0006108735492 | F13: 0.007070396557 | G13: -0.01146650573 | I13: =IF(SUMIFS(InTWRR!$D:$D,InTWRR!$B:$B,$A13,InTWRR!$A:$A,I$7)=0,0,SUMIFS(InTWRR!$D:$D,InTWRR!$B:$B,$A13,InTWRR!$A:$A,$C$7)/SUMIFS(InTWRR!$D:$D,InTWRR!$B:$B,$A13,InTWRR!$A:$A,I$7)-1) -> 0 | J13: =IF(SUMIFS(InTWRR!$D:$D,InTWRR!$B:$B,$A13,InTWRR!$A:$A,J$7)=0,0,SUMIFS(InTWRR!$D:$D,InTWRR!$B:$B,$A13,InTWRR!$A:$A,$C$7)/SUMIFS(InTWRR!$D:$D,InTWRR!$B:$B,$A13,InTWRR!$A:$A,J$7)-1) -> 0 | K13: =IF(SUMIFS(InTWRR!$D:$D,InTWRR!$B:$B,$A13,InTWRR!$A:$A,K$7)=0,0,SUMIFS(InTWRR!$D:$D,InTWRR!$B:$B,$A13,InTWRR!$A:$A,$C$7)/SUMIFS(InTWRR!$D:$D,InTWRR!$B:$B,$A13,InTWRR!$A:$A,K$7)-1) -> 0 | M13: =SUMIFS(InPricePM!$E:$E,InPricePM!$B:$B,$A13,InPricePM!$A:$A,M$7) -> 0.3274 | N13: =SUMIFS(InPricePM!$E:$E,InPricePM!$B:$B,$A13,InPricePM!$A:$A,N$7) -> 0.3253 | O13: =SUMIFS(InPricePM!$E:$E,InPricePM!$B:$B,$A13,InPricePM!$A:$A,O$7) -> 0.3314 | Q13: =PRODUCT(IF(InDistMC!$B$3:$B$500=$A13,InDistMC!H$3:H$500)) -> 0 | R13: =PRODUCT(IF(InDistMC!$B$3:$B$500=$A13,InDistMC!I$3:I$500)) -> 0 | S13: =PRODUCT(IF(InDistMC!$B$3:$B$500=$A13,InDistMC!J$3:J$500)) -> 0
A14: BMSEFSGD | B14: BIMB-Arabesque Malaysia Shariah-ESG Equity Fund - SGD CLASS | C14: =SUMIFS(InPricePM!$E:$E,InPricePM!$B:$B,$A14,InPricePM!$A:$A,ValueDateTm1) -> 0.3112 | E14: 0.004194901581 | F14: 0.01236174366 | G14: -0.005433045702 | I14: =IF(SUMIFS(InTWRR!$D:$D,InTWRR!$B:$B,$A14,InTWRR!$A:$A,I$7)=0,0,SUMIFS(InTWRR!$D:$D,InTWRR!$B:$B,$A14,InTWRR!$A:$A,$C$7)/SUMIFS(InTWRR!$D:$D,InTWRR!$B:$B,$A14,InTWRR!$A:$A,I$7)-1) -> 0 | J14: =IF(SUMIFS(InTWRR!$D:$D,InTWRR!$B:$B,$A14,InTWRR!$A:$A,J$7)=0,0,SUMIFS(InTWRR!$D:$D,InTWRR!$B:$B,$A14,InTWRR!$A:$A,$C$7)/SUMIFS(InTWRR!$D:$D,InTWRR!$B:$B,$A14,InTWRR!$A:$A,J$7)-1) -> 0 | K14: =IF(SUMIFS(InTWRR!$D:$D,InTWRR!$B:$B,$A14,InTWRR!$A:$A,K$7)=0,0,SUMIFS(InTWRR!$D:$D,InTWRR!$B:$B,$A14,InTWRR!$A:$A,$C$7)/SUMIFS(InTWRR!$D:$D,InTWRR!$B:$B,$A14,InTWRR!$A:$A,K$7)-1) -> 0 | M14: =SUMIFS(InPricePM!$E:$E,InPricePM!$B:$B,$A14,InPricePM!$A:$A,M$7) -> 0.3099 | N14: =SUMIFS(InPricePM!$E:$E,InPricePM!$B:$B,$A14,InPricePM!$A:$A,N$7) -> 0.3074 | O14: =SUMIFS(InPricePM!$E:$E,InPricePM!$B:$B,$A14,InPricePM!$A:$A,O$7) -> 0.3129 | Q14: =PRODUCT(IF(InDistMC!$B$3:$B$500=$A14,InDistMC!H$3:H$500)) -> 0 | R14: =PRODUCT(IF(InDistMC!$B$3:$B$500=$A14,InDistMC!I$3:I$500)) -> 0 | S14: =PRODUCT(IF(InDistMC!$B$3:$B$500=$A14,InDistMC!J$3:J$500)) -> 0
A15: BMSEFEUR | B15: BIMB-Arabesque Malaysia Shariah-ESG Equity Fund - EUR CLASS | C15: =SUMIFS(InPricePM!$E:$E,InPricePM!$B:$B,$A15,InPricePM!$A:$A,ValueDateTm1) -> 0.2873 | E15: -0.002776813606 | F15: 0.01233262861 | G15: -0.006913238852 | I15: =IF(SUMIFS(InTWRR!$D:$D,InTWRR!$B:$B,$A15,InTWRR!$A:$A,I$7)=0,0,SUMIFS(InTWRR!$D:$D,InTWRR!$B:$B,$A15,InTWRR!$A:$A,$C$7)/SUMIFS(InTWRR!$D:$D,InTWRR!$B:$B,$A15,InTWRR!$A:$A,I$7)-1) -> 0 | J15: =IF(SUMIFS(InTWRR!$D:$D,InTWRR!$B:$B,$A15,InTWRR!$A:$A,J$7)=0,0,SUMIFS(InTWRR!$D:$D,InTWRR!$B:$B,$A15,InTWRR!$A:$A,$C$7)/SUMIFS(InTWRR!$D:$D,InTWRR!$B:$B,$A15,InTWRR!$A:$A,J$7)-1) -> 0 | K15: =IF(SUMIFS(InTWRR!$D:$D,InTWRR!$B:$B,$A15,InTWRR!$A:$A,K$7)=0,0,SUMIFS(InTWRR!$D:$D,InTWRR!$B:$B,$A15,InTWRR!$A:$A,$C$7)/SUMIFS(InTWRR!$D:$D,InTWRR!$B:$B,$A15,InTWRR!$A:$A,K$7)-1) -> 0 | M15: =SUMIFS(InPricePM!$E:$E,InPricePM!$B:$B,$A15,InPricePM!$A:$A,M$7) -> 0.2881 | N15: =SUMIFS(InPricePM!$E:$E,InPricePM!$B:$B,$A15,InPricePM!$A:$A,N$7) -> 0.2838 | O15: =SUMIFS(InPricePM!$E:$E,InPricePM!$B:$B,$A15,InPricePM!$A:$A,O$7) -> 0.2893 | Q15: =PRODUCT(IF(InDistMC!$B$3:$B$500=$A15,InDistMC!H$3:H$500)) -> 0 | R15: =PRODUCT(IF(InDistMC!$B$3:$B$500=$A15,InDistMC!I$3:I$500)) -> 0 | S15: =PRODUCT(IF(InDistMC!$B$3:$B$500=$A15,InDistMC!J$3:J$500)) -> 0
A16: BAPACUSD | B16: BIMB-Arabesque Asia Pacific Shariah-ESG Equity Fund - USD CLASS | C16: =SUMIFS(InPricePM!$E:$E,InPricePM!$B:$B,$A16,InPricePM!$A:$A,ValueDateTm1) -> 0.2363 | E16: 0.002120441052 | F16: 0.006388415673 | G16: 0.0251626898 | I16: =IF(SUMIFS(InTWRR!$D:$D,InTWRR!$B:$B,$A16,InTWRR!$A:$A,I$7)=0,0,SUMIFS(InTWRR!$D:$D,InTWRR!$B:$B,$A16,InTWRR!$A:$A,$C$7)/SUMIFS(InTWRR!$D:$D,InTWRR!$B:$B,$A16,InTWRR!$A:$A,I$7)-1) -> 0 | J16: =IF(SUMIFS(InTWRR!$D:$D,InTWRR!$B:$B,$A16,InTWRR!$A:$A,J$7)=0,0,SUMIFS(InTWRR!$D:$D,InTWRR!$B:$B,$A16,InTWRR!$A:$A,$C$7)/SUMIFS(InTWRR!$D:$D,InTWRR!$B:$B,$A16,InTWRR!$A:$A,J$7)-1) -> 0 | K16: =IF(SUMIFS(InTWRR!$D:$D,InTWRR!$B:$B,$A16,InTWRR!$A:$A,K$7)=0,0,SUMIFS(InTWRR!$D:$D,InTWRR!$B:$B,$A16,InTWRR!$A:$A,$C$7)/SUMIFS(InTWRR!$D:$D,InTWRR!$B:$B,$A16,InTWRR!$A:$A,K$7)-1) -> 0 | M16: =SUMIFS(InPricePM!$E:$E,InPricePM!$B:$B,$A16,InPricePM!$A:$A,M$7) -> 0.2358 | N16: =SUMIFS(InPricePM!$E:$E,InPricePM!$B:$B,$A16,InPricePM!$A:$A,N$7) -> 0.2348 | O16: =SUMIFS(InPricePM!$E:$E,InPricePM!$B:$B,$A16,InPricePM!$A:$A,O$7) -> 0.2305 | Q16: =PRODUCT(IF(InDistMC!$B$3:$B$500=$A16,InDistMC!H$3:H$500)) -> 0 | R16: =PRODUCT(IF(InDistMC!$B$3:$B$500=$A16,InDistMC!I$3:I$500)) -> 0 | S16: =PRODUCT(IF(InDistMC!$B$3:$B$500=$A16,InDistMC!J$3:J$500)) -> 0
A17: BAPACMYR | B17: BIMB-Arabesque Asia Pacific Shariah-ESG Equity Fund - RM CLASS | C17: =SUMIFS(InPricePM!$E:$E,InPricePM!$B:$B,$A17,InPricePM!$A:$A,ValueDateTm1) -> 0.2475 | E17: 0.0028363047 | F17: 0.007326007326 | G17: 0.0527435134 | I17: =IF(SUMIFS(InTWRR!$D:$D,InTWRR!$B:$B,$A17,InTWRR!$A:$A,I$7)=0,0,SUMIFS(InTWRR!$D:$D,InTWRR!$B:$B,$A17,InTWRR!$A:$A,$C$7)/SUMIFS(InTWRR!$D:$D,InTWRR!$B:$B,$A17,InTWRR!$A:$A,I$7)-1) -> 0 | J17: =IF(SUMIFS(InTWRR!$D:$D,InTWRR!$B:$B,$A17,InTWRR!$A:$A,J$7)=0,0,SUMIFS(InTWRR!$D:$D,InTWRR!$B:$B,$A17,InTWRR!$A:$A,$C$7)/SUMIFS(InTWRR!$D:$D,InTWRR!$B:$B,$A17,InTWRR!$A:$A,J$7)-1) -> 0 | K17: =IF(SUMIFS(InTWRR!$D:$D,InTWRR!$B:$B,$A17,InTWRR!$A:$A,K$7)=0,0,SUMIFS(InTWRR!$D:$D,InTWRR!$B:$B,$A17,InTWRR!$A:$A,$C$7)/SUMIFS(InTWRR!$D:$D,InTWRR!$B:$B,$A17,InTWRR!$A:$A,K$7)-1) -> 0 | M17: =SUMIFS(InPricePM!$E:$E,InPricePM!$B:$B,$A17,InPricePM!$A:$A,M$7) -> 0.2468 | N17: =SUMIFS(InPricePM!$E:$E,InPricePM!$B:$B,$A17,InPricePM!$A:$A,N$7) -> 0.2457 | O17: =SUMIFS(InPricePM!$E:$E,InPricePM!$B:$B,$A17,InPricePM!$A:$A,O$7) -> 0.2351 | Q17: =PRODUCT(IF(InDistMC!$B$3:$B$500=$A17,InDistMC!H$3:H$500)) -> 0 | R17: =PRODUCT(IF(InDistMC!$B$3:$B$500=$A17,InDistMC!I$3:I$500)) -> 0 | S17: =PRODUCT(IF(InDistMC!$B$3:$B$500=$A17,InDistMC!J$3:J$500)) -> 0
A18: BSF-Class A | B18: BIMB ESG Sukuk Fund - Class A | C18: =SUMIFS(InPricePM!$E:$E,InPricePM!$B:$B,$A18,InPricePM!$A:$A,ValueDateTm1) -> 0.2512 | E18: 0 | F18: 0 | G18: -0.008290564548 | I18: =IF(SUMIFS(InTWRR!$D:$D,InTWRR!$B:$B,$A18,InTWRR!$A:$A,I$7)=0,0,SUMIFS(InTWRR!$D:$D,InTWRR!$B:$B,$A18,InTWRR!$A:$A,$C$7)/SUMIFS(InTWRR!$D:$D,InTWRR!$B:$B,$A18,InTWRR!$A:$A,I$7)-1) -> 0 | J18: =IF(SUMIFS(InTWRR!$D:$D,InTWRR!$B:$B,$A18,InTWRR!$A:$A,J$7)=0,0,SUMIFS(InTWRR!$D:$D,InTWRR!$B:$B,$A18,InTWRR!$A:$A,$C$7)/SUMIFS(InTWRR!$D:$D,InTWRR!$B:$B,$A18,InTWRR!$A:$A,J$7)-1) -> 0 | K18: =IF(SUMIFS(InTWRR!$D:$D,InTWRR!$B:$B,$A18,InTWRR!$A:$A,K$7)=0,0,SUMIFS(InTWRR!$D:$D,InTWRR!$B:$B,$A18,InTWRR!$A:$A,$C$7)/SUMIFS(InTWRR!$D:$D,InTWRR!$B:$B,$A18,InTWRR!$A:$A,K$7)-1) -> 0 | M18: =SUMIFS(InPricePM!$E:$E,InPricePM!$B:$B,$A18,InPricePM!$A:$A,M$7) -> 0.2512 | N18: =SUMIFS(InPricePM!$E:$E,InPricePM!$B:$B,$A18,InPricePM!$A:$A,N$7) -> 0.2512 | O18: =SUMIFS(InPricePM!$E:$E,InPricePM!$B:$B,$A18,InPricePM!$A:$A,O$7) -> 0.2533 | Q18: =PRODUCT(IF(InDistMC!$B$3:$B$500=$A18,InDistMC!H$3:H$500)) -> 0 | R18: =PRODUCT(IF(InDistMC!$B$3:$B$500=$A18,InDistMC!I$3:I$500)) -> 0 | S18: =PRODUCT(IF(InDistMC!$B$3:$B$500=$A18,InDistMC!J$3:J$500)) -> 0
A19: BSF-Class B | B19: BIMB ESG Sukuk Fund - Class B | C19: =SUMIFS(InPricePM!$E:$E,InPricePM!$B:$B,$A19,InPricePM!$A:$A,ValueDateTm1) -> 0.25 | E19: -0.0007993605116 | F19: -0.001198561726 | G19: -0.0336296869 | I19: =IF(SUMIFS(InTWRR!$D:$D,InTWRR!$B:$B,$A19,InTWRR!$A:$A,I$7)=0,0,SUMIFS(InTWRR!$D:$D,InTWRR!$B:$B,$A19,InTWRR!$A:$A,$C$7)/SUMIFS(InTWRR!$D:$D,InTWRR!$B:$B,$A19,InTWRR!$A:$A,I$7)-1) -> 0 | J19: =IF(SUMIFS(InTWRR!$D:$D,InTWRR!$B:$B,$A19,InTWRR!$A:$A,J$7)=0,0,SUMIFS(InTWRR!$D:$D,InTWRR!$B:$B,$A19,InTWRR!$A:$A,$C$7)/SUMIFS(InTWRR!$D:$D,InTWRR!$B:$B,$A19,InTWRR!$A:$A,J$7)-1) -> 0 | K19: =IF(SUMIFS(InTWRR!$D:$D,InTWRR!$B:$B,$A19,InTWRR!$A:$A,K$7)=0,0,SUMIFS(InTWRR!$D:$D,InTWRR!$B:$B,$A19,InTWRR!$A:$A,$C$7)/SUMIFS(InTWRR!$D:$D,InTWRR!$B:$B,$A19,InTWRR!$A:$A,K$7)-1) -> 0 | M19: =SUMIFS(InPricePM!$E:$E,InPricePM!$B:$B,$A19,InPricePM!$A:$A,M$7) -> 0.2502 | N19: =SUMIFS(InPricePM!$E:$E,InPricePM!$B:$B,$A19,InPricePM!$A:$A,N$7) -> 0.2503 | O19: =SUMIFS(InPricePM!$E:$E,InPricePM!$B:$B,$A19,InPricePM!$A:$A,O$7) -> 0.2587 | Q19: =PRODUCT(IF(InDistMC!$B$3:$B$500=$A19,InDistMC!H$3:H$500)) -> 0 | R19: =PRODUCT(IF(InDistMC!$B$3:$B$500=$A19,InDistMC!I$3:I$500)) -> 0 | S19: =PRODUCT(IF(InDistMC!$B$3:$B$500=$A19,InDistMC!J$3:J$500)) -> 0
A20: BSF-Class C | B20: BIMB ESG Sukuk Fund - Class C | C20: =SUMIFS(InPricePM!$E:$E,InPricePM!$B:$B,$A20,InPricePM!$A:$A,ValueDateTm1) -> 0.2416 | E20: 0.002489626556 | F20: 0.003322259136 | G20: -0.02815768302 | I20: =IF(SUMIFS(InTWRR!$D:$D,InTWRR!$B:$B,$A20,InTWRR!$A:$A,I$7)=0,0,SUMIFS(InTWRR!$D:$D,InTWRR!$B:$B,$A20,InTWRR!$A:$A,$C$7)/SUMIFS(InTWRR!$D:$D,InTWRR!$B:$B,$A20,InTWRR!$A:$A,I$7)-1) -> 0 | J20: =IF(SUMIFS(InTWRR!$D:$D,InTWRR!$B:$B,$A20,InTWRR!$A:$A,J$7)=0,0,SUMIFS(InTWRR!$D:$D,InTWRR!$B:$B,$A20,InTWRR!$A:$A,$C$7)/SUMIFS(InTWRR!$D:$D,InTWRR!$B:$B,$A20,InTWRR!$A:$A,J$7)-1) -> 0 | K20: =IF(SUMIFS(InTWRR!$D:$D,InTWRR!$B:$B,$A20,InTWRR!$A:$A,K$7)=0,0,SUMIFS(InTWRR!$D:$D,InTWRR!$B:$B,$A20,InTWRR!$A:$A,$C$7)/SUMIFS(InTWRR!$D:$D,InTWRR!$B:$B,$A20,InTWRR!$A:$A,K$7)-1) -> 0 | M20: =SUMIFS(InPricePM!$E:$E,InPricePM!$B:$B,$A20,InPricePM!$A:$A,M$7) -> 0.241 | N20: =SUMIFS(InPricePM!$E:$E,InPricePM!$B:$B,$A20,InPricePM!$A:$A,N$7) -> 0.2408 | O20: =SUMIFS(InPricePM!$E:$E,InPricePM!$B:$B,$A20,InPricePM!$A:$A,O$7) -> 0.2486 | Q20: =PRODUCT(IF(InDistMC!$B$3:$B$500=$A20,InDistMC!H$3:H$500)) -> 0 | R20: =PRODUCT(IF(InDistMC!$B$3:$B$500=$A20,InDistMC!I$3:I$500)) -> 0 | S20: =PRODUCT(IF(InDistMC!$B$3:$B$500=$A20,InDistMC!J$3:J$500)) -> 0
A21: BSF-Class D | B21: BIMB ESG Sukuk Fund - Class D | C21: =SUMIFS(InPricePM!$E:$E,InPricePM!$B:$B,$A21,InPricePM!$A:$A,ValueDateTm1) -> 0.2512 | E21: 0 | F21: 0 | G21: -0.008290564548 | I21: =IF(SUMIFS(InTWRR!$D:$D,InTWRR!$B:$B,$A21,InTWRR!$A:$A,I$7)=0,0,SUMIFS(InTWRR!$D:$D,InTWRR!$B:$B,$A21,InTWRR!$A:$A,$C$7)/SUMIFS(InTWRR!$D:$D,InTWRR!$B:$B,$A21,InTWRR!$A:$A,I$7)-1) -> 0 | J21: =IF(SUMIFS(InTWRR!$D:$D,InTWRR!$B:$B,$A21,InTWRR!$A:$A,J$7)=0,0,SUMIFS(InTWRR!$D:$D,InTWRR!$B:$B,$A21,InTWRR!$A:$A,$C$7)/SUMIFS(InTWRR!$D:$D,InTWRR!$B:$B,$A21,InTWRR!$A:$A,J$7)-1) -> 0 | K21: =IF(SUMIFS(InTWRR!$D:$D,InTWRR!$B:$B,$A21,InTWRR!$A:$A,K$7)=0,0,SUMIFS(InTWRR!$D:$D,InTWRR!$B:$B,$A21,InTWRR!$A:$A,$C$7)/SUMIFS(InTWRR!$D:$D,InTWRR!$B:$B,$A21,InTWRR!$A:$A,K$7)-1) -> 0 | M21: =SUMIFS(InPricePM!$E:$E,InPricePM!$B:$B,$A21,InPricePM!$A:$A,M$7) -> 0.2512 | N21: =SUMIFS(InPricePM!$E:$E,InPricePM!$B:$B,$A21,InPricePM!$A:$A,N$7) -> 0.2512 | O21: =SUMIFS(InPricePM!$E:$E,InPricePM!$B:$B,$A21,InPricePM!$A:$A,O$7) -> 0.2533 | Q21: =PRODUCT(IF(InDistMC!$B$3:$B$500=$A21,InDistMC!H$3:H$500)) -> 0 | R21: =PRODUCT(IF(InDistMC!$B$3:$B$500=$A21,InDistMC!I$3:I$500)) -> 0 | S21: =PRODUCT(IF(InDistMC!$B$3:$B$500=$A21,InDistMC!J$3:J$500)) -> 0
A22: BSF-Class E | B22: BIMB ESG Sukuk Fund - Class E | C22: =SUMIFS(InPricePM!$E:$E,InPricePM!$B:$B,$A22,InPricePM!$A:$A,ValueDateTm1) -> 0.25 | E22: -0.0007993605116 | F22: -0.001198561726 | G22: -0.0336296869 | I22: =IF(SUMIFS(InTWRR!$D:$D,InTWRR!$B:$B,$A22,InTWRR!$A:$A,I$7)=0,0,SUMIFS(InTWRR!$D:$D,InTWRR!$B:$B,$A22,InTWRR!$A:$A,$C$7)/SUMIFS(InTWRR!$D:$D,InTWRR!$B:$B,$A22,InTWRR!$A:$A,I$7)-1) -> 0 | J22: =IF(SUMIFS(InTWRR!$D:$D,InTWRR!$B:$B,$A22,InTWRR!$A:$A,J$7)=0,0,SUMIFS(InTWRR!$D:$D,InTWRR!$B:$B,$A22,InTWRR!$A:$A,$C$7)/SUMIFS(InTWRR!$D:$D,InTWRR!$B:$B,$A22,InTWRR!$A:$A,J$7)-1) -> 0 | K22: =IF(SUMIFS(InTWRR!$D:$D,InTWRR!$B:$B,$A22,InTWRR!$A:$A,K$7)=0,0,SUMIFS(InTWRR!$D:$D,InTWRR!$B:$B,$A22,InTWRR!$A:$A,$C$7)/SUMIFS(InTWRR!$D:$D,InTWRR!$B:$B,$A22,InTWRR!$A:$A,K$7)-1) -> 0 | M22: =SUMIFS(InPricePM!$E:$E,InPricePM!$B:$B,$A22,InPricePM!$A:$A,M$7) -> 0.2502 | N22: =SUMIFS(InPricePM!$E:$E,InPricePM!$B:$B,$A22,InPricePM!$A:$A,N$7) -> 0.2503 | O22: =SUMIFS(InPricePM!$E:$E,InPricePM!$B:$B,$A22,InPricePM!$A:$A,O$7) -> 0.2587 | Q22: =PRODUCT(IF(InDistMC!$B$3:$B$500=$A22,InDistMC!H$3:H$500)) -> 0 | R22: =PRODUCT(IF(InDistMC!$B$3:$B$500=$A22,InDistMC!I$3:I$500)) -> 0 | S22: =PRODUCT(IF(InDistMC!$B$3:$B$500=$A22,InDistMC!J$3:J$500)) -> 0
A23: BIPF | B23: Bank Islam Premier Fund | C23: =SUMIFS(InPricePM!$E:$E,InPricePM!$B:$B,$A23,InPricePM!$A:$A,ValueDateTm1) -> 0.9951 | E23: -0.005794784694 | F23: -0.002889021717 | G23: 0.0009 | I23: =IF(SUMIFS(InTWRR!$D:$D,InTWRR!$B:$B,$A23,InTWRR!$A:$A,I$7)=0,0,SUMIFS(InTWRR!$D:$D,InTWRR!$B:$B,$A23,InTWRR!$A:$A,$C$7)/SUMIFS(InTWRR!$D:$D,InTWRR!$B:$B,$A23,InTWRR!$A:$A,I$7)-1) -> 0 | J23: =IF(SUMIFS(InTWRR!$D:$D,InTWRR!$B:$B,$A23,InTWRR!$A:$A,J$7)=0,0,SUMIFS(InTWRR!$D:$D,InTWRR!$B:$B,$A23,InTWRR!$A:$A,$C$7)/SUMIFS(InTWRR!$D:$D,InTWRR!$B:$B,$A23,InTWRR!$A:$A,J$7)-1) -> -0.002889021717 | K23: =IF(SUMIFS(InTWRR!$D:$D,InTWRR!$B:$B,$A23,InTWRR!$A:$A,K$7)=0,0,SUMIFS(InTWRR!$D:$D,InTWRR!$B:$B,$A23,InTWRR!$A:$A,$C$7)/SUMIFS(InTWRR!$D:$D,InTWRR!$B:$B,$A23,InTWRR!$A:$A,K$7)-1) -> 0.0009 | M23: =SUMIFS(InPricePM!$E:$E,InPricePM!$B:$B,$A23,InPricePM!$A:$A,M$7) -> 1.0009 | N23: =SUMIFS(InPricePM!$E:$E,InPricePM!$B:$B,$A23,InPricePM!$A:$A,N$7) -> 1.0038 | O23: =SUMIFS(InPricePM!$E:$E,InPricePM!$B:$B,$A23,InPricePM!$A:$A,O$7) -> 1
A24: BGSEFMYR | B24: Bimb-Arabesque Global Shariah Sustainable Equity Fund - RM Class | C24: =SUMIFS(InPricePM!$E:$E,InPricePM!$B:$B,$A24,InPricePM!$A:$A,ValueDateTm1) -> 0.2488 | E24: =IF(I24=0,$C24/M24*IF(Q24=0,1,Q24)-1,I24) -> -0.005595523581 | F24: =IFERROR(IF(J24=0,$C24/N24*IF(R24=0,1,R24)-1,J24),0) -> -0.008369868473 | G24: =IFERROR(IF(K24=0,$C24/O24*IF(S24=0,1,S24)-1,K24),0) -> 0 | I24: =IF(SUMIFS(InTWRR!$D:$D,InTWRR!$B:$B,$A24,InTWRR!$A:$A,I$7)=0,0,SUMIFS(InTWRR!$D:$D,InTWRR!$B:$B,$A24,InTWRR!$A:$A,$C$7)/SUMIFS(InTWRR!$D:$D,InTWRR!$B:$B,$A24,InTWRR!$A:$A,I$7)-1) -> 0 | J24: =IF(SUMIFS(InTWRR!$D:$D,InTWRR!$B:$B,$A24,InTWRR!$A:$A,J$7)=0,0,SUMIFS(InTWRR!$D:$D,InTWRR!$B:$B,$A24,InTWRR!$A:$A,$C$7)/SUMIFS(InTWRR!$D:$D,InTWRR!$B:$B,$A24,InTWRR!$A:$A,J$7)-1) -> 0 | K24: =IF(SUMIFS(InTWRR!$D:$D,InTWRR!$B:$B,$A24,InTWRR!$A:$A,K$7)=0,0,SUMIFS(InTWRR!$D:$D,InTWRR!$B:$B,$A24,InTWRR!$A:$A,$C$7)/SUMIFS(InTWRR!$D:$D,InTWRR!$B:$B,$A24,InTWRR!$A:$A,K$7)-1) -> 0 | M24: =SUMIFS(InPricePM!$E:$E,InPricePM!$B:$B,$A24,InPricePM!$A:$A,M$7) -> 0.2502 | N24: =SUMIFS(InPricePM!$E:$E,InPricePM!$B:$B,$A24,InPricePM!$A:$A,N$7) -> 0.2509 | O24: =SUMIFS(InPricePM!$E:$E,InPricePM!$B:$B,$A24,InPricePM!$A:$A,O$7) -> 0 | Q24: =PRODUCT(IF(InDistMC!$B$3:$B$500=$A24,InDistMC!H$3:H$500)) -> 0 | R24: =PRODUCT(IF(InDistMC!$B$3:$B$500=$A24,InDistMC!I$3:I$500)) -> 0 | S24: =PRODUCT(IF(InDistMC!$B$3:$B$500=$A24,InDistMC!J$3:J$500)) -> 0
A25: BGSEFRMH | B25: Bimb-Arabesque Global Shariah Sustainable Equity Fund - RM Hedged Class | C25: =SUMIFS(InPricePM!$E:$E,InPricePM!$B:$B,$A25,InPricePM!$A:$A,ValueDateTm1) -> 0.2486 | E25: -0.007584830339 | F25: =IFERROR(IF(J25=0,$C25/N25*IF(R25=0,1,R25)-1,J25),0) -> -0.009956192752 | G25: =IFERROR(IF(K25=0,$C25/O25*IF(S25=0,1,S25)-1,K25),0) -> 0 | I25: =IF(SUMIFS(InTWRR!$D:$D,InTWRR!$B:$B,$A25,InTWRR!$A:$A,I$7)=0,0,SUMIFS(InTWRR!$D:$D,InTWRR!$B:$B,$A25,InTWRR!$A:$A,$C$7)/SUMIFS(InTWRR!$D:$D,InTWRR!$B:$B,$A25,InTWRR!$A:$A,I$7)-1) -> 0 | J25: =IF(SUMIFS(InTWRR!$D:$D,InTWRR!$B:$B,$A25,InTWRR!$A:$A,J$7)=0,0,SUMIFS(InTWRR!$D:$D,InTWRR!$B:$B,$A25,InTWRR!$A:$A,$C$7)/SUMIFS(InTWRR!$D:$D,InTWRR!$B:$B,$A25,InTWRR!$A:$A,J$7)-1) -> 0 | K25: =IF(SUMIFS(InTWRR!$D:$D,InTWRR!$B:$B,$A25,InTWRR!$A:$A,K$7)=0,0,SUMIFS(InTWRR!$D:$D,InTWRR!$B:$B,$A25,InTWRR!$A:$A,$C$7)/SUMIFS(InTWRR!$D:$D,InTWRR!$B:$B,$A25,InTWRR!$A:$A,K$7)-1) -> 0 | M25: =SUMIFS(InPricePM!$E:$E,InPricePM!$B:$B,$A25,InPricePM!$A:$A,M$7) -> 0.2505 | N25: =SUMIFS(InPricePM!$E:$E,InPricePM!$B:$B,$A25,InPricePM!$A:$A,N$7) -> 0.2511 | O25: =SUMIFS(InPricePM!$E:$E,InPricePM!$B:$B,$A25,InPricePM!$A:$A,O$7) -> 0 | Q25: =PRODUCT(IF(InDistMC!$B$3:$B$500=$A25,InDistMC!H$3:H$500)) -> 0 | R25: =PRODUCT(IF(InDistMC!$B$3:$B$500=$A25,InDistMC!I$3:I$500)) -> 0 | S25: =PRODUCT(IF(InDistMC!$B$3:$B$500=$A25,InDistMC!J$3:J$500)) -> 0
A26: BGSEFUSD | B26: Bimb-Arabesque Global Shariah Sustainable Equity Fund - USD Class | C26: =SUMIFS(InPricePM!$E:$E,InPricePM!$B:$B,$A26,InPricePM!$A:$A,ValueDateTm1) -> 0.2497 | E26: -0.00676213206 | F26: -0.009520031733 | G26: 0 | I26: =IF(SUMIFS(InTWRR!$D:$D,InTWRR!$B:$B,$A26,InTWRR!$A:$A,I$7)=0,0,SUMIFS(InTWRR!$D:$D,InTWRR!$B:$B,$A26,InTWRR!$A:$A,$C$7)/SUMIFS(InTWRR!$D:$D,InTWRR!$B:$B,$A26,InTWRR!$A:$A,I$7)-1) -> 0 | J26: =IF(SUMIFS(InTWRR!$D:$D,InTWRR!$B:$B,$A26,InTWRR!$A:$A,J$7)=0,0,SUMIFS(InTWRR!$D:$D,InTWRR!$B:$B,$A26,InTWRR!$A:$A,$C$7)/SUMIFS(InTWRR!$D:$D,InTWRR!$B:$B,$A26,InTWRR!$A:$A,J$7)-1) -> 0 | K26: =IF(SUMIFS(InTWRR!$D:$D,InTWRR!$B:$B,$A26,InTWRR!$A:$A,K$7)=0,0,SUMIFS(InTWRR!$D:$D,InTWRR!$B:$B,$A26,InTWRR!$A:$A,$C$7)/SUMIFS(InTWRR!$D:$D,InTWRR!$B:$B,$A26,InTWRR!$A:$A,K$7)-1) -> 0 | M26: =SUMIFS(InPricePM!$E:$E,InPricePM!$B:$B,$A26,InPricePM!$A:$A,M$7) -> 0.2514 | N26: =SUMIFS(InPricePM!$E:$E,InPricePM!$B:$B,$A26,InPricePM!$A:$A,N$7) -> 0.2521 | O26: =SUMIFS(InPricePM!$E:$E,InPricePM!$B:$B,$A26,InPricePM!$A:$A,O$7) -> 0 | Q26: =PRODUCT(IF(InDistMC!$B$3:$B$500=$A26,InDistMC!H$3:H$500)) -> 0 | R26: =PRODUCT(IF(InDistMC!$B$3:$B$500=$A26,InDistMC!I$3:I$500)) -> 0 | S26: =PRODUCT(IF(InDistMC!$B$3:$B$500=$A26,InDistMC!J$3:J$500)) -> 0
A27: BGSEFAUD | B27: Bimb-Arabesque Global Shariah Sustainable Equity Fund - AUD Class | C27: =SUMIFS(InPricePM!$E:$E,InPricePM!$B:$B,$A27,InPricePM!$A:$A,ValueDateTm1) -> 0.2449 | E27: -0.01725521669 | F27: -0.01050505051 | G27: 0 | I27: =IF(SUMIFS(InTWRR!$D:$D,InTWRR!$B:$B,$A27,InTWRR!$A:$A,I$7)=0,0,SUMIFS(InTWRR!$D:$D,InTWRR!$B:$B,$A27,InTWRR!$A:$A,$C$7)/SUMIFS(InTWRR!$D:$D,InTWRR!$B:$B,$A27,InTWRR!$A:$A,I$7)-1) -> 0 | J27: =IF(SUMIFS(InTWRR!$D:$D,InTWRR!$B:$B,$A27,InTWRR!$A:$A,J$7)=0,0,SUMIFS(InTWRR!$D:$D,InTWRR!$B:$B,$A27,InTWRR!$A:$A,$C$7)/SUMIFS(InTWRR!$D:$D,InTWRR!$B:$B,$A27,InTWRR!$A:$A,J$7)-1) -> 0 | K27: =IF(SUMIFS(InTWRR!$D:$D,InTWRR!$B:$B,$A27,InTWRR!$A:$A,K$7)=0,0,SUMIFS(InTWRR!$D:$D,InTWRR!$B:$B,$A27,InTWRR!$A:$A,$C$7)/SUMIFS(InTWRR!$D:$D,InTWRR!$B:$B,$A27,InTWRR!$A:$A,K$7)-1) -> 0 | M27: =SUMIFS(InPricePM!$E:$E,InPricePM!$B:$B,$A27,InPricePM!$A:$A,M$7) -> 0.2492 | N27: =SUMIFS(InPricePM!$E:$E,InPricePM!$B:$B,$A27,InPricePM!$A:$A,N$7) -> 0.2475 | O27: =SUMIFS(InPricePM!$E:$E,InPricePM!$B:$B,$A27,InPricePM!$A:$A,O$7) -> 0 | Q27: =PRODUCT(IF(InDistMC!$B$3:$B$500=$A27,InDistMC!H$3:H$500)) -> 0 | R27: =PRODUCT(IF(InDistMC!$B$3:$B$500=$A27,InDistMC!I$3:I$500)) -> 0 | S27: =PRODUCT(IF(InDistMC!$B$3:$B$500=$A27,InDistMC!J$3:J$500)) -> 0
A28: BGSEFSGD | B28: Bimb-Arabesque Global Shariah Sustainable Equity Fund - SGD Class | C28: =SUMIFS(InPricePM!$E:$E,InPricePM!$B:$B,$A28,InPricePM!$A:$A,ValueDateTm1) -> 0.2459 | E28: -0.008867392181 | F28: -0.007667473769 | G28: 0 | I28: =IF(SUMIFS(InTWRR!$D:$D,InTWRR!$B:$B,$A28,InTWRR!$A:$A,I$7)=0,0,SUMIFS(InTWRR!$D:$D,InTWRR!$B:$B,$A28,InTWRR!$A:$A,$C$7)/SUMIFS(InTWRR!$D:$D,InTWRR!$B:$B,$A28,InTWRR!$A:$A,I$7)-1) -> 0 | J28: =IF(SUMIFS(InTWRR!$D:$D,InTWRR!$B:$B,$A28,InTWRR!$A:$A,J$7)=0,0,SUMIFS(InTWRR!$D:$D,InTWRR!$B:$B,$A28,InTWRR!$A:$A,$C$7)/SUMIFS(InTWRR!$D:$D,InTWRR!$B:$B,$A28,InTWRR!$A:$A,J$7)-1) -> 0 | K28: =IF(SUMIFS(InTWRR!$D:$D,InTWRR!$B:$B,$A28,InTWRR!$A:$A,K$7)=0,0,SUMIFS(InTWRR!$D:$D,InTWRR!$B:$B,$A28,InTWRR!$A:$A,$C$7)/SUMIFS(InTWRR!$D:$D,InTWRR!$B:$B,$A28,InTWRR!$A:$A,K$7)-1) -> 0 | M28: =SUMIFS(InPricePM!$E:$E,InPricePM!$B:$B,$A28,InPricePM!$A:$A,M$7) -> 0.2481 | N28: =SUMIFS(InPricePM!$E:$E,InPricePM!$B:$B,$A28,InPricePM!$A:$A,N$7) -> 0.2478 | O28: =SUMIFS(InPricePM!$E:$E,InPricePM!$B:$B,$A28,InPricePM!$A:$A,O$7) -> 0 | Q28: =PRODUCT(IF(InDistMC!$B$3:$B$500=$A28,InDistMC!H$3:H$500)) -> 0 | R28: =PRODUCT(IF(InDistMC!$B$3:$B$500=$A28,InDistMC!I$3:I$500)) -> 0 | S28: =PRODUCT(IF(InDistMC!$B$3:$B$500=$A28,InDistMC!J$3:J$500)) -> 0
A29: MWFMYR | B29: Makmur myWakaf Fund - RM CLASS | C29: =SUMIFS(InPricePM!$E:$E,InPricePM!$B:$B,$A29,InPricePM!$A:$A,ValueDateTm1) -> 0.2469 | E29: -0.0004048582996 | F29: =IFERROR(IF(J29=0,$C29/N29*IF(R29=0,1,R29)-1,J29),0) -> 0.007343941248 | G29: =IFERROR(IF(K29=0,$C29/O29*IF(S29=0,1,S29)-1,K29),0) -> 0 | I29: =IF(SUMIFS(InTWRR!$D:$D,InTWRR!$B:$B,$A29,InTWRR!$A:$A,I$7)=0,0,SUMIFS(InTWRR!$D:$D,InTWRR!$B:$B,$A29,InTWRR!$A:$A,$C$7)/SUMIFS(InTWRR!$D:$D,InTWRR!$B:$B,$A29,InTWRR!$A:$A,I$7)-1) -> 0 | J29: =IF(SUMIFS(InTWRR!$D:$D,InTWRR!$B:$B,$A29,InTWRR!$A:$A,J$7)=0,0,SUMIFS(InTWRR!$D:$D,InTWRR!$B:$B,$A29,InTWRR!$A:$A,$C$7)/SUMIFS(InTWRR!$D:$D,InTWRR!$B:$B,$A29,InTWRR!$A:$A,J$7)-1) -> 0 | K29: =IF(SUMIFS(InTWRR!$D:$D,InTWRR!$B:$B,$A29,InTWRR!$A:$A,K$7)=0,0,SUMIFS(InTWRR!$D:$D,InTWRR!$B:$B,$A29,InTWRR!$A:$A,$C$7)/SUMIFS(InTWRR!$D:$D,InTWRR!$B:$B,$A29,InTWRR!$A:$A,K$7)-1) -> 0 | M29: =SUMIFS(InPricePM!$E:$E,InPricePM!$B:$B,$A29,InPricePM!$A:$A,M$7) -> 0.247 | N29: =SUMIFS(InPricePM!$E:$E,InPricePM!$B:$B,$A29,InPricePM!$A:$A,N$7) -> 0.2451 | O29: =SUMIFS(InPricePM!$E:$E,InPricePM!$B:$B,$A29,InPricePM!$A:$A,O$7) -> 0 | Q29: =PRODUCT(IF(InDistMC!$B$3:$B$500=$A29,InDistMC!H$3:H$500)) -> 0 | R29: =PRODUCT(IF(InDistMC!$B$3:$B$500=$A29,InDistMC!I$3:I$500)) -> 0 | S29: =PRODUCT(IF(InDistMC!$B$3:$B$500=$A29,InDistMC!J$3:J$500)) -> 0
A30: MWFUSD | B30: Makmur myWakaf Fund - USD CLASS | C30: =SUMIFS(InPricePM!$E:$E,InPricePM!$B:$B,$A30,InPricePM!$A:$A,ValueDateTm1) -> 0.2473 | E30: -0.001614856681 | F30: 0.006102522376 | G30: 0 | I30: =IF(SUMIFS(InTWRR!$D:$D,InTWRR!$B:$B,$A30,InTWRR!$A:$A,I$7)=0,0,SUMIFS(InTWRR!$D:$D,InTWRR!$B:$B,$A30,InTWRR!$A:$A,$C$7)/SUMIFS(InTWRR!$D:$D,InTWRR!$B:$B,$A30,InTWRR!$A:$A,I$7)-1) -> 0 | J30: =IF(SUMIFS(InTWRR!$D:$D,InTWRR!$B:$B,$A30,InTWRR!$A:$A,J$7)=0,0,SUMIFS(InTWRR!$D:$D,InTWRR!$B:$B,$A30,InTWRR!$A:$A,$C$7)/SUMIFS(InTWRR!$D:$D,InTWRR!$B:$B,$A30,InTWRR!$A:$A,J$7)-1) -> 0 | K30: =IF(SUMIFS(InTWRR!$D:$D,InTWRR!$B:$B,$A30,InTWRR!$A:$A,K$7)=0,0,SUMIFS(InTWRR!$D:$D,InTWRR!$B:$B,$A30,InTWRR!$A:$A,$C$7)/SUMIFS(InTWRR!$D:$D,InTWRR!$B:$B,$A30,InTWRR!$A:$A,K$7)-1) -> 0 | M30: =SUMIFS(InPricePM!$E:$E,InPricePM!$B:$B,$A30,InPricePM!$A:$A,M$7) -> 0.2477 | N30: =SUMIFS(InPricePM!$E:$E,InPricePM!$B:$B,$A30,InPricePM!$A:$A,N$7) -> 0.2458 | O30: =SUMIFS(InPricePM!$E:$E,InPricePM!$B:$B,$A30,InPricePM!$A:$A,O$7) -> 0 | Q30: =PRODUCT(IF(InDistMC!$B$3:$B$500=$A30,InDistMC!H$3:H$500)) -> 0 | R30: =PRODUCT(IF(InDistMC!$B$3:$B$500=$A30,InDistMC!I$3:I$500)) -> 0 | S30: =PRODUCT(IF(InDistMC!$B$3:$B$500=$A30,InDistMC!J$3:J$500)) -> 0
A31: MWFAUD | B31: Makmur myWakaf Fund - AUD CLASS | C31: =SUMIFS(InPricePM!$E:$E,InPricePM!$B:$B,$A31,InPricePM!$A:$A,ValueDateTm1) -> 0.2474 | E31: =IF(I31=0,$C31/M31*IF(Q31=0,1,Q31)-1,I31) -> 0.007328990228 | F31: 0.01685162351 | G31: 0 | I31: =IF(SUMIFS(InTWRR!$D:$D,InTWRR!$B:$B,$A31,InTWRR!$A:$A,I$7)=0,0,SUMIFS(InTWRR!$D:$D,InTWRR!$B:$B,$A31,InTWRR!$A:$A,$C$7)/SUMIFS(InTWRR!$D:$D,InTWRR!$B:$B,$A31,InTWRR!$A:$A,I$7)-1) -> 0 | J31: =IF(SUMIFS(InTWRR!$D:$D,InTWRR!$B:$B,$A31,InTWRR!$A:$A,J$7)=0,0,SUMIFS(InTWRR!$D:$D,InTWRR!$B:$B,$A31,InTWRR!$A:$A,$C$7)/SUMIFS(InTWRR!$D:$D,InTWRR!$B:$B,$A31,InTWRR!$A:$A,J$7)-1) -> 0 | K31: =IF(SUMIFS(InTWRR!$D:$D,InTWRR!$B:$B,$A31,InTWRR!$A:$A,K$7)=0,0,SUMIFS(InTWRR!$D:$D,InTWRR!$B:$B,$A31,InTWRR!$A:$A,$C$7)/SUMIFS(InTWRR!$D:$D,InTWRR!$B:$B,$A31,InTWRR!$A:$A,K$7)-1) -> 0 | M31: =SUMIFS(InPricePM!$E:$E,InPricePM!$B:$B,$A31,InPricePM!$A:$A,M$7) -> 0.2456 | N31: =SUMIFS(InPricePM!$E:$E,InPricePM!$B:$B,$A31,InPricePM!$A:$A,N$7) -> 0.2433 | O31: =SUMIFS(InPricePM!$E:$E,InPricePM!$B:$B,$A31,InPricePM!$A:$A,O$7) -> 0 | Q31: =PRODUCT(IF(InDistMC!$B$3:$B$500=$A31,InDistMC!H$3:H$500)) -> 0 | R31: =PRODUCT(IF(InDistMC!$B$3:$B$500=$A31,InDistMC!I$3:I$500)) -> 0 | S31: =PRODUCT(IF(InDistMC!$B$3:$B$500=$A31,InDistMC!J$3:J$500)) -> 0
A35: Historical Col.-1 | B35: BENCHMARK | I35: =Tm1Daily -> 2021-06-03 | J35: =Tm1MTD -> 2021-05-31 | K35: =Tm1YTD -> 2020-12-31
A36: 42 | B36: MSCI All Country World Index Net Return USD | C36: =VLOOKUP(ValueDateTm1,Historical!$B:$BI,$A36) -> 0 | E36: =$C36/$I36-1 ->  | F36: =$C36/$J36-1 ->  | G36: =$C36/$K36-1 -> -1 | I36: =VLOOKUP(I$35,Historical!$B:$BI,$A36) -> 0 | J36: =VLOOKUP(J$35,Historical!$B:$BI,$A36) -> 0 | K36: =VLOOKUP(K$35,Historical!$B:$BI,$A36) -> 328.2043
A37: 56 | B37: MSCI All Country World Index Net Return MYR | C37: =VLOOKUP(ValueDateTm1,Historical!$B:$BI,$A37) -> 0 | E37: =$C37/$I37-1 ->  | F37: =$C37/$J37-1 ->  | G37: =$C37/$K37-1 -> -1 | I37: =VLOOKUP(I$35,Historical!$B:$BI,$A37) -> 0 | J37: =VLOOKUP(J$35,Historical!$B:$BI,$A37) -> 0 | K37: =VLOOKUP(K$35,Historical!$B:$BI,$A37) -> 1319.54545
A38: 56 | B38: 30% MSCI All Country World Index Net Return MYR | C38: =VLOOKUP(ValueDateTm1,Historical!$B:$BI,$A38) -> 0 | E38: =($C38/$I38-1)*30% ->  | F38: =($C38/$J38-1)*30% ->  | G38: =($C38/$K38-1)*30% -> -0.3 | I38: =VLOOKUP(I$35,Historical!$B:$BI,$A38) -> 0 | J38: =VLOOKUP(J$35,Historical!$B:$BI,$A38) -> 0 | K38: =VLOOKUP(K$35,Historical!$B:$BI,$A38) -> 1319.54545
A39: 48 | B39: 70% FBM KLCI | C39: =VLOOKUP(ValueDateTm1,Historical!$B:$BI,$A39) -> 0 | E39: =($C39/$I39-1)*70% ->  | F39: =($C39/$J39-1)*70% ->  | G39: =($C39/$K39-1)*70% -> -0.7 | I39: =VLOOKUP(I$35,Historical!$B:$BI,$A39) -> 0 | J39: =VLOOKUP(J$35,Historical!$B:$BI,$A39) -> 0 | K39: =VLOOKUP(K$35,Historical!$B:$BI,$A39) -> 1627.21
B40: 70% FBM KLCI + 30% MSCI All Country World Index Net Return MYR | E40: =SUM(E38:E39) ->  | F40: =SUM(F38:F39) ->  | G40: =SUM(G38:G39) -> -1
A41: 58 | B41: MSCI AC Asia Pacific NR Index USD | C41: =VLOOKUP(ValueDateTm1,Historical!$B:$BI,$A41) -> 0 | E41: =$C41/$I41-1 ->  | F41: =$C41/$J41-1 ->  | G41: =$C41/$K41-1 -> -1 | I41: =VLOOKUP(I$35,Historical!$B:$BI,$A41) -> 0 | J41: =VLOOKUP(J$35,Historical!$B:$BI,$A41) -> 0 | K41: =VLOOKUP(K$35,Historical!$B:$BI,$A41) -> 342.46
A42: 60 | B42: MSCI AC Asia Pacific NR Index MYR | C42: =VLOOKUP(ValueDateTm1,Historical!$B:$BI,$A42) -> 0 | E42: =$C42/$I42-1 ->  | F42: =$C42/$J42-1 ->  | G42: =$C42/$K42-1 -> -1 | I42: =VLOOKUP(I$35,Historical!$B:$BI,$A42) -> 0 | J42: =VLOOKUP(J$35,Historical!$B:$BI,$A42) -> 0 | K42: =VLOOKUP(K$35,Historical!$B:$BI,$A42) -> 1376.86049
A43: 40 | B43: FBMSHARIAH | C43: =VLOOKUP(ValueDateTm1,Historical!$B:$BI,$A43) -> 0 | E43: =$C43/$I43-1 ->  | F43: =$C43/$J43-1 ->  | G43: =$C43/$K43-1 -> -1 | I43: =VLOOKUP(I$35,Historical!$B:$BI,$A43) -> 0 | J43: =VLOOKUP(J$35,Historical!$B:$BI,$A43) -> 0 | K43: =VLOOKUP(K$35,Historical!$B:$BI,$A43) -> 13159.15
B45: Exchange Rate | I45: =Tm1Daily -> 2021-06-03 | J45: =Tm1MTD -> 2021-05-31 | K45: =Tm1YTD -> 2020-12-31
B46: USD/MYR | C46: =AVERAGEIFS(InPricePM!$H:$H,InPricePM!$L:$L,$B46&ValueDateTm1) -> 4.1275 | E46: =$C46/$I46-1 -> 0.000970049715 | I46: =AVERAGEIFS(InPricePM!$H:$H,InPricePM!$L:$L,$B46&I$7) -> 4.1235 | J46: =AVERAGEIFS(InPricePM!$H:$H,InPricePM!$L:$L,$B46&J$7) -> 4.1235 | K46: =AVERAGEIFS(InPricePM!$H:$H,InPricePM!$L:$L,$B46&K$7) -> 4.018
B47: USD/SGD | C47: =AVERAGEIFS(InPricePM!$H:$H,InPricePM!$L:$L,$B47&ValueDateTm1) -> 1.3237 | E47: =$C47/$I47-1 -> -0.002336448598 | I47: =AVERAGEIFS(InPricePM!$H:$H,InPricePM!$L:$L,$B47&I$7) -> 1.3268 | J47: =AVERAGEIFS(InPricePM!$H:$H,InPricePM!$L:$L,$B47&J$7) -> 1.321 | K47: =AVERAGEIFS(InPricePM!$H:$H,InPricePM!$L:$L,$B47&K$7) -> 1.3198
B48: MYR/USD | C48: =AVERAGEIFS(InPricePM!$H:$H,InPricePM!$L:$L,$B48&ValueDateTm1) -> 0.2422 | E48: =$C48/$I48-1 -> -0.0008250825083 | I48: =AVERAGEIFS(InPricePM!$H:$H,InPricePM!$L:$L,$B48&I$7) -> 0.2424 | J48: =AVERAGEIFS(InPricePM!$H:$H,InPricePM!$L:$L,$B48&J$7) -> 0.2425 | K48: =AVERAGEIFS(InPricePM!$H:$H,InPricePM!$L:$L,$B48&K$7) -> 0.2486
B49: MYR/SGD | C49: =AVERAGEIFS(InPricePM!$H:$H,InPricePM!$L:$L,$B49&ValueDateTm1) -> 0.3218 | E49: =$C49/$I49-1 -> 0.002804612029 | I49: =AVERAGEIFS(InPricePM!$H:$H,InPricePM!$L:$L,$B49&I$7) -> 0.3209 | J49: =AVERAGEIFS(InPricePM!$H:$H,InPricePM!$L:$L,$B49&J$7) -> 0.3206 | K49: =AVERAGEIFS(InPricePM!$H:$H,InPricePM!$L:$L,$B49&K$7) -> 0.3283
B50: MYR/EUR | C50: =AVERAGEIFS(InPricePM!$H:$H,InPricePM!$L:$L,$B50&ValueDateTm1) -> 0.1991 | E50: =$C50/$I50-1 -> -0.004002001001 | I50: =AVERAGEIFS(InPricePM!$H:$H,InPricePM!$L:$L,$B50&I$7) -> 0.1999 | J50: =AVERAGEIFS(InPricePM!$H:$H,InPricePM!$L:$L,$B50&J$7) -> 0.1983 | K50: =AVERAGEIFS(InPricePM!$H:$H,InPricePM!$L:$L,$B50&K$7) -> 0.2034
B52: Target Fund Price
A53: LU1245544975 | B53: Arabesque Q3.17 Systematic (USD) | C53: =SUMIFS(InTFPrice!C:C,InTFPrice!B:B,A53,InTFPrice!A:A,ValueDateTm1) -> 96.09 | E53: =$C53/$I53-1 -> -0.007539764511 | I53: =SUMIFS(InTFPrice!$C:$C,InTFPrice!$B:$B,$A53,InTFPrice!$A:$A,I$7) -> 96.82 | J53: =SUMIFS(InTFPrice!$C:$C,InTFPrice!$B:$B,$A53,InTFPrice!$A:$A,J$7) -> 97.25 | K53: =SUMIFS(InTFPrice!$C:$C,InTFPrice!$B:$B,$A53,InTFPrice!$A:$A,K$7) -> 102.98
A54: LU2075210943 | B54: Arabesque Q3.17 SICAV Sustainable Global Eq (USD) | C54: =SUMIFS(InTFPrice!C:C,InTFPrice!B:B,A54,InTFPrice!A:A,ValueDateTm1) -> 98.52 | E54: =$C54/$I54-1 -> -0.006554401533 | I54: =SUMIFS(InTFPrice!$C:$C,InTFPrice!$B:$B,$A54,InTFPrice!$A:$A,I$7) -> 99.17 | J54: =SUMIFS(InTFPrice!$C:$C,InTFPrice!$B:$B,$A54,InTFPrice!$A:$A,J$7) -> 99.45 | K54: =SUMIFS(InTFPrice!$C:$C,InTFPrice!$B:$B,$A54,InTFPrice!$A:$A,K$7) -> 0
B57: * BIMB-Arabesque Malaysia Shariah-ESG Equity Fund Launched on 9 March 2017
B62: NAV PRICE MOVEMENT AGAINST BENCHMARK MOVEMENT (TOLERENCE LEVEL = 0.5%)
C63: NAV | E63: BENCHMARK | F63: DIFFERENCE | G63: ALERT | H63: REMARKS
B64: =B8 -> BIMB-ARABESQUE i Global Dividend Fund 1 - USD CLASS | C64: =E8 -> -0.007403189066 | E64: =E36 ->  | F64: =+C64-E64 ->  | G64: =IF(F64>= 0.005,"PLS CHECK",)&IF(F64<= -0.005,"PLS CHECK",) -> 
B65: =B9 -> BIMB-ARABESQUE i Global Dividend Fund 1 - RM CLASS | C65: =E9 -> -0.006391052526 | E65: =E37 ->  | F65: =+C65-E65 ->  | G65: =IF(F65>= 0.005,"PLS CHECK",)&IF(F65<= -0.005,"PLS CHECK",) -> 
B66: =B12 -> BIMB-Arabesque Malaysia Shariah-ESG Equity Fund - RM CLASS | C66: =E12 -> 0.0009826400262 | E66: =E40 ->  | F66: =+C66-E66 ->  | I66: weightage of stock increase is less as compared to others fund
B67: BIMB-Arabesque Malaysia Shariah-ESG Equity Fund - USD CLASS | C67: 0.0006108735492 | E67: =E40 ->  | F67: =+C67-E67 ->  | I67: stock weightage
B68: BIMB-Arabesque Malaysia Shariah-ESG Equity Fund - SGD CLASS | C68: 0.004194901581 | E68: =E40 -> 
B69: BIMB-Arabesque Malaysia Shariah-ESG Equity Fund - EUR CLASS | C69: -0.002776813606 | E69: =E40 -> 
B70: BIMB-Arabesque Asia Pacific Shariah-ESG Equity Fund - USD CLASS | C70: 0.002120441052 | E70: =E41 ->  | F70: =+C70-E70 -> 
B71: BIMB-Arabesque Asia Pacific Shariah-ESG Equity Fund - RM CLASS | C71: 0.0028363047 | E71: =E42 ->  | G71: =IF(F71>= 0.005,"PLS CHECK",)&IF(F71<= -0.005,"PLS CHECK",) -> 

Sheet Arabesque Email
A1: =CompanyName -> BIMB INVESTMENT MANAGEMENT BERHAD
A2: PRICING SHEET
A4: Valuation Date : | B4: =ValueDateTm1 -> 2021-06-04
A6: FUND | B6: NAV | D6: Daily | E6: MTD | F6: YTD
B7: =B4 -> 2021-06-04 | D7: % | E7: % | F7: %
A8: ='Foreign Daily Perf.'!B8 -> BIMB-ARABESQUE i Global Dividend Fund 1 - USD CLASS | B8: ='Foreign Daily Perf.'!C8 -> 0.5229 | D8: ='Foreign Daily Perf.'!E8 -> -0.007403189066 | E8: ='Foreign Daily Perf.'!F8 -> -0.01171801172 | F8: ='Foreign Daily Perf.'!G8 -> 0.02022573982
A9: ='Foreign Daily Perf.'!B9 -> BIMB-ARABESQUE i Global Dividend Fund 1 - RM CLASS | B9: ='Foreign Daily Perf.'!C9 -> 0.4975 | D9: ='Foreign Daily Perf.'!E9 -> -0.006391052526 | E9: ='Foreign Daily Perf.'!F9 -> -0.01073772122 | F9: ='Foreign Daily Perf.'!G9 -> 0.04810729373
A10: ='Foreign Daily Perf.'!B10 -> BIMB-ARABESQUE i Global Dividend Fund 1 - SGD CLASS | B10: ='Foreign Daily Perf.'!C10 -> 0.4706 | D10: ='Foreign Daily Perf.'!E10 -> -0.00968013468 | E10: ='Foreign Daily Perf.'!F10 -> -0.00968013468 | F10: ='Foreign Daily Perf.'!G10 -> 0.02333251722
A11: ='Foreign Daily Perf.'!B11 -> BIMB-ARABESQUE i Global Dividend Fund 1 - RM HEDGED CLASS | B11: ='Foreign Daily Perf.'!C11 -> 0.5016 | D11: ='Foreign Daily Perf.'!E11 -> -0.008695652174 | E11: ='Foreign Daily Perf.'!F11 -> -0.01240401654 | F11: ='Foreign Daily Perf.'!G11 -> 0.000873508068
A12: BIMB-Arabesque Malaysia Shariah-ESG Equity Fund (RM CLASS) | B12: ='Foreign Daily Perf.'!C12 -> 0.3056 | D12: ='Foreign Daily Perf.'!E12 -> 0.0009826400262 | E12: ='Foreign Daily Perf.'!F12 -> 0.008248102936 | F12: ='Foreign Daily Perf.'!G12 -> 0.01427149021
A13: BIMB-Arabesque Malaysia Shariah-ESG Equity Fund (USD CLASS) | B13: ='Foreign Daily Perf.'!C13 -> 0.3276 | D13: ='Foreign Daily Perf.'!E13 -> 0.0006108735492 | E13: ='Foreign Daily Perf.'!F13 -> 0.007070396557 | F13: ='Foreign Daily Perf.'!G13 -> -0.01146650573
A14: BIMB-Arabesque Malaysia Shariah-ESG Equity Fund (SGD CLASS) | B14: ='Foreign Daily Perf.'!C14 -> 0.3112 | D14: ='Foreign Daily Perf.'!E14 -> 0.004194901581 | E14: ='Foreign Daily Perf.'!F14 -> 0.01236174366 | F14: ='Foreign Daily Perf.'!G14 -> -0.005433045702
A15: BIMB-Arabesque Malaysia Shariah-ESG Equity Fund (EUR CLASS) | B15: ='Foreign Daily Perf.'!C15 -> 0.2873 | D15: ='Foreign Daily Perf.'!E15 -> -0.002776813606 | E15: ='Foreign Daily Perf.'!F15 -> 0.01233262861 | F15: ='Foreign Daily Perf.'!G15 -> -0.006913238852
A16: BIMB-Arabesque Asia Pacific Shariah-ESG Equity Fund (USD CLASS) | B16: ='Foreign Daily Perf.'!C16 -> 0.2363 | D16: ='Foreign Daily Perf.'!E16 -> 0.002120441052 | E16: ='Foreign Daily Perf.'!F16 -> 0.006388415673 | F16: ='Foreign Daily Perf.'!G16 -> 0.0251626898
A17: BIMB-Arabesque Asia Pacific Shariah-ESG Equity Fund (MYR CLASS) | B17: ='Foreign Daily Perf.'!C17 -> 0.2475 | D17: ='Foreign Daily Perf.'!E17 -> 0.0028363047 | E17: ='Foreign Daily Perf.'!F17 -> 0.007326007326 | F17: ='Foreign Daily Perf.'!G17 -> 0.0527435134
A18: Bimb-Arabesque Global Shariah Sustainable Equity Fund - RM Class | B18: ='Foreign Daily Perf.'!C24 -> 0.2488 | D18: ='Foreign Daily Perf.'!E24 -> -0.005595523581 | E18: ='Foreign Daily Perf.'!F24 -> -0.008369868473 | F18: ='Foreign Daily Perf.'!G24 -> 0
A19: Bimb-Arabesque Global Shariah Sustainable Equity Fund - RM Hedged Class | B19: ='Foreign Daily Perf.'!C25 -> 0.2486 | D19: ='Foreign Daily Perf.'!E25 -> -0.007584830339 | E19: ='Foreign Daily Perf.'!F25 -> -0.009956192752 | F19: ='Foreign Daily Perf.'!G25 -> 0
A20: Bimb-Arabesque Global Shariah Sustainable Equity Fund - USD Class | B20: ='Foreign Daily Perf.'!C26 -> 0.2497 | D20: ='Foreign Daily Perf.'!E26 -> -0.00676213206 | E20: ='Foreign Daily Perf.'!F26 -> -0.009520031733 | F20: ='Foreign Daily Perf.'!G26 -> 0
A21: Bimb-Arabesque Global Shariah Sustainable Equity Fund - AUD Class | B21: ='Foreign Daily Perf.'!C27 -> 0.2449 | D21: ='Foreign Daily Perf.'!E27 -> -0.01725521669 | E21: ='Foreign Daily Perf.'!F27 -> -0.01050505051 | F21: ='Foreign Daily Perf.'!G27 -> 0
A22: Bimb-Arabesque Global Shariah Sustainable Equity Fund - SGD Class | B22: ='Foreign Daily Perf.'!C28 -> 0.2459 | D22: ='Foreign Daily Perf.'!E28 -> -0.008867392181 | E22: ='Foreign Daily Perf.'!F28 -> -0.007667473769 | F22: ='Foreign Daily Perf.'!G28 -> 0
A27: BENCHMARK
A28: MSCI All Country World Index Net Return USD | B28: =VLOOKUP($B$4-1,#REF!,42) ->  | D28: ='Foreign Daily Perf.'!E36 ->  | E28: ='Foreign Daily Perf.'!F36 ->  | F28: ='Foreign Daily Perf.'!G36 -> -1
A29: MSCI All Country World Index Net Return MYR | B29: =VLOOKUP($B$4-1,#REF!,56) ->  | D29: ='Foreign Daily Perf.'!E37 ->  | E29: ='Foreign Daily Perf.'!F37 ->  | F29: ='Foreign Daily Perf.'!G37 -> -1
A30: 30% MSCI All Country World Index Net Return MYR | B30: =VLOOKUP($B$4,#REF!,56) ->  | D30: ='Foreign Daily Perf.'!E38 ->  | E30: ='Foreign Daily Perf.'!F38 ->  | F30: ='Foreign Daily Perf.'!G38 -> -0.3
A31: 70% FBM KLCI | B31: =VLOOKUP($B$4,#REF!,48) ->  | D31: ='Foreign Daily Perf.'!E39 ->  | E31: ='Foreign Daily Perf.'!F39 ->  | F31: ='Foreign Daily Perf.'!G39 -> -0.7
A32: 70% FBM KLCI + 30% MSCI All Country World Index Net Return MYR | D32: ='Foreign Daily Perf.'!E40 ->  | E32: ='Foreign Daily Perf.'!F40 ->  | F32: ='Foreign Daily Perf.'!G40 -> -1
A33: MSCI AC Asia Pacific NR Index USD | B33: =VLOOKUP($B$4,#REF!,58) ->  | D33: ='Foreign Daily Perf.'!E41 ->  | E33: ='Foreign Daily Perf.'!F41 ->  | F33: ='Foreign Daily Perf.'!G41 -> -1
A34: MSCI AC Asia Pacific NR Index MYR | B34: =VLOOKUP($B$4,#REF!,60) ->  | D34: ='Foreign Daily Perf.'!E42 ->  | E34: ='Foreign Daily Perf.'!F42 ->  | F34: ='Foreign Daily Perf.'!G42 -> -1
A35: FBMSHARIAH | B35: =VLOOKUP($B$4,#REF!,40) ->  | D35: ='Foreign Daily Perf.'!E43 ->  | E35: ='Foreign Daily Perf.'!F43 ->  | F35: ='Foreign Daily Perf.'!G43 -> -1
A37: Exchange Rate
A38: USD/MYR | B38: ='Foreign Daily Perf.'!C46 -> 4.1275 | D38: ='Foreign Daily Perf.'!E46 -> 0.000970049715
A39: ='Foreign Daily Perf.'!B47 -> USD/SGD | B39: ='Foreign Daily Perf.'!C47 -> 1.3237 | D39: ='Foreign Daily Perf.'!E47 -> -0.002336448598
A40: MYR/USD | B40: ='Foreign Daily Perf.'!C49 -> 0.3218 | D40: ='Foreign Daily Perf.'!E48 -> -0.0008250825083
A41: MYR/SGD | B41: ='Foreign Daily Perf.'!C49 -> 0.3218 | D41: ='Foreign Daily Perf.'!E49 -> 0.002804612029
A42: MYR/EUR | B42: ='Foreign Daily Perf.'!C50 -> 0.1991 | D42: ='Foreign Daily Perf.'!E50 -> -0.004002001001
A44: Target Fund Price
A45: Arabesque Q3.17 Systematic (USD) | B45: ='Foreign Daily Perf.'!C53 -> 96.09 | D45: ='Foreign Daily Perf.'!E53 -> -0.007539764511
A46: Arabesque Q3.17 SICAV Sustainable Global Eq (USD) | B46: ='Foreign Daily Perf.'!C54 -> 98.52 | D46: ='Foreign Daily Perf.'!E54 -> -0.006554401533

Sheet Memo
D1: =IF(AND(OR(L1="",RIGHT(L1,5)="Total"),M1=""),"",IF(AND(M1="",L1<>""),"FUNDS",M1)) ->  | G1: =IF(AND(OR(L1="",RIGHT(L1,5)="Total"),M1=""),"",IF(AND(M1="",L1<>""),"NAV/UNIT (" & IF(L1="MYR","RM",L1)&")",N1)) -> 
A2: =CompanyName -> BIMB INVESTMENT MANAGEMENT BERHAD
A3: (formerly known as BIMB Unit Trust Management Berhad)
A4: (A WHOLLY OWNED SUBSIDIARY OF BANK ISLAM MALAYSIA BERHAD)
A8: Date : | B8: =ValueDate -> 2021-06-08 | H8: Fax Message :
B12: To | C12: : | D12: THE STAR | G12: From : JUNAIDA BINTI ABDUL JALAL
D13: STARBIZ
B15: Att. | C15: : | D15: MR K M LEE / EN. WAHID
B17: Fax | C17: : | D17: 7957 0694 | H17: Authorised
B18: Email | C18: : | D18: starbiz@thestar.com.my | H18: Signature :
B20: Note : Do not transit without authorised signature.
B22: If you have problem receiving this transmission, please call us immediately.
B23: Tel No: 03-2694 6617/19
C29: Re | D29: : Publication of Manager' Daily Prices for Amanah Saham Bank Islam.
D32: We would appreciate if you can list/publish/disseminate our UNIT TRUSTS PRICES
D33: as at | F33: =B8 -> 2021-06-08
D36: =CompanyName -> BIMB INVESTMENT MANAGEMENT BERHAD | L36: Sum of MemoPrice
L37: Row Labels | M37: RptFundDesc | N37: Total
D38: FUNDS | E38: FUNDS | F38: FUNDS | G38: NAV/UNIT (RM) | L38: MYR
D39: BIMB i-Tactical Fund (Formerly known as BIMB i Dividend Fund) | E39: BIMB i-Tactical Fund (Formerly known as BIMB i Dividend Fund) | F39: BIMB i-Tactical Fund (Formerly known as BIMB i Dividend Fund) | G39: 0 | L39: 1 | M39: BIMB i-Tactical Fund (Formerly known as BIMB i Dividend Fund) | N39: 0
D40: BIMB i Growth (Al-Mubin) | E40: BIMB i Growth (Al-Mubin) | F40: BIMB i Growth (Al-Mubin) | G40: 0 | L40: 2 | M40: BIMB i Growth (Al-Mubin) | N40: 0
D41: BIMB Dana Al-Fakhim | E41: BIMB Dana Al-Fakhim | F41: BIMB Dana Al-Fakhim | G41: 0 | L41: 3 | M41: BIMB Dana Al-Fakhim | N41: 0
D42: BIMB Dana Al-Munsif | E42: BIMB Dana Al-Munsif | F42: BIMB Dana Al-Munsif | G42: 0 | L42: 4 | M42: BIMB Dana Al-Munsif | N42: 0
D43: BIMB Dana Al-Falah | E43: BIMB Dana Al-Falah | F43: BIMB Dana Al-Falah | G43: 0 | L43: 5 | M43: BIMB Dana Al-Falah | N43: 0
D44: BIMB i Flexi Fund | E44: BIMB i Flexi Fund | F44: BIMB i Flexi Fund | G44: 0 | L44: 7 | M44: BIMB i Flexi Fund | N44: 0
D45: BIMB Shariah IncomePlus Fund | E45: BIMB Shariah IncomePlus Fund | F45: BIMB Shariah IncomePlus Fund | G45: 0 | L45: 8 | M45: BIMB Shariah IncomePlus Fund | N45: 0
D46: Bank Islam Premier Fund * | E46: Bank Islam Premier Fund * | F46: Bank Islam Premier Fund * | G46: 0.9951 | L46: 9 | M46: Bank Islam Premier Fund * | N46: 0.9951
D47: BIMB-ARABESQUE i Global Dividend Fund 1 - RM Class ^ | E47: BIMB-ARABESQUE i Global Dividend Fund 1 - RM Class ^ | F47: BIMB-ARABESQUE i Global Dividend Fund 1 - RM Class ^ | G47: 0.4975 | L47: 10 | M47: BIMB-ARABESQUE i Global Dividend Fund 1 - RM Class ^ | N47: 0.4975
D48: BIMB-ARABESQUE i Global Dividend Fund 1 - RM Hedged Class ^ | E48: BIMB-ARABESQUE i Global Dividend Fund 1 - RM Hedged Class ^ | F48: BIMB-ARABESQUE i Global Dividend Fund 1 - RM Hedged Class ^ | G48: 0.5016 | L48: 13 | M48: BIMB-ARABESQUE i Global Dividend Fund 1 - RM Hedged Class ^ | N48: 0.5016
D49: BIMB-Arabesque Malaysia Shariah-ESG Equity Fund - RM CLASS ^ | E49: BIMB-Arabesque Malaysia Shariah-ESG Equity Fund - RM CLASS ^ | F49: BIMB-Arabesque Malaysia Shariah-ESG Equity Fund - RM CLASS ^ | G49: 0.3056 | L49: 14 | M49: BIMB-Arabesque Malaysia Shariah-ESG Equity Fund - RM CLASS ^ | N49: 0.3056
D50: BIMB-Arabesque Asia Pacific Shariah-ESG Equity Fund - RM CLASS ^ | E50: BIMB-Arabesque Asia Pacific Shariah-ESG Equity Fund - RM CLASS ^ | F50: BIMB-Arabesque Asia Pacific Shariah-ESG Equity Fund - RM CLASS ^ | G50: 0.2475 | L50: 19 | M50: BIMB-Arabesque Asia Pacific Shariah-ESG Equity Fund - RM CLASS ^ | N50: 0.2475
D51: BIMB ESG Sukuk Fund - Class A ^ | E51: BIMB ESG Sukuk Fund - Class A ^ | F51: BIMB ESG Sukuk Fund - Class A ^ | G51: 0.2512 | L51: 20 | M51: BIMB ESG Sukuk Fund - Class A ^ | N51: 0.2512
D52: BIMB ESG Sukuk Fund - Class D ^ | E52: BIMB ESG Sukuk Fund - Class D ^ | F52: BIMB ESG Sukuk Fund - Class D ^ | G52: 0.2512 | L52: 23 | M52: BIMB ESG Sukuk Fund - Class D ^ | N52: 0.2512
D53: MAKMUR MYWAKAF FUND (MYR) ^ | E53: MAKMUR MYWAKAF FUND (MYR) ^ | F53: MAKMUR MYWAKAF FUND (MYR) ^ | G53: 0.2469 | L53: 26 | M53: MAKMUR MYWAKAF FUND (MYR) ^ | N53: 0.2469
D54: BIMB-ARABESQUE GLOBAL SHARIAH SUSTAINABLE EQUITY FUND - RM Class ^ | E54: BIMB-ARABESQUE GLOBAL SHARIAH SUSTAINABLE EQUITY FUND - RM Class ^ | F54: BIMB-ARABESQUE GLOBAL SHARIAH SUSTAINABLE EQUITY FUND - RM Class ^ | G54: 0.2488 | L54: 29 | M54: BIMB-ARABESQUE GLOBAL SHARIAH SUSTAINABLE EQUITY FUND - RM Class ^ | N54: 0.2488
D55: BIMB-ARABESQUE GLOBAL SHARIAH SUSTAINABLE EQUITY FUND - RM Hedged Class ^ | E55: BIMB-ARABESQUE GLOBAL SHARIAH SUSTAINABLE EQUITY FUND - RM Hedged Class ^ | F55: BIMB-ARABESQUE GLOBAL SHARIAH SUSTAINABLE EQUITY FUND - RM Hedged Class ^ | G55: 0.2486 | L55: 30 | M55: BIMB-ARABESQUE GLOBAL SHARIAH SUSTAINABLE EQUITY FUND - RM Hedged Class ^ | N55: 0.2486
D56: BIMB One-Year Shariah Income Fund | E56: BIMB One-Year Shariah Income Fund | F56: BIMB One-Year Shariah Income Fund | G56: 0 | L56: 34 | M56: BIMB One-Year Shariah Income Fund | N56: 0
L57: MYR Total | N57: 3.794
D59: FUNDS | E59: FUNDS | F59: FUNDS | G59: NAV/UNIT (USD) | L59: USD
D60: BIMB-ARABESQUE i Global Dividend Fund 1 - USD Class ^ | E60: BIMB-ARABESQUE i Global Dividend Fund 1 - USD Class ^ | F60: BIMB-ARABESQUE i Global Dividend Fund 1 - USD Class ^ | G60: 0.5229 | L60: 11 | M60: BIMB-ARABESQUE i Global Dividend Fund 1 - USD Class ^ | N60: 0.5229
D61: BIMB-Arabesque Malaysia Shariah-ESG Equity Fund - USD CLASS ^ | E61: BIMB-Arabesque Malaysia Shariah-ESG Equity Fund - USD CLASS ^ | F61: BIMB-Arabesque Malaysia Shariah-ESG Equity Fund - USD CLASS ^ | G61: 0.3276 | L61: 15 | M61: BIMB-Arabesque Malaysia Shariah-ESG Equity Fund - USD CLASS ^ | N61: 0.3276
D62: BIMB-Arabesque Asia Pacific Shariah-ESG Equity Fund - USD CLASS ^ | E62: BIMB-Arabesque Asia Pacific Shariah-ESG Equity Fund - USD CLASS ^ | F62: BIMB-Arabesque Asia Pacific Shariah-ESG Equity Fund - USD CLASS ^ | G62: 0.2363 | L62: 18 | M62: BIMB-Arabesque Asia Pacific Shariah-ESG Equity Fund - USD CLASS ^ | N62: 0.2363
D63: BIMB ESG Sukuk Fund - Class B ^ | E63: BIMB ESG Sukuk Fund - Class B ^ | F63: BIMB ESG Sukuk Fund - Class B ^ | G63: 0.25 | L63: 21 | M63: BIMB ESG Sukuk Fund - Class B ^ | N63: 0.25
D64: BIMB ESG Sukuk Fund - Class E ^ | E64: BIMB ESG Sukuk Fund - Class E ^ | F64: BIMB ESG Sukuk Fund - Class E ^ | G64: 0.25 | L64: 24 | M64: BIMB ESG Sukuk Fund - Class E ^ | N64: 0.25
D65: MAKMUR MYWAKAF FUND (USD) ^ | E65: MAKMUR MYWAKAF FUND (USD) ^ | F65: MAKMUR MYWAKAF FUND (USD) ^ | G65: 0.2473 | L65: 28 | M65: MAKMUR MYWAKAF FUND (USD) ^ | N65: 0.2473
D66: BIMB-ARABESQUE GLOBAL SHARIAH SUSTAINABLE EQUITY FUND - USD Class ^ | E66: BIMB-ARABESQUE GLOBAL SHARIAH SUSTAINABLE EQUITY FUND - USD Class ^ | F66: BIMB-ARABESQUE GLOBAL SHARIAH SUSTAINABLE EQUITY FUND - USD Class ^ | G66: 0.2497 | L66: 31 | M66: BIMB-ARABESQUE GLOBAL SHARIAH SUSTAINABLE EQUITY FUND - USD Class ^ | N66: 0.2497
L67: USD Total | N67: 2.0838
D69: FUNDS | E69: FUNDS | F69: FUNDS | G69: NAV/UNIT (SGD) | L69: SGD
D70: BIMB-ARABESQUE i Global Dividend Fund 1 - SGD Class ^ | E70: BIMB-ARABESQUE i Global Dividend Fund 1 - SGD Class ^ | F70: BIMB-ARABESQUE i Global Dividend Fund 1 - SGD Class ^ | G70: 0.4706 | L70: 12 | M70: BIMB-ARABESQUE i Global Dividend Fund 1 - SGD Class ^ | N70: 0.4706
D71: BIMB-Arabesque Malaysia Shariah-ESG Equity Fund - SGD CLASS ^ | E71: BIMB-Arabesque Malaysia Shariah-ESG Equity Fund - SGD CLASS ^ | F71: BIMB-Arabesque Malaysia Shariah-ESG Equity Fund - SGD CLASS ^ | G71: 0.3112 | L71: 16 | M71: BIMB-Arabesque Malaysia Shariah-ESG Equity Fund - SGD CLASS ^ | N71: 0.3112
D72: BIMB ESG Sukuk Fund - Class C ^ | E72: BIMB ESG Sukuk Fund - Class C ^ | F72: BIMB ESG Sukuk Fund - Class C ^ | G72: 0.2416 | L72: 22 | M72: BIMB ESG Sukuk Fund - Class C ^ | N72: 0.2416
D73: BIMB-ARABESQUE GLOBAL SHARIAH SUSTAINABLE EQUITY FUND - SGD Class ^ | E73: BIMB-ARABESQUE GLOBAL SHARIAH SUSTAINABLE EQUITY FUND - SGD Class ^ | F73: BIMB-ARABESQUE GLOBAL SHARIAH SUSTAINABLE EQUITY FUND - SGD Class ^ | G73: 0.2459 | L73: 33 | M73: BIMB-ARABESQUE GLOBAL SHARIAH SUSTAINABLE EQUITY FUND - SGD Class ^ | N73: 0.2459
L74: SGD Total | N74: 1.2693
D76: FUNDS | E76: FUNDS | F76: FUNDS | G76: NAV/UNIT (EUR) | L76: EUR
D77: BIMB-Arabesque Malaysia Shariah-ESG Equity Fund - EUR CLASS ^ | E77: BIMB-Arabesque Malaysia Shariah-ESG Equity Fund - EUR CLASS ^ | F77: BIMB-Arabesque Malaysia Shariah-ESG Equity Fund - EUR CLASS ^ | G77: 0.2873 | L77: 17 | M77: BIMB-Arabesque Malaysia Shariah-ESG Equity Fund - EUR CLASS ^ | N77: 0.2873
L78: EUR Total | N78: 0.2873
D80: FUNDS | E80: FUNDS | F80: FUNDS | G80: NAV/UNIT (AUD) | L80: AUD
D81: MAKMUR MYWAKAF FUND (AUD) ^ | E81: MAKMUR MYWAKAF FUND (AUD) ^ | F81: MAKMUR MYWAKAF FUND (AUD) ^ | G81: 0.2474 | L81: 25 | M81: MAKMUR MYWAKAF FUND (AUD) ^ | N81: 0.2474
D82: BIMB-ARABESQUE GLOBAL SHARIAH SUSTAINABLE EQUITY FUND - AUD Class ^ | E82: BIMB-ARABESQUE GLOBAL SHARIAH SUSTAINABLE EQUITY FUND - AUD Class ^ | F82: BIMB-ARABESQUE GLOBAL SHARIAH SUSTAINABLE EQUITY FUND - AUD Class ^ | G82: 0.2449 | L82: 32 | M82: BIMB-ARABESQUE GLOBAL SHARIAH SUSTAINABLE EQUITY FUND - AUD Class ^ | N82: 0.2449
L83: AUD Total | N83: 0.4923
D84: ^ NAV of 1 preceding business days
D85: * Bank Islam Premier Fund Launched on 17 November 2020 | L85: Grand Total | N85: 7.9267

Sheet Bloomberg
A1: BLOOMBERG | B1: PRICE FORMAT
A3: Pricing should be sent to fundpricing@bloomberg.com and spfund@bloomberg.net using this fixed format:
A5: PRICING CONTACT PERSON
A6: Name: | B6: Yvonne Yap Wai Foon
A7: Telephone: | B7: 03-21612524 extn: 117
A8: Email: | B8: yvonney@bankislam.com.my
A10: Please do not change columns A, B or C without notifying Bloomberg. Any changes prevent the automatic upload of data onto Bloomberg
A12: DATE (mm/dd/yy) | B12: BLOOMBERG CODE/ISIN/SEDOL | C12: FUND NAME | D12: CURRENCY | E12: NAV | F12: BID | G12: OFFER | H12: YIELD | I12: TOTAL ASSETS
A13: 2021-06-04 | B13: BIAAMYR MK | C13: BIMB-ARABESQUE ASIA PACIFIC SHARIAH-ESG EQUITY FUND - RM CLASS ^ | D13: MYR | E13: 0.2475
A14: 2021-06-04 | B14: BIAAUSD MK | C14: BIMB-ARABESQUE ASIA PACIFIC SHARIAH-ESG EQUITY FUND - USD CLASS ^ | D14: USD | E14: 0.2363
A15: 2021-06-04 | B15: BISSEBA MK Equity | C15: BIMB-ARABESQUE GLOBAL SHARIAH SUSTAINABLE EQUITY FUND - AUD CLASS ^ | D15: AUD | E15: 0.2449
A16: 2021-06-04 | B16: BISSEBG MK Equity | C16: BIMB-ARABESQUE GLOBAL SHARIAH SUSTAINABLE EQUITY FUND - RM CLASS ^ | D16: MYR | E16: 0.2488
A17: 2021-06-04 | B17: BISSERH MK Equity | C17: BIMB-ARABESQUE GLOBAL SHARIAH SUSTAINABLE EQUITY FUND - RM HEDGED CLASS ^ | D17: MYR | E17: 0.2486
A18: 2021-06-04 | B18: BISSESC MK Equity | C18: BIMB-ARABESQUE GLOBAL SHARIAH SUSTAINABLE EQUITY FUND - SGD CLASS ^ | D18: SGD | E18: 0.2459
A19: 2021-06-04 | B19: BISSEUC MK Equity | C19: BIMB-ARABESQUE GLOBAL SHARIAH SUSTAINABLE EQUITY FUND - USD CLASS ^ | D19: USD | E19: 0.2497
A20: 2021-06-04 | B20: BIMPREM MK Equity | C20: BANK ISLAM PREMIER FUND * | D20: MYR | E20: 0.9951
A21: 2021-06-04 | B21: BIMSEEE MK | C21: BIMB-ARABESQUE MALAYSIA SHARIAH-ESG EQUITY FUND - EUR CLASS ^ | D21: EUR | E21: 0.2873
A22: 2021-06-04 | B22: BIMSEEM MK | C22: BIMB-ARABESQUE MALAYSIA SHARIAH-ESG EQUITY FUND - RM CLASS ^ | D22: MYR | E22: 0.3056
A23: 2021-06-04 | B23: BIMSEES MK | C23: BIMB-ARABESQUE MALAYSIA SHARIAH-ESG EQUITY FUND - SGD CLASS ^ | D23: SGD | E23: 0.3112
A24: 2021-06-04 | B24: BIMSEEU MK | C24: BIMB-ARABESQUE MALAYSIA SHARIAH-ESG EQUITY FUND - USD CLASS ^ | D24: USD | E24: 0.3276
A25: 2021-06-04 | B25: BIMESSA MK | C25: BIMB ESG SUKUK FUND - CLASS A ^ | D25: MYR | E25: 0.2512
A26: 2021-06-04 | B26: BIMESSB MK | C26: BIMB ESG SUKUK FUND - CLASS B ^ | D26: USD | E26: 0.25
A27: 2021-06-04 | B27: BIMESSC MK | C27: BIMB ESG SUKUK FUND - CLASS C ^ | D27: SGD | E27: 0.2416
A28: 2021-06-04 | B28: BIMESSD MK | C28: BIMB ESG SUKUK FUND - CLASS D ^ | D28: MYR | E28: 0.2512
A29: 2021-06-04 | B29: BIMESSE MK | C29: BIMB ESG SUKUK FUND - CLASS E ^ | D29: USD | E29: 0.25
A30: 2021-06-04 | B30: BIMAGDR MK Equity | C30: BIMB-ARABESQUE I GLOBAL DIVIDEND FUND 1 - RM CLASS ^ | D30: MYR | E30: 0.4975
A31: 2021-06-04 | B31: BIMAGDM MK | C31: BIMB-ARABESQUE I GLOBAL DIVIDEND FUND 1 - RM HEDGED CLASS ^ | D31: MYR | E31: 0.5016
A32: 2021-06-04 | B32: BIMAGDS MK | C32: BIMB-ARABESQUE I GLOBAL DIVIDEND FUND 1 - SGD CLASS ^ | D32: SGD | E32: 0.4706
A33: 2021-06-04 | B33: BIMAIGD MK Equity | C33: BIMB-ARABESQUE I GLOBAL DIVIDEND FUND 1 - USD CLASS ^ | D33: USD | E33: 0.5229
A34: 2021-06-04 | B34: BMAMMAM MK Equity | C34: MAKMUR MYWAKAF FUND (AUD) ^ | D34: AUD | E34: 0.2474
A35: 2021-06-04 | B35: BMAMMEM MK Equity | C35: MAKMUR MYWAKAF FUND (MYR) ^ | D35: MYR | E35: 0.2469
A36: 2021-06-04 | B36: BMAMMEU MK Equity | C36: MAKMUR MYWAKAF FUND (USD) ^ | D36: USD | E36: 0.2473
A102: ^ NAV of 1 preceding business days
A103: - BIPF become foreign fund on 06.01.2021
A104: * BIMB One-Year Shariah Income Fund launched on 28.04.2021

Sheet WM Email
A1: BLOOMBERG | B1: PRICE FORMAT
A3: Pricing should be sent to fundpricing@bloomberg.com and spfund@bloomberg.net using this fixed format:
A5: PRICING CONTACT PERSON
A6: Name: | B6: Yvonne Yap Wai Foon
A7: Telephone: | B7: 03-21612524 extn: 117
A8: Email: | B8: yvonney@bankislam.com.my
A10: Please do not change columns A, B or C without notifying Bloomberg. Any changes prevent the automatic upload of data onto Bloomberg
A12: DATE (mm/dd/yy) | B12: BLOOMBERG CODE/ISIN/SEDOL | C12: FUND NAME | D12: CURRENCY | E12: NAV | F12: TOTAL ASSETS | G12: Reuters & Lipper code
A13: 2021-06-04 | B13: BIMAIGD MK Equity | C13: BIMB-ARABESQUE i GLOBAL DIVIDEND FUND 1 (USD CLASS) | D13: USD | E13: 0.5229 | G13: 68344065
A14: 2021-06-04 | B14: BIMAGDR MK Equity | C14: BIMB-ARABESQUE i GLOBAL DIVIDEND FUND 1 (RM CLASS) | D14: MYR | E14: 0.4975 | G14: 68344064
A15: 2021-06-04 | B15: BIMAGDS MK | C15: BIMB-ARABESQUE i GLOBAL DIVIDEND FUND 1 (SGD CLASS) | D15: SGD | E15: 0.4706 | G15: 68578383
A16: 2021-06-04 | B16: BIMAGDM MK | C16: BIMB-ARABESQUE i GLOBAL DIVIDEND FUND 1 (RM HEDGED CLASS) | D16: MYR | E16: 0.5016 | G16: 68578384
A17: 2021-06-04 | B17: BIMSEEM MK | C17: BIMB-ARABESQUE MALAYSIA SHARIAH-ESG EQUITY FUND (RM CLASS) | D17: MYR | E17: 0.3056 | G17: 68412864
A18: 2021-06-04 | B18: BIMSEEU MK | C18: BIMB-ARABESQUE MALAYSIA SHARIAH-ESG EQUITY FUND (USD CLASS) | D18: USD | E18: 0.3276 | G18: 68412863
A19: 2021-06-04 | B19: BIMSEES MK | C19: BIMB-ARABESQUE MALAYSIA SHARIAH-ESG EQUITY FUND (SGD CLASS) | D19: SGD | E19: 0.3112 | G19: 68412862
A20: 2021-06-04 | B20: BIMSEEE MK | C20: BIMB-ARABESQUE MALAYSIA SHARIAH-ESG EQUITY FUND (EUR CLASS) | D20: EUR | E20: 0.2873 | G20: 68412861
A21: 2021-06-04 | B21: BIAAUSD MK | C21: BIMB-Arabesque Asia Pacific Shariah-ESG Equity Fund (USD CLASS) | D21: USD | E21: 0.2363 | G21: 68467307
A22: 2021-06-04 | B22: BIAAMYR MK | C22: BIMB-Arabesque Asia Pacific Shariah-ESG Equity Fund (RM CLASS) | D22: MYR | E22: 0.2475 | G22: 68467308
A23: 2021-06-04 | B23: BIMESSA MK | C23: BIMB ESG SUKUK FUND (CLASS A) | D23: MYR | E23: 0.2512 | G23: 68506325
A24: 2021-06-04 | B24: BIMESSB MK | C24: BIMB ESG SUKUK FUND (CLASS B) | D24: USD | E24: 0.25 | G24: 68506326
A25: 2021-06-04 | B25: BIMESSC MK | C25: BIMB ESG SUKUK FUND (CLASS C) | D25: SGD | E25: 0.2416 | G25: 68506327
A26: 2021-06-04 | B26: BIMESSD MK | C26: BIMB ESG SUKUK FUND (CLASS D) | D26: MYR | E26: 0.2512 | G26: 68506328
A27: 2021-06-04 | B27: BIMESSE MK | C27: BIMB ESG SUKUK FUND (CLASS E) | D27: USD | E27: 0.25 | G27: 68506329
A28: 2021-06-04 | B28: BIMPREM MK Equity | C28: Bank Islam Premier Fund | D28: MYR | E28: 0.9951 | G28: 0
A29: 2021-06-04 | B29: BISSEBG MK | C29: BIMB-ARABESQUE GLOBAL SHARIAH SUSTAINABLE EQUITY FUND - RM Class | D29: MYR | E29: 0.2488 | G29: 0
A30: 2021-06-04 | B30: BISSERH MK | C30: BIMB-ARABESQUE GLOBAL SHARIAH SUSTAINABLE EQUITY FUND - RM Hedged Class | D30: MYR | E30: 0.2486 | G30: 0
A31: 2021-06-04 | B31: BISSEUC MK | C31: BIMB-ARABESQUE GLOBAL SHARIAH SUSTAINABLE EQUITY FUND - USD Class | D31: USD | E31: 0.2497 | G31: 0
A32: 2021-06-04 | B32: BISSEBA MK | C32: BIMB-ARABESQUE GLOBAL SHARIAH SUSTAINABLE EQUITY FUND - AUD Class | D32: AUD | E32: 0.2449 | G32: 0
A33: 2021-06-04 | B33: BISSESC MK | C33: BIMB-ARABESQUE GLOBAL SHARIAH SUSTAINABLE EQUITY FUND - SGD Class | D33: SGD | E33: 0.2459 | G33: 0
A34: 2021-06-04 | B34: BMAMMEM MK | C34: Makmur myWakaf Fund (RM CLASS) | D34: MYR | E34: 0.2469 | G34: 0
A35: 2021-06-04 | B35: BMAMMEU MK | C35: Makmur myWakaf Fund (USD CLASS) | D35: USD | E35: 0.2473 | G35: 0
A36: 2021-06-04 | B36: BMAMMAM MK | C36: Makmur myWakaf Fund (AUD CLASS) | D36: AUD | E36: 0.2474 | G36: 0

Sheet WM Data (hidden)
F1: =A1 -> 0 | G1: =VLOOKUP($B1,Setting!$R:$U,3,0) ->  | H1: =VLOOKUP($B1,Setting!$R:$U,4,0) ->  | I1: =D1 -> 0 | J1: =E1 -> 0 | L1: =VLOOKUP(B1,Setting!$A:$H,8,0) ->  | M1: =IFERROR(VLOOKUP($B1,Setting!$R:$U,2,0),0) -> 0
A2: qValDate | B2: qFundCode | C2: FundName | D2: qCurrencyCode | E2: BuyPrice | F2: Date | G2: BLOOMBERG CODE/ISIN/SEDOL | H2: VM Fund Name | I2: Currency | J2: NAV | K2: TAsset | L2: Reuters & Lipper code | M2: Order No.
A3: 2021-06-04 | B3: GD1USD | C3: BIMB-Arabesque i Global Dividend Fund 1 (USD) | D3: USD | E3: 0.5229 | F3: =A3 -> 2021-06-04 | G3: =VLOOKUP($B3,Setting!$R:$U,3,0) -> BIMAIGD MK Equity | H3: =VLOOKUP($B3,Setting!$R:$U,4,0) -> BIMB-ARABESQUE i GLOBAL DIVIDEND FUND 1 (USD CLASS) | I3: =D3 -> USD | J3: =E3 -> 0.5229 | L3: =VLOOKUP(B3,Setting!$A:$H,8,0) -> 68344065 | M3: =IFERROR(VLOOKUP($B3,Setting!$R:$U,2,0),0) -> 1
A4: 2021-06-04 | B4: GD1MYR | C4: BIMB-Arabesque i Global Dividend Fund 1 (MYR) | D4: MYR | E4: 0.4975 | F4: 2021-06-04 | G4: =VLOOKUP($B4,Setting!$R:$U,3,0) -> BIMAGDR MK Equity | H4: =VLOOKUP($B4,Setting!$R:$U,4,0) -> BIMB-ARABESQUE i GLOBAL DIVIDEND FUND 1 (RM CLASS) | I4: MYR | J4: 0.4975 | L4: =VLOOKUP(B4,Setting!$A:$H,8,0) -> 68344064 | M4: =IFERROR(VLOOKUP($B4,Setting!$R:$U,2,0),0) -> 2
A5: 2021-06-04 | B5: GD1SGD | C5: BIMB-Arabesque i Global Dividend Fund 1 (SGD) | D5: SGD | E5: 0.4706 | F5: 44351 | G5: =VLOOKUP($B5,Setting!$R:$U,3,0) -> BIMAGDS MK | H5: =VLOOKUP($B5,Setting!$R:$U,4,0) -> BIMB-ARABESQUE i GLOBAL DIVIDEND FUND 1 (SGD CLASS) | I5: SGD | J5: 0.4706 | L5: =VLOOKUP(B5,Setting!$A:$H,8,0) -> 68578383 | M5: =IFERROR(VLOOKUP($B5,Setting!$R:$U,2,0),0) -> 3
A6: 2021-06-04 | B6: GD1RMH | C6: BIMB-Arabesque i Global Dividend Fund 1 (MYR H) | D6: MYR | E6: 0.5016 | F6: 2021-06-04 | G6: =VLOOKUP($B6,Setting!$R:$U,3,0) -> BIMAGDM MK | H6: =VLOOKUP($B6,Setting!$R:$U,4,0) -> BIMB-ARABESQUE i GLOBAL DIVIDEND FUND 1 (RM HEDGED CLASS) | I6: MYR | J6: 0.5016 | L6: =VLOOKUP(B6,Setting!$A:$H,8,0) -> 68578384 | M6: =IFERROR(VLOOKUP($B6,Setting!$R:$U,2,0),0) -> 4
A7: 2021-06-04 | B7: BMSEFMYR | C7: BMSEF (MYR) | D7: MYR | E7: 0.3056 | F7: 44351 | G7: =VLOOKUP($B7,Setting!$R:$U,3,0) -> BIMSEEM MK | H7: =VLOOKUP($B7,Setting!$R:$U,4,0) -> BIMB-ARABESQUE MALAYSIA SHARIAH-ESG EQUITY FUND (RM CLASS) | I7: MYR | J7: 0.3056 | L7: =VLOOKUP(B7,Setting!$A:$H,8,0) -> 68412864 | M7: =IFERROR(VLOOKUP($B7,Setting!$R:$U,2,0),0) -> 5
A8: 2021-06-04 | B8: BMSEFUSD | C8: BMSEF (USD) | D8: USD | E8: 0.3276 | F8: 44351 | G8: =VLOOKUP($B8,Setting!$R:$U,3,0) -> BIMSEEU MK | H8: =VLOOKUP($B8,Setting!$R:$U,4,0) -> BIMB-ARABESQUE MALAYSIA SHARIAH-ESG EQUITY FUND (USD CLASS) | I8: USD | J8: 0.3276 | L8: =VLOOKUP(B8,Setting!$A:$H,8,0) -> 68412863 | M8: =IFERROR(VLOOKUP($B8,Setting!$R:$U,2,0),0) -> 6
A9: 2021-06-04 | B9: BMSEFSGD | C9: BMSEF (SGD) | D9: SGD | E9: 0.3112 | F9: 2021-06-04 | G9: =VLOOKUP($B9,Setting!$R:$U,3,0) -> BIMSEES MK | H9: =VLOOKUP($B9,Setting!$R:$U,4,0) -> BIMB-ARABESQUE MALAYSIA SHARIAH-ESG EQUITY FUND (SGD CLASS) | I9: SGD | J9: 0.3112 | L9: =VLOOKUP(B9,Setting!$A:$H,8,0) -> 68412862 | M9: =IFERROR(VLOOKUP($B9,Setting!$R:$U,2,0),0) -> 7
A10: 2021-06-04 | B10: BMSEFEUR | C10: BMSEF (EUR) | D10: EUR | E10: 0.2873 | F10: 2021-06-04 | G10: =VLOOKUP($B10,Setting!$R:$U,3,0) -> BIMSEEE MK | H10: =VLOOKUP($B10,Setting!$R:$U,4,0) -> BIMB-ARABESQUE MALAYSIA SHARIAH-ESG EQUITY FUND (EUR CLASS) | I10: EUR | J10: 0.2873 | L10: =VLOOKUP(B10,Setting!$A:$H,8,0) -> 68412861 | M10: =IFERROR(VLOOKUP($B10,Setting!$R:$U,2,0),0) -> 8
A11: 2021-06-04 | B11: BAPACUSD | C11: BAPAC (USD) | D11: USD | E11: 0.2363 | F11: 2021-06-04 | G11: =VLOOKUP($B11,Setting!$R:$U,3,0) -> BIAAUSD MK | H11: =VLOOKUP($B11,Setting!$R:$U,4,0) -> BIMB-Arabesque Asia Pacific Shariah-ESG Equity Fund (USD CLASS) | I11: USD | J11: 0.2363 | L11: =VLOOKUP(B11,Setting!$A:$H,8,0) -> 68467307 | M11: =IFERROR(VLOOKUP($B11,Setting!$R:$U,2,0),0) -> 9
A12: 2021-06-04 | B12: BAPACMYR | C12: BAPAC (MYR) | D12: MYR | E12: 0.2475 | F12: 2021-06-04 | G12: =VLOOKUP($B12,Setting!$R:$U,3,0) -> BIAAMYR MK | H12: =VLOOKUP($B12,Setting!$R:$U,4,0) -> BIMB-Arabesque Asia Pacific Shariah-ESG Equity Fund (RM CLASS) | I12: MYR | J12: 0.2475 | L12: =VLOOKUP(B12,Setting!$A:$H,8,0) -> 68467308 | M12: =IFERROR(VLOOKUP($B12,Setting!$R:$U,2,0),0) -> 10
A13: 2021-06-04 | B13: BSF-Class A | C13: BIMB ESG SUKUK FUND-Class A | D13: MYR | E13: 0.2512 | F13: 2021-06-04 | G13: =VLOOKUP($B13,Setting!$R:$U,3,0) -> BIMESSA MK | H13: =VLOOKUP($B13,Setting!$R:$U,4,0) -> BIMB ESG SUKUK FUND (CLASS A) | I13: MYR | J13: 0.2512 | L13: =VLOOKUP(B13,Setting!$A:$H,8,0) -> 68506325 | M13: =IFERROR(VLOOKUP($B13,Setting!$R:$U,2,0),0) -> 11
A14: 2021-06-04 | B14: BSF-Class B | C14: BIMB ESG SUKUK FUND-Class B | D14: USD | E14: 0.25 | F14: 2021-06-04 | G14: =VLOOKUP($B14,Setting!$R:$U,3,0) -> BIMESSB MK | H14: =VLOOKUP($B14,Setting!$R:$U,4,0) -> BIMB ESG SUKUK FUND (CLASS B) | I14: USD | J14: 0.25 | L14: =VLOOKUP(B14,Setting!$A:$H,8,0) -> 68506326 | M14: =IFERROR(VLOOKUP($B14,Setting!$R:$U,2,0),0) -> 12
A15: 2021-06-04 | B15: BSF-Class C | C15: BIMB ESG SUKUK FUND-Class C | D15: SGD | E15: 0.2416 | F15: 2021-06-04 | G15: =VLOOKUP($B15,Setting!$R:$U,3,0) -> BIMESSC MK | H15: =VLOOKUP($B15,Setting!$R:$U,4,0) -> BIMB ESG SUKUK FUND (CLASS C) | I15: SGD | J15: 0.2416 | L15: =VLOOKUP(B15,Setting!$A:$H,8,0) -> 68506327 | M15: =IFERROR(VLOOKUP($B15,Setting!$R:$U,2,0),0) -> 13
A16: 2021-06-04 | B16: BSF-Class D | C16: BIMB ESG SUKUK FUND-Class D | D16: MYR | E16: 0.2512 | F16: 2021-06-04 | G16: =VLOOKUP($B16,Setting!$R:$U,3,0) -> BIMESSD MK | H16: =VLOOKUP($B16,Setting!$R:$U,4,0) -> BIMB ESG SUKUK FUND (CLASS D) | I16: MYR | J16: 0.2512 | L16: =VLOOKUP(B16,Setting!$A:$H,8,0) -> 68506328 | M16: =IFERROR(VLOOKUP($B16,Setting!$R:$U,2,0),0) -> 14
A17: 2021-06-04 | B17: BSF-Class E | C17: BIMB ESG SUKUK FUND-Class E | D17: USD | E17: 0.25 | F17: 2021-06-04 | G17: =VLOOKUP($B17,Setting!$R:$U,3,0) -> BIMESSE MK | H17: =VLOOKUP($B17,Setting!$R:$U,4,0) -> BIMB ESG SUKUK FUND (CLASS E) | I17: USD | J17: 0.25 | L17: =VLOOKUP(B17,Setting!$A:$H,8,0) -> 68506329 | M17: =IFERROR(VLOOKUP($B17,Setting!$R:$U,2,0),0) -> 15
A18: 2021-06-04 | B18: BIPF | C18: Bank Islam Premier Fund | D18: MYR | E18: 0.9951 | F18: 2021-06-04 | G18: =VLOOKUP($B18,Setting!$R:$U,3,0) -> BIMPREM MK Equity | H18: =VLOOKUP($B18,Setting!$R:$U,4,0) -> Bank Islam Premier Fund | I18: MYR | J18: 0.9951 | L18: =VLOOKUP(B18,Setting!$A:$H,8,0) -> 0 | M18: =IFERROR(VLOOKUP($B18,Setting!$R:$U,2,0),0) -> 16
A19: 2021-06-04 | B19: BGSEFMYR | C19: Bimb-Arabesque Global Shariah Sustainable Equity | D19: MYR | E19: 0.2488 | F19: 44351 | G19: =VLOOKUP($B19,Setting!$R:$U,3,0) -> BISSEBG MK | H19: =VLOOKUP($B19,Setting!$R:$U,4,0) -> BIMB-ARABESQUE GLOBAL SHARIAH SUSTAINABLE EQUITY FUND - RM Class | I19: MYR | J19: 0.2488 | L19: =VLOOKUP(B19,Setting!$A:$H,8,0) -> 0 | M19: =IFERROR(VLOOKUP($B19,Setting!$R:$U,2,0),0) -> 17
A20: 2021-06-04 | B20: BGSEFRMH | C20: Bimb-Arabesque Global Shariah Sustainable Equity | D20: MYR | E20: 0.2486 | F20: 2021-06-04 | G20: =VLOOKUP($B20,Setting!$R:$U,3,0) -> BISSERH MK | H20: =VLOOKUP($B20,Setting!$R:$U,4,0) -> BIMB-ARABESQUE GLOBAL SHARIAH SUSTAINABLE EQUITY FUND - RM Hedged Class | I20: MYR | J20: 0.2486 | L20: =VLOOKUP(B20,Setting!$A:$H,8,0) -> 0 | M20: =IFERROR(VLOOKUP($B20,Setting!$R:$U,2,0),0) -> 18
A21: 2021-06-04 | B21: BGSEFUSD | C21: Bimb-Arabesque Global Shariah Sustainable Equity | D21: USD | E21: 0.2497 | F21: 44351 | G21: =VLOOKUP($B21,Setting!$R:$U,3,0) -> BISSEUC MK | H21: =VLOOKUP($B21,Setting!$R:$U,4,0) -> BIMB-ARABESQUE GLOBAL SHARIAH SUSTAINABLE EQUITY FUND - USD Class | I21: USD | J21: 0.2497 | L21: =VLOOKUP(B21,Setting!$A:$H,8,0) -> 0 | M21: =IFERROR(VLOOKUP($B21,Setting!$R:$U,2,0),0) -> 19
A22: 2021-06-04 | B22: BGSEFAUD | C22: Bimb-Arabesque Global Shariah Sustainable Equity | D22: AUD | E22: 0.2449 | F22: 2021-06-04 | G22: =VLOOKUP($B22,Setting!$R:$U,3,0) -> BISSEBA MK | H22: =VLOOKUP($B22,Setting!$R:$U,4,0) -> BIMB-ARABESQUE GLOBAL SHARIAH SUSTAINABLE EQUITY FUND - AUD Class | I22: AUD | J22: 0.2449 | L22: =VLOOKUP(B22,Setting!$A:$H,8,0) -> 0 | M22: =IFERROR(VLOOKUP($B22,Setting!$R:$U,2,0),0) -> 20
A23: 2021-06-04 | B23: BGSEFSGD | C23: Bimb-Arabesque Global Shariah Sustainable Equity | D23: SGD | E23: 0.2459 | F23: 2021-06-04 | G23: =VLOOKUP($B23,Setting!$R:$U,3,0) -> BISSESC MK | H23: =VLOOKUP($B23,Setting!$R:$U,4,0) -> BIMB-ARABESQUE GLOBAL SHARIAH SUSTAINABLE EQUITY FUND - SGD Class | I23: SGD | J23: 0.2459 | L23: =VLOOKUP(B23,Setting!$A:$H,8,0) -> 0 | M23: =IFERROR(VLOOKUP($B23,Setting!$R:$U,2,0),0) -> 21
A24: 2021-06-04 | B24: MWFMYR | C24: Makmur myWakaf Fund (MYR) | D24: MYR | E24: 0.2469 | F24: 44351 | G24: =VLOOKUP($B24,Setting!$R:$U,3,0) -> BMAMMEM MK | H24: =VLOOKUP($B24,Setting!$R:$U,4,0) -> Makmur myWakaf Fund (RM CLASS) | I24: MYR | J24: 0.2469 | L24: =VLOOKUP(B24,Setting!$A:$H,8,0) -> 0 | M24: =IFERROR(VLOOKUP($B24,Setting!$R:$U,2,0),0) -> 22
A25: 2021-06-04 | B25: MWFUSD | C25: Makmur myWakaf Fund (USD) | D25: USD | E25: 0.2473 | F25: 44351 | G25: =VLOOKUP($B25,Setting!$R:$U,3,0) -> BMAMMEU MK | H25: =VLOOKUP($B25,Setting!$R:$U,4,0) -> Makmur myWakaf Fund (USD CLASS) | I25: USD | J25: 0.2473 | L25: =VLOOKUP(B25,Setting!$A:$H,8,0) -> 0 | M25: =IFERROR(VLOOKUP($B25,Setting!$R:$U,2,0),0) -> 23
A26: 2021-06-04 | B26: MWFAUD | C26: Makmur myWakaf Fund (AUD) | D26: AUD | E26: 0.2474 | F26: 44351 | G26: =VLOOKUP($B26,Setting!$R:$U,3,0) -> BMAMMAM MK | H26: =VLOOKUP($B26,Setting!$R:$U,4,0) -> Makmur myWakaf Fund (AUD CLASS) | I26: AUD | J26: 0.2474 | L26: =VLOOKUP(B26,Setting!$A:$H,8,0) -> 0 | M26: =IFERROR(VLOOKUP($B26,Setting!$R:$U,2,0),0) -> 24

Sheet Historical
A1: BIMB INVESTMENT MANAGEMENT BERHAD | K1: 7_Daily Performance - Dec 2011-2017 latest 7.11.17 A.xls
A2: Manager's Daily Prices | AQ2: GD1 | BE2: GD1 | BG2: BAPAC | BI2: BAPAC
B3: 1 | C3: 2 | D3: =C3+1 -> 3 | E3: =D3+1 -> 4 | F3: 5 | G3: 6 | H3: 7 | I3: 8 | J3: 9 | K3: 10 | L3: 11 | M3: 12 | N3: 13 | O3: 14 | P3: 15 | Q3: 16 | R3: 17 | S3: 18 | T3: 19 | U3: 20 | V3: 21 | W3: 22 | X3: 23 | Y3: 24 | Z3: 25 | AA3: 26 | AB3: 27 | AC3: 28 | AD3: 29 | AE3: 30 | AF3: 31 | AG3: 32 | AH3: 33 | AI3: 34 | AJ3: 35 | AK3: 36 | AL3: 37 | AM3: 38 | AN3: 39 | AO3: 40 | AP3: 41 | AQ3: 42 | AR3: 43 | AS3: 44 | AT3: 45 | AU3: 46 | AV3: 47 | AW3: 48 | AX3: 49 | AY3: 50 | AZ3: 51 | BA3: 52 | BB3: 53 | BC3: 54 | BD3: 55 | BE3: 56 | BF3: 57 | BG3: 58 | BH3: 59 | BI3: 60 | BJ3: 61 | BK3: 62 | BL3: 63 | BM3: 64 | BN3: 65 | BO3: 66 | BP3: 67 | BQ3: =BP3+1 -> 68 | BR3: 69 | BS3: 70 | BT3: 71 | BU3: 72 | BV3: 73 | BW3: 74 | BX3: 75 | BY3: 76 | BZ3: 77
B4: Valuation | C4: ASBI Daily Prices | AO4: FBM Shariah | AQ4: MSCI All Country World Index Net Return USD | AS4: Exchange Rate USD/MYR | AU4: Target Fund Prices | AW4: FBM KLCI | AY4: Exchange Rate MYR/USD | BA4: Exchange Rate MYR/SGD | BC4: Exchange Rate MYR/EUR | BE4: MSCI All Country World Index Net Return MYR | BG4: MSCI AC Asia Pacific NR Index USD | BI4: MSCI AC Asia Pacific NR Index MYR | BY4: Exchange Rate USD/MYR
B5: Date | C5: i-Growth | E5: Al-Fakhim | G5: Al-Munsif | I5: Al-Falah | K5: BSIF | M5: i-Dividend | O5: BICMF | Q5: i-Flexi | S5: BIPF | U5: BIW | W5: BVMSEF | Y5: BiGDF1(MYR) | AA5: BiGDF1(USD) | AC5: BMSEF(MYR) | AE5: BMSEF(USD) | AG5: BMSEF(SGD) | AI5: BMSEF(EUR) | AK5: BAPAC(USD) | AM5: BAPAC(MYR) | BK5: BSF (Class A) | BM5: BSF (Class B) | BO5: BSF (Class C) | BQ5: BSF (Class D) | BS5: BSF (Class E) | BU5: BiGDF1(SGD) | BW5: BiGDF1(RM hedged)
B6: 2010-12-31 | C6: 0.3015 | E6: 0.5249 | G6: 0.5451 | I6: 0.5823 | K6: 1 | AO6: 10058.15
B7: 2011-10-31 | C7: 0.2987 | E7: 0.5243 | G7: 0.5171 | I7: 0.5536 | K7: 1 | M7: 0.2484 | AO7: 9924.87
B8: 2011-11-01 | C8: 0.2965 | E8: 0.5239 | G8: 0.5137 | I8: 0.5504 | K8: 1 | M8: 0.2475 | AO8: 9796.19
B9: 2011-11-02 | C9: 0.297 | E9: 0.524 | G9: 0.5142 | I9: 0.5507 | K9: 1 | M9: 0.2479 | AO9: 9818.04
B10: 2011-11-03 | C10: 0.2954 | E10: 0.5244 | G10: 0.5119 | I10: 0.5484 | K10: 1 | M10: 0.2474 | AO10: 9740.81
B11: 2011-11-04 | C11: 0.2974 | E11: 0.5243 | G11: 0.5141 | I11: 0.5505 | K11: 1.0001 | M11: 0.248 | AO11: 9837.13
B12: 2011-11-05
B13: 2011-11-06
B14: 2011-11-07 | C14: 0.2974 | E14: 0.5243 | G14: 0.5141 | I14: 0.5505 | K14: 1.0001 | M14: 0.248 | AO14: 9837.13
B15: 2011-11-08 | C15: 0.2979 | E15: 0.5244 | G15: 0.5142 | I15: 0.5507 | K15: 1.0002 | M15: 0.2484 | AO15: 9864.51
B16: 2011-11-09 | C16: 0.299 | E16: 0.525 | G16: 0.5155 | I16: 0.5523 | K16: 1.0002 | M16: 0.2486 | AO16: 9946.33 | CB16: 0.5406 | CC16: 0.5729
B17: 2011-11-10 | C17: 0.2968 | E17: 0.5254 | G17: 0.513 | I17: 0.5498 | K17: 1.0002 | M17: 0.248 | AO17: 9836.36
B18: 2011-11-11 | C18: 0.2975 | E18: 0.5256 | G18: 0.5138 | I18: 0.5507 | K18: 1.0002 | M18: 0.2478 | AO18: 9847.56
B19: 2011-11-12
B20: 2011-11-13
B21: 2011-11-14 | C21: 0.2997 | E21: 0.5246 | G21: 0.5159 | I21: 0.553 | K21: 1.0003 | M21: 0.2488 | AO21: 9954.89
B22: 2011-11-15 | C22: 0.2999 | E22: 0.5251 | G22: 0.516 | I22: 0.5529 | K22: 1.0003 | M22: 0.2491 | AO22: 9956.28 | CB22: 0.5362 | CC22: 0.5452 | CD22: 0.2509 | CE22: 1.0005
B23: 2011-11-16 | C23: 0.3002 | E23: 0.5255 | G23: 0.516 | I23: 0.5532 | K23: 1.0003 | M23: 0.2488 | AO23: 9933.2
B24: 2011-11-17 | C24: 0.2993 | E24: 0.5256 | G24: 0.5152 | I24: 0.5524 | K24: 1.0003 | M24: 0.2489 | AO24: 9887.47
B25: 2011-11-18 | C25: 0.2981 | E25: 0.5255 | G25: 0.5134 | I25: 0.5506 | K25: 1.0003 | M25: 0.2482 | AO25: 9800.38
B26: 2011-11-19
B27: 2011-11-20
B28: 2011-11-21 | C28: 0.2958 | E28: 0.5254 | G28: 0.5102 | I28: 0.5473 | K28: 1.0003 | M28: 0.2482 | AO28: 9678.47
B29: 2011-11-22 | C29: 0.2961 | E29: 0.5252 | G29: 0.51 | I29: 0.5471 | K29: 1.0003 | M29: 0.2488 | AO29: 9707.69
B30: 2011-11-23
B31: 2011-11-24
B32: 2011-11-25 | C32: 0.295 | E32: 0.5256 | G32: 0.5084 | I32: 0.5449 | K32: 1.0003 | M32: 0.25 | AO32: 9666.55
B33: 2011-11-26
B34: 2011-11-27
B35: 2011-11-28 | C35: 0.295 | E35: 0.5256 | G35: 0.5084 | I35: 0.5449 | K35: 1.0003 | M35: 0.25 | AO35: 9666.55
B36: 2011-11-29 | C36: 0.2952 | E36: 0.5258 | G36: 0.5069 | I36: 0.5465 | K36: 1.0004 | M36: 0.2487 | O36: 1 | AO36: 9684.44
B37: 2011-11-30 | C37: 0.2988 | E37: 0.5257 | G37: 0.5127 | I37: 0.5494 | K37: 1 | M37: 0.2505 | O37: 1 | AO37: 9848.22
B38: 2011-12-01 | C38: 0.3003 | E38: 0.5262 | G38: 0.5149 | I38: 0.5513 | K38: 1 | M38: 0.2509 | O38: 1 | AO38: 9925.43
B39: 2011-12-02 | C39: 0.3023 | E39: 0.5267 | G39: 0.5163 | I39: 0.5525 | K39: 1.0001 | M39: 0.2538 | O39: 1 | AO39: 9982.22
B40: 2011-12-03
B41: 2011-12-04 | C41: 0.3023 | E41: 0.5267 | G41: 0.5163 | I41: 0.5525 | K41: 1.0001 | M41: 0.2538 | O41: 1 | AO41: 9982.22
B42: 2011-12-05 | C42: 0.302 | E42: 0.5268 | G42: 0.5161 | I42: 0.5525 | K42: 1.0001 | M42: 0.2532 | O42: 1 | AO42: 9987.47
B43: 2011-12-06 | C43: 0.3012 | E43: 0.5268 | G43: 0.5155 | I43: 0.5516 | K43: 1.0002 | M43: 0.2527 | O43: 0.9999 | AO43: 9937.36
B44: 2011-12-07 | C44: 0.3024 | E44: 0.5267 | G44: 0.5168 | I44: 0.5532 | K44: 1.0002 | M44: 0.2528 | O44: 0.9999 | AO44: 9952.91
B45: 2011-12-08 | C45: 0.3018 | E45: 0.5268 | G45: 0.516 | I45: 0.552 | K45: 1.0002 | M45: 0.2531 | O45: 0.9999 | AO45: 9892.03
B46: 2011-12-09 | C46: 0.3003 | E46: 0.5268 | G46: 0.5142 | I46: 0.5499 | K46: 1.0003 | M46: 0.2531 | O46: 1.0006 | AO46: 9824.37
B47: 2011-12-10
B48: 2011-12-11
B49: 2011-12-12 | C49: 0.3013 | E49: 0.5269 | G49: 0.5154 | I49: 0.5513 | K49: 1.0004 | M49: 0.2535 | O49: 1.0009 | AO49: 9850.61
B50: 2011-12-13 | C50: 0.3018 | E50: 0.527 | G50: 0.5154 | I50: 0.5514 | K50: 1.0004 | M50: 0.2541 | O50: 1.001 | AO50: 9847.84
B51: 2011-12-14 | C51: 0.3016 | E51: 0.5273 | G51: 0.5158 | I51: 0.5518 | K51: 1.0005 | M51: 0.2534 | O51: 1.0011 | AO51: 9824.87
B52: 2011-12-15 | C52: 0.3022 | E52: 0.5273 | G52: 0.5167 | I52: 0.5526 | K52: 1.0006 | M52: 0.2542 | O52: 1.0011 | AO52: 9843.54
B53: 2011-12-16 | C53: 0.3024 | E53: 0.5274 | G53: 0.5169 | I53: 0.5533 | K53: 1.0008 | M53: 0.2538 | O53: 1.0012 | AO53: 9832.99
B54: 2011-12-17 | C54: 0.3024 | E54: 0.5274 | G54: 0.5169 | I54: 0.5533 | K54: 1.0008 | M54: 0.2538 | O54: 1.0012 | AO54: 9832.99
B55: 2011-12-18 | C55: 0.3024 | E55: 0.5274 | G55: 0.5169 | I55: 0.5533 | K55: 1.0008 | M55: 0.2538 | O55: 1.0012 | AO55: 9832.99
B56: 2011-12-19 | C56: 0.3042 | E56: 0.5274 | G56: 0.5187 | I56: 0.5557 | K56: 1.0012 | M56: 0.2543 | O56: 1.0015 | AO56: 9913.75
B57: 2011-12-20 | C57: 0.3037 | E57: 0.5275 | G57: 0.5185 | I57: 0.5553 | K57: 1.0013 | M57: 0.2534 | O57: 1.0016 | AO57: 9863.92
B58: 2011-12-21 | C58: 0.3059 | E58: 0.5274 | G58: 0.5212 | I58: 0.5582 | K58: 1.0015 | M58: 0.2542 | O58: 1.0016 | AO58: 9974.18
B59: 2011-12-22 | C59: 0.3066 | E59: 0.5278 | G59: 0.5221 | I59: 0.5592 | K59: 1.0017 | M59: 0.2544 | O59: 1.0017 | AO59: 9995.43
B60: 2011-12-23 | C60: 0.3077 | E60: 0.5278 | G60: 0.5232 | I60: 0.5602 | K60: 1.0018 | M60: 0.2554 | O60: 1.0018 | AO60: 10050.71 | CB60: -0.005530527451
B61: 2011-12-24 | C61: 0.3077 | E61: 0.5278 | G61: 0.5232 | I61: 0.5602 | K61: 1.0018 | M61: 0.2554 | O61: 1.0018 | AO61: 10050.71 | CB61: -0.005530527451
B62: 2011-12-25 | C62: 0.3077 | E62: 0.5278 | G62: 0.5232 | I62: 0.5602 | K62: 1.0018 | M62: 0.2554 | O62: 1.0018 | AO62: 10050.71
B63: 2011-12-26 | C63: 0.3077 | E63: 0.5278 | G63: 0.5232 | I63: 0.5602 | K63: 1.0018 | M63: 0.2554 | O63: 1.0018 | AO63: 10050.71 | CB63: 0 | CC63: 10238.5
B64: 2011-12-27 | C64: 0.3089 | E64: 0.5277 | G64: 0.5247 | I64: 0.5616 | K64: 1.0023 | M64: 0.2579 | O64: 1.0021 | AO64: 10116.6
B65: 2011-12-28 | C65: 0.3101 | E65: 0.5278 | G65: 0.5252 | I65: 0.5622 | K65: 1.0024 | M65: 0.2586 | O65: 1.0022 | AO65: 10146.85
B66: 2011-12-29 | C66: 0.3108 | E66: 0.5278 | G66: 0.5256 | I66: 0.5629 | K66: 1.0025 | M66: 0.2582 | O66: 1.0023 | AO66: 10175.23
B67: 2011-12-30 | C67: 0.3143 | E67: 0.5282 | G67: 0.5288 | I67: 0.567 | K67: 1 | M67: 0.2597 | O67: 1 | AO67: 10300.29
B68: 2011-12-31 | C68: 0.3143 | E68: 0.5282 | G68: 0.5288 | I68: 0.567 | K68: 1 | M68: 0.2597 | O68: 1 | AO68: 10300.29
B69: 2012-01-01 | C69: 0.3143 | E69: 0.5282 | G69: 0.5288 | I69: 0.567 | K69: 1 | M69: 0.2597 | O69: 1 | AO69: 10300.29
B70: 2012-01-02 | C70: 0.3143 | E70: 0.5282 | G70: 0.5288 | I70: 0.567 | K70: 1 | M70: 0.2597 | O70: 1 | AO70: 10300.29
B71: 2012-01-03 | C71: 0.3121 | E71: 0.5285 | G71: 0.5271 | I71: 0.5643 | K71: 1.0003 | M71: 0.2587 | O71: 1.0003 | AO71: 10247.09
B72: 2012-01-04 | C72: 0.3111 | E72: 0.5285 | G72: 0.526 | I72: 0.5625 | K72: 1.0004 | M72: 0.2588 | O72: 1.0004 | AO72: 10207.86
B73: 2012-01-05 | C73: 0.3119 | E73: 0.5289 | G73: 0.5263 | I73: 0.5627 | K73: 1.0004 | M73: 0.2593 | O73: 1.0005 | AO73: 10282.81
B74: 2012-01-06 | C74: 0.3117 | E74: 0.5291 | G74: 0.5261 | I74: 0.5627 | K74: 1.0005 | M74: 0.2596 | O74: 1.0006 | AO74: 10283.35
B75: 2012-01-07 | C75: 0.3117 | E75: 0.5291 | G75: 0.5261 | I75: 0.5627 | K75: 1.0005 | M75: 0.2596 | O75: 1.0006 | AO75: 10283.35
B76: 2012-01-08 | C76: 0.3117 | E76: 0.5291 | G76: 0.5261 | I76: 0.5627 | K76: 1.0005 | M76: 0.2596 | O76: 1.0006 | AO76: 10283.35
B77: 2012-01-09 | C77: 0.3132 | E77: 0.5292 | G77: 0.5281 | I77: 0.5648 | K77: 1.0008 | M77: 0.2612 | O77: 1.0009 | AO77: 10347.83
B78: 2012-01-10 | C78: 0.3145 | E78: 0.5303 | G78: 0.5295 | I78: 0.5661 | K78: 1.0008 | M78: 0.2627 | O78: 1.0009 | AO78: 10375.37
B79: 2012-01-11 | C79: 0.3151 | E79: 0.5307 | G79: 0.5303 | I79: 0.5667 | K79: 1.0009 | M79: 0.2628 | O79: 1.001 | AO79: 10418.97
B80: 2012-01-12 | C80: 0.3155 | E80: 0.5315 | G80: 0.5319 | I80: 0.569 | K80: 1.001 | M80: 0.2631 | O80: 1.0011 | AO80: 10437.85
B81: 2012-01-13 | C81: 0.3161 | E81: 0.5314 | G81: 0.5305 | I81: 0.5702 | K81: 1.001 | M81: 0.2601 | O81: 1.0012 | AO81: 10434.57
B82: 2012-01-14 | C82: 0.3161 | E82: 0.5314 | G82: 0.5305 | I82: 0.5702 | K82: 1.001 | M82: 0.2601 | O82: 1.0012 | AO82: 10434.57
B83: 2012-01-15 | C83: 0.3161 | E83: 0.5314 | G83: 0.5305 | I83: 0.5702 | K83: 1.001 | M83: 0.2601 | O83: 1.0012 | AO83: 10434.57
B84: 2012-01-16 | C84: 0.3133 | E84: 0.5316 | G84: 0.5271 | I84: 0.5662 | K84: 1.0013 | M84: 0.2587 | O84: 1.0015 | AO84: 10336.52
B85: 2012-01-17 | C85: 0.3143 | D85: 0.003191828918 | E85: 0.5314 | F85: -0.0003762227239 | G85: 0.5307 | H85: 0.006829823563 | I85: 0.5679 | J85: 0.003002472625 | K85: 1.0014 | L85: 9.987016878e-05 | M85: 0.2604 | N85: 0.006571318129 | O85: 1.0015 | P85: 0 | AO85: 10390.03 | AP85: 0.005176790641
B86: 2012-01-18 | C86: 0.3144 | D86: 0.000318167356 | E86: 0.5314 | F86: 0 | G86: 0.5306 | H86: -0.000188430375 | I86: 0.5677 | J86: -0.0003521746786 | K86: 1.0014 | L86: 0 | M86: 0.2612 | N86: 0.003072196621 | O86: 1.0016 | P86: 9.985022466e-05 | AO86: 10383.25 | AP86: -0.0006525486452
B87: 2012-01-19 | C87: 0.3152 | D87: 0.002544529262 | E87: 0.5314 | F87: 0 | G87: 0.5318 | H87: 0.002261590652 | I87: 0.5688 | J87: 0.001937643121 | K87: 1.0015 | L87: 9.986019573e-05 | M87: 0.263 | N87: 0.006891271057 | O87: 1.0017 | P87: 9.984025559e-05 | AO87: 10406.22 | AP87: 0.002212216791
B88: 2012-01-20 | C88: 0.316 | D88: 0.002538071066 | E88: 0.5314 | F88: 0 | G88: 0.5321 | H88: 0.0005641218503 | I88: 0.5694 | J88: 0.001054852321 | K88: 1.0016 | L88: 9.985022466e-05 | M88: 0.2635 | N88: 0.001901140684 | O88: 1.0018 | P88: 9.983028851e-05 | AO88: 10447.24 | AP88: 0.003941873226
B89: 2012-01-21 | C89: 0.316 | D89: 0 | E89: 0.5314 | F89: 0 | G89: 0.5321 | H89: 0 | I89: 0.5694 | J89: 0 | K89: 1.0016 | L89: 0 | M89: 0.2635 | N89: 0 | O89: 1.0018 | P89: 0 | AO89: 10447.24 | AP89: 0
B90: 2012-01-22 | C90: 0.316 | D90: 0 | E90: 0.5314 | F90: 0 | G90: 0.5321 | H90: 0 | I90: 0.5694 | J90: 0 | K90: 1.0016 | L90: 0 | M90: 0.2635 | N90: 0 | O90: 1.0018 | P90: 0 | AO90: 10447.24 | AP90: 0
B91: 2012-01-23 | C91: 0.316 | D91: 0 | E91: 0.5314 | F91: 0 | G91: 0.5321 | H91: 0 | I91: 0.5694 | J91: 0 | K91: 1.0016 | L91: 0 | M91: 0.2635 | N91: 0 | O91: 1.0018 | P91: 0 | AO91: 10447.24 | AP91: 0
B92: 2012-01-24 | C92: 0.316 | D92: 0 | E92: 0.5314 | F92: 0 | G92: 0.5321 | H92: 0 | I92: 0.5694 | J92: 0 | K92: 1.0016 | L92: 0 | M92: 0.2635 | N92: 0 | O92: 1.0018 | P92: 0 | AO92: 10447.24 | AP92: 0
B93: 2012-01-25 | C93: 0.3163 | D93: 0.0009493670886 | E93: 0.5315 | F93: 0.0001881821603 | G93: 0.5324 | H93: 0.0005638037963 | I93: 0.5694 | J93: 0 | K93: 1.002 | L93: 0.0003993610224 | M93: 0.2638 | N93: 0.001138519924 | O93: 1.0022 | P93: 0.0003992812937 | AO93: 10462.62 | AP93: 0.001472159154
B94: 2012-01-26 | C94: 0.3175 | D94: 0.003793866582 | E94: 0.5317 | F94: 0.0003762935089 | G94: 0.5338 | H94: 0.002629601803 | I94: 0.5712 | J94: 0.003161222339 | K94: 1.0021 | L94: 9.98003992e-05 | M94: 0.2636 | N94: -0.0007581501137 | O94: 1.0023 | P94: 9.978048294e-05 | AO94: 10502.85 | AP94: 0.003845117189
B95: 2012-01-27 | C95: 0.3184 | D95: 0.002834645669 | E95: 0.5318 | F95: 0.0001880759827 | G95: 0.535 | H95: 0.002248032971 | I95: 0.5725 | J95: 0.002275910364 | K95: 1.0021 | L95: 0 | M95: 0.2636 | N95: 0 | O95: 1.0024 | P95: 9.977052779e-05 | AO95: 10515.01 | AP95: 0.001157780983
B96: 2012-01-28 | C96: 0.3184 | D96: 0 | E96: 0.5318 | F96: 0 | G96: 0.535 | H96: 0 | I96: 0.5725 | J96: 0 | K96: 1.0021 | L96: 0 | M96: 0.2636 | N96: 0 | O96: 1.0024 | P96: 0 | AO96: 10515.01 | AP96: 0
B97: 2012-01-29 | C97: 0.3184 | D97: 0 | E97: 0.5318 | F97: 0 | G97: 0.535 | H97: 0 | I97: 0.5725 | J97: 0 | K97: 1.0021 | L97: 0 | M97: 0.2636 | N97: 0 | O97: 1.0024 | P97: 0 | AO97: 10515.01 | AP97: 0
B98: 2012-01-30 | C98: 0.3178 | D98: -0.001884422111 | E98: 0.5318 | F98: 0 | G98: 0.5343 | H98: -0.001308411215 | I98: 0.572 | J98: -0.0008733624454 | K98: 1.0024 | L98: 0.0002993713202 | M98: 0.263 | N98: -0.002276176024 | O98: 1.0027 | P98: 0.0002992817239 | AO98: 10467.81 | AP98: -0.004488821218
B99: 2012-01-31 | C99: 0.3187 | D99: 0.002831969792 | E99: 0.5318 | F99: 0 | G99: 0.5348 | H99: 0.0009358038555 | I99: 0.5719 | J99: -0.0001748251748 | K99: 1 | L99: -0.002394253791 | M99: 0.2645 | N99: 0.005703422053 | O99: 1 | P99: -0.00269272963 | AO99: 10498.87 | AP99: 0.0029671918
B100: 2012-02-01 | C100: 0.3187 | D100: 0 | E100: 0.5318 | F100: 0 | G100: 0.5348 | H100: 0 | I100: 0.5719 | J100: 0 | K100: 1 | L100: 0 | M100: 0.2645 | N100: 0 | O100: 1 | P100: 0 | AO100: 10498.87 | AP100: 0
B101: 2012-02-02 | C101: 0.3236 | D101: 0.01537496078 | E101: 0.532 | F101: 0.0003760812335 | G101: 0.5392 | H101: 0.00822737472 | I101: 0.5776 | J101: 0.009966777409 | K101: 1.0002 | L101: 0.0002 | M101: 0.2657 | N101: 0.004536862004 | O101: 1.0002 | P101: 0.0002 | AO101: 10641.83 | AP101: 0.01361670351
B102: 2012-02-03 | C102: 0.3241 | D102: 0.001545117429 | E102: 0.5325 | F102: 0.0009398496241 | G102: 0.5398 | H102: 0.001112759644 | I102: 0.5784 | J102: 0.001385041551 | K102: 1.0002 | L102: 0 | M102: 0.2663 | N102: 0.002258185924 | O102: 1.0002 | P102: 0 | AO102: 10676.2 | AP102: 0.003229707672
B103: 2012-02-04 | C103: 0.3241 | D103: 0 | E103: 0.5325 | F103: 0 | G103: 0.5398 | H103: 0 | I103: 0.5784 | J103: 0 | K103: 1.0002 | L103: 0 | M103: 0.2663 | N103: 0 | O103: 1.0002 | P103: 0 | AO103: 10676.2 | AP103: 0
B104: 2012-02-05 | C104: 0.3241 | D104: 0 | E104: 0.5325 | F104: 0 | G104: 0.5398 | H104: 0 | I104: 0.5784 | J104: 0 | K104: 1.0002 | L104: 0 | M104: 0.2663 | N104: 0 | O104: 1.0002 | P104: 0 | AO104: 10676.2 | AP104: 0
B105: 2012-02-06 | C105: 0.3241 | D105: 0 | E105: 0.5325 | F105: 0 | G105: 0.5398 | H105: 0 | I105: 0.5784 | J105: 0 | K105: 1.0002 | L105: 0 | M105: 0.2663 | N105: 0 | O105: 1.0002 | P105: 0 | AO105: 10676.2 | AP105: 0
B106: 2012-02-07 | C106: 0.3241 | D106: 0 | E106: 0.5325 | F106: 0 | G106: 0.5398 | H106: 0 | I106: 0.5784 | J106: 0 | K106: 1.0002 | L106: 0 | M106: 0.2663 | N106: 0 | O106: 1.0002 | P106: 0 | AO106: 10676.2 | AP106: 0
B107: 2012-02-08 | C107: 0.3257 | D107: 0.004936747917 | E107: 0.5332 | F107: 0.001314553991 | G107: 0.5416 | H107: 0.003334568359 | I107: 0.5807 | J107: 0.00397648686 | K107: 1.0006 | L107: 0.000399920016 | M107: 0.2673 | N107: 0.00375516335 | O107: 1.0006 | P107: 0.000399920016 | AO107: 10808.56 | AP107: 0.01239766958
B108: 2012-02-09 | C108: 0.3277 | D108: 0.006140620203 | E108: 0.5332 | F108: 0 | G108: 0.5435 | H108: 0.003508124077 | I108: 0.5832 | J108: 0.004305148958 | K108: 1.0007 | L108: 9.994003598e-05 | M108: 0.2681 | N108: 0.002992891882 | O108: 1.0007 | P108: 9.994003598e-05 | AO108: 10896.35 | AP108: 0.008122266056
B109: 2012-02-10 | C109: 0.3276 | D109: -0.0003051571559 | E109: 0.5333 | F109: 0.0001875468867 | G109: 0.5434 | H109: -0.0001839926403 | I109: 0.5834 | J109: 0.0003429355281 | K109: 1.0008 | L109: 9.993004897e-05 | M109: 0.2679 | N109: -0.0007459903021 | O109: 1.0008 | P109: 9.993004897e-05 | AO109: 10867.66 | AP109: -0.002632991782
B110: 2012-02-11 | C110: 0.3276 | D110: 0 | E110: 0.5333 | F110: 0 | G110: 0.5434 | H110: 0 | I110: 0.5834 | J110: 0 | K110: 1.0008 | L110: 0 | M110: 0.2679 | N110: 0 | O110: 1.0008 | P110: 0 | AO110: 10867.66 | AP110: 0
B111: 2012-02-12 | C111: 0.3276 | D111: 0 | E111: 0.5333 | F111: 0 | G111: 0.5434 | H111: 0 | I111: 0.5834 | J111: 0 | K111: 1.0008 | L111: 0 | M111: 0.2679 | N111: 0 | O111: 1.0008 | P111: 0 | AO111: 10867.66 | AP111: 0
B112: 2012-02-13 | C112: 0.3268 | D112: -0.002442002442 | E112: 0.5335 | F112: 0.000375023439 | G112: 0.5427 | H112: -0.001288185499 | I112: 0.5823 | J112: -0.0018854988 | K112: 1.001 | L112: 0.0001998401279 | M112: 0.2679 | N112: 0 | O112: 1.001 | P112: 0.0001998401279 | AO112: 10865.15 | AP112: -0.0002309604828
B113: 2012-02-14 | C113: 0.3263 | D113: -0.00152998776 | E113: 0.5335 | F113: 0 | G113: 0.5422 | H113: -0.0009213193293 | I113: 0.5816 | J113: -0.001202129487 | K113: 1.001 | L113: 0 | M113: 0.2681 | N113: 0.0007465472191 | O113: 1.0011 | P113: 9.99000999e-05 | AO113: 10832.23 | AP113: -0.003029870733
B114: 2012-02-15 | C114: 0.3261 | D114: -0.0006129328838 | E114: 0.5336 | F114: 0.0001874414246 | G114: 0.5417 | H114: -0.0009221689414 | I114: 0.5815 | J114: -0.0001719394773 | K114: 1.0011 | L114: 9.99000999e-05 | M114: 0.2677 | N114: -0.001491980604 | O114: 1.0012 | P114: 9.989012087e-05 | AO114: 10815.09 | AP114: -0.001582314999
B115: 2012-02-16 | C115: 0.3235 | D115: -0.007973014413 | E115: 0.5335 | F115: -0.0001874062969 | G115: 0.5396 | H115: -0.003876684512 | I115: 0.5788 | J115: -0.00464316423 | K115: 1.0012 | L115: 9.989012087e-05 | M115: 0.2667 | N115: -0.003735524841 | O115: 1.0013 | P115: 9.988014383e-05 | AO115: 10717.21 | AP115: -0.009050317658
B116: 2012-02-17 | C116: 0.3253 | D116: 0.005564142195 | E116: 0.5336 | F116: 0.0001874414246 | G116: 0.5415 | H116: 0.003521126761 | I116: 0.5814 | J116: 0.004492052522 | K116: 1.0013 | L116: 9.988014383e-05 | M116: 0.2673 | N116: 0.002249718785 | O116: 1.0014 | P116: 9.987016878e-05 | AO116: 10757.03 | AP116: 0.003715519244
B117: 2012-02-18 | C117: 0.3253 | D117: 0 | E117: 0.5336 | F117: 0 | G117: 0.5415 | H117: 0 | I117: 0.5814 | J117: 0 | K117: 1.0013 | L117: 0 | M117: 0.2673 | N117: 0 | O117: 1.0014 | P117: 0 | AO117: 10757.03 | AP117: 0
B118: 2012-02-19 | C118: 0.3253 | D118: 0 | E118: 0.5336 | F118: 0 | G118: 0.5415 | H118: 0 | I118: 0.5814 | J118: 0 | K118: 1.0013 | L118: 0 | M118: 0.2673 | N118: 0 | O118: 1.0014 | P118: 0 | AO118: 10757.03 | AP118: 0
B119: 2012-02-20 | C119: 0.3256 | D119: 0.0009222256379 | E119: 0.5337 | F119: 0.0001874062969 | G119: 0.5419 | H119: 0.0007386888273 | I119: 0.5818 | J119: 0.000687994496 | K119: 1.0015 | L119: 0.0001997403376 | M119: 0.2674 | N119: 0.0003741114852 | O119: 1.0016 | P119: 0.0001997203915 | AO119: 10757.47 | AP119: 4.090348358e-05
B120: 2012-02-21 | C120: 0.326 | D120: 0.001228501229 | E120: 0.5337 | F120: 0 | G120: 0.5427 | H120: 0.001476287138 | I120: 0.5825 | J120: 0.001203162599 | K120: 1.0016 | L120: 9.985022466e-05 | M120: 0.2682 | N120: 0.002991772625 | O120: 1.0017 | P120: 9.984025559e-05 | AO120: 10773.49 | AP120: 0.001489197739
B121: 2012-02-22 | C121: 0.3247 | D121: -0.003987730061 | E121: 0.5335 | F121: -0.0003747423646 | G121: 0.5416 | H121: -0.002026902524 | I121: 0.5812 | J121: -0.002231759657 | K121: 1.0016 | L121: 0 | M121: 0.2684 | N121: 0.0007457121551 | O121: 1.0018 | P121: 9.983028851e-05 | AO121: 10731.59 | AP121: -0.003889176117
B122: 2012-02-23 | C122: 0.3241 | D122: -0.001847859563 | E122: 0.5334 | F122: -0.0001874414246 | G122: 0.5414 | H122: -0.0003692762186 | I122: 0.5809 | J122: -0.0005161734343 | K122: 1.0017 | L122: 9.984025559e-05 | M122: 0.2679 | N122: -0.001862891207 | O122: 1.0018 | P122: 0 | AO122: 10715.66 | AP122: -0.001484402591
B123: 2012-02-24 | C123: 0.3244 | D123: 0.0009256402345 | E123: 0.5335 | F123: 0.0001874765654 | G123: 0.5419 | H123: 0.0009235315848 | I123: 0.5814 | J123: 0.0008607333448 | K123: 1.0017 | L123: 0 | M123: 0.2686 | N123: 0.002612915267 | O123: 1.0019 | P123: 9.982032342e-05 | AO123: 10757.34 | AP123: 0.003889634423
B124: 2012-02-25 | C124: 0.3244 | D124: 0 | E124: 0.5335 | F124: 0 | G124: 0.5419 | H124: 0 | I124: 0.5814 | J124: 0 | K124: 1.0017 | L124: 0 | M124: 0.2686 | N124: 0 | O124: 1.0019 | P124: 0 | AO124: 10757.34 | AP124: 0
B125: 2012-02-26 | C125: 0.3244 | D125: 0 | E125: 0.5335 | F125: 0 | G125: 0.5419 | H125: 0 | I125: 0.5814 | J125: 0 | K125: 1.0017 | L125: 0 | M125: 0.2686 | N125: 0 | O125: 1.0019 | P125: 0 | AO125: 10757.34 | AP125: 0
B126: 2012-02-27 | C126: 0.3246 | D126: 0.0006165228113 | E126: 0.5335 | F126: 0 | G126: 0.542 | H126: 0.0001845358922 | I126: 0.5816 | J126: 0.000343997248 | K126: 1.0018 | L126: 9.983028851e-05 | M126: 0.2688 | N126: 0.0007446016381 | O126: 1.0022 | P126: 0.0002994310809 | AO126: 10752.41 | AP126: -0.0004582917338
B127: 2012-02-28 | C127: 0.324 | D127: -0.001848428835 | E127: 0.5335 | F127: 0 | G127: 0.541 | H127: -0.00184501845 | I127: 0.5806 | J127: -0.001719394773 | K127: 1.0019 | L127: 9.982032342e-05 | M127: 0.2689 | N127: 0.0003720238095 | O127: 1.0022 | P127: 0 | AO127: 10720.94 | AP127: -0.002926785716
B128: 2012-02-29 | C128: 0.3256 | D128: 0.004938271605 | E128: 0.5336 | F128: 0.0001874414246 | G128: 0.5421 | H128: 0.002033271719 | I128: 0.5825 | J128: 0.003272476748 | K128: 1 | L128: -0.001896396846 | M128: 0.2694 | N128: 0.001859427296 | O128: 1 | P128: -0.002195170625 | AO128: 10813.97 | AP128: 0.008677410749
B129: 2012-03-01 | C129: 0.3269 | D129: 0.003992628993 | E129: 0.5336 | F129: 0 | G129: 0.543 | H129: 0.001660210293 | I129: 0.584 | J129: 0.002575107296 | K129: 1 | L129: 0 | M129: 0.2701 | N129: 0.002598366741 | O129: 1.0001 | P129: 0.0001 | AO129: 10842.8 | AP129: 0.002665995929
B130: 2012-03-02 | C130: 0.3277 | D130: 0.002447231569 | E130: 0.5336 | F130: 0 | G130: 0.5437 | H130: 0.001289134438 | I130: 0.5846 | J130: 0.00102739726 | K130: 1.0001 | L130: 0.0001 | M130: 0.2702 | N130: 0.0003702332469 | O130: 1.0002 | P130: 9.9990001e-05 | AO130: 10900.86 | AP130: 0.005354705427
B131: 2012-03-03 | C131: 0.3277 | D131: 0 | E131: 0.5336 | F131: 0 | G131: 0.5437 | H131: 0 | I131: 0.5846 | J131: 0 | K131: 1.0001 | L131: 0 | M131: 0.2702 | N131: 0 | O131: 1.0002 | P131: 0 | AO131: 10900.86 | AP131: 0
B132: 2012-03-04 | C132: 0.3277 | D132: 0 | E132: 0.5336 | F132: 0 | G132: 0.5437 | H132: 0 | I132: 0.5846 | J132: 0 | K132: 1.0001 | L132: 0 | M132: 0.2702 | N132: 0 | O132: 1.0002 | P132: 0 | AO132: 10900.86 | AP132: 0
B133: 2012-03-05 | C133: 0.3276 | D133: -0.0003051571559 | E133: 0.5336 | F133: 0 | G133: 0.5437 | H133: 0 | I133: 0.5846 | J133: 0 | K133: 1.0003 | L133: 0.000199980002 | M133: 0.2706 | N133: 0.0014803849 | O133: 1.0004 | P133: 0.000199960008 | AO133: 10903.6 | AP133: 0.000251356315
B134: 2012-03-06 | C134: 0.3274 | D134: -0.0006105006105 | E134: 0.5332 | F134: -0.0007496251874 | G134: 0.5436 | H134: -0.0001839249586 | I134: 0.5844 | J134: -0.0003421142662 | K134: 1.0004 | L134: 9.9970009e-05 | M134: 0.271 | N134: 0.0014781966 | O134: 1.0005 | P134: 9.996001599e-05 | AO134: 10888.19 | AP134: -0.001413294692
B135: 2012-03-07 | C135: 0.3252 | D135: -0.006719609041 | E135: 0.5332 | F135: 0 | G135: 0.5417 | H135: -0.003495217071 | I135: 0.582 | J135: -0.004106776181 | K135: 1.0005 | L135: 9.996001599e-05 | M135: 0.2705 | N135: -0.00184501845 | O135: 1.0006 | P135: 9.995002499e-05 | AO135: 10803.44 | AP135: -0.007783662849
B136: 2012-03-08 | C136: 0.3255 | D136: 0.0009225092251 | E136: 0.5333 | F136: 0.0001875468867 | G136: 0.542 | H136: 0.0005538120731 | I136: 0.5822 | J136: 0.0003436426117 | K136: 1.0005 | L136: 0 | M136: 0.2707 | N136: 0.0007393715342 | O136: 1.0007 | P136: 9.994003598e-05 | AO136: 10825.06 | AP136: 0.002001214428
B137: 2012-03-09 | C137: 0.3253 | D137: -0.0006144393241 | E137: 0.5329 | F137: -0.0007500468779 | G137: 0.542 | H137: 0 | I137: 0.5822 | J137: 0 | K137: 1.0006 | L137: 9.995002499e-05 | M137: 0.2707 | N137: 0 | O137: 1.0008 | P137: 9.993004897e-05 | AO137: 10834.35 | AP137: 0.0008581938576
B138: 2012-03-10 | C138: 0.3253 | D138: 0 | E138: 0.5329 | F138: 0 | G138: 0.542 | H138: 0 | I138: 0.5822 | J138: 0 | K138: 1.0006 | L138: 0 | M138: 0.2707 | N138: 0 | O138: 1.0008 | P138: 0 | AO138: 10834.35 | AP138: 0
B139: 2012-03-11 | C139: 0.3253 | D139: 0 | E139: 0.5329 | F139: 0 | G139: 0.542 | H139: 0 | I139: 0.5822 | J139: 0 | K139: 1.0006 | L139: 0 | M139: 0.2707 | N139: 0 | O139: 1.0008 | P139: 0 | AO139: 10834.35 | AP139: 0
B140: 2012-03-12 | C140: 0.3225 | D140: -0.008607439287 | E140: 0.5329 | F140: 0 | G140: 0.5393 | H140: -0.004981549815 | I140: 0.5787 | J140: -0.006011679835 | K140: 1.0008 | L140: 0.000199880072 | M140: 0.2697 | N140: -0.003694126339 | O140: 1.001 | P140: 0.0001998401279 | AO140: 10728.7 | AP140: -0.009751392562
B141: 2012-03-13 | C141: 0.3227 | D141: 0.0006201550388 | E141: 0.5325 | F141: -0.0007506098705 | G141: 0.5391 | H141: -0.0003708511033 | I141: 0.5786 | J141: -0.0001728011059 | K141: 1.0008 | L141: 0 | M141: 0.2697 | N141: 0 | O141: 1.0011 | P141: 9.99000999e-05 | AO141: 10718.83 | AP141: -0.000919962344
B142: 2012-03-14 | C142: 0.3242 | D142: 0.004648280136 | E142: 0.5319 | F142: -0.001126760563 | G142: 0.5404 | H142: 0.002411426451 | I142: 0.5801 | J142: 0.00259246457 | K142: 1.0009 | L142: 9.992006395e-05 | M142: 0.2706 | N142: 0.003337041157 | O142: 1.0012 | P142: 9.989012087e-05 | AO142: 10784.76 | AP142: 0.006150857883
B143: 2012-03-15 | C143: 0.3235 | D143: -0.002159161012 | E143: 0.5318 | F143: -0.0001880052641 | G143: 0.5402 | H143: -0.000370096225 | I143: 0.5797 | J143: -0.0006895362868 | K143: 1.001 | L143: 9.991008093e-05 | M143: 0.27 | N143: -0.0022172949 | O143: 1.0013 | P143: 9.988014383e-05 | AO143: 10784.44 | AP143: -2.967149941e-05
B144: 2012-03-16 | C144: 0.3228 | D144: -0.002163833076 | E144: 0.5317 | F144: -0.0001880406168 | G144: 0.5397 | H144: -0.0009255831174 | I144: 0.579 | J144: -0.001207521132 | K144: 1.001 | L144: 0 | M144: 0.27 | N144: 0 | O144: 1.0014 | P144: 9.987016878e-05 | AO144: 10732.4 | AP144: -0.004825470771
B145: 2012-03-17 | C145: 0.3228 | D145: 0 | E145: 0.5317 | F145: 0 | G145: 0.5397 | H145: 0 | I145: 0.579 | J145: 0 | K145: 1.001 | L145: 0 | M145: 0.27 | N145: 0 | O145: 1.0014 | P145: 0 | AO145: 10732.4 | AP145: 0
B146: 2012-03-18 | C146: 0.3228 | D146: 0 | E146: 0.5317 | F146: 0 | G146: 0.5397 | H146: 0 | I146: 0.579 | J146: 0 | K146: 1.001 | L146: 0 | M146: 0.27 | N146: 0 | O146: 1.0014 | P146: 0 | AO146: 10732.4 | AP146: 0
B147: 2012-03-19 | C147: 0.3231 | D147: 0.0009293680297 | E147: 0.5318 | F147: 0.0001880759827 | G147: 0.5399 | H147: 0.0003705762461 | I147: 0.5793 | J147: 0.000518134715 | K147: 1.0012 | L147: 0.0001998001998 | M147: 0.2699 | N147: -0.0003703703704 | O147: 1.0016 | P147: 0.0001997203915 | AO147: 10756.13 | AP147: 0.002211061831
B148: 2012-03-20 | C148: 0.3245 | D148: 0.004333023832 | E148: 0.531 | F148: -0.001504324934 | G148: 0.5411 | H148: 0.002222633821 | I148: 0.5806 | J148: 0.002244087692 | K148: 1.0013 | L148: 9.988014383e-05 | M148: 0.27 | N148: 0.0003705075954 | O148: 1.0017 | P148: 9.984025559e-05 | AO148: 10787.91 | AP148: 0.002954594264
B149: 2012-03-21 | C149: 0.325 | D149: 0.001540832049 | E149: 0.531 | F149: 0 | G149: 0.5417 | H149: 0.001108852338 | I149: 0.5809 | J149: 0.000516706855 | K149: 1.0014 | L149: 9.987016878e-05 | M149: 0.2705 | N149: 0.001851851852 | O149: 1.0018 | P149: 9.983028851e-05 | AO149: 10820.35 | AP149: 0.003007069951
B150: 2012-03-22 | C150: 0.3245 | D150: -0.001538461538 | E150: 0.5317 | F150: 0.00131826742 | G150: 0.5414 | H150: -0.0005538120731 | I150: 0.5807 | J150: -0.0003442933379 | K150: 1.0014 | L150: 0 | M150: 0.2705 | N150: 0 | O150: 1.0019 | P150: 9.982032342e-05 | AO150: 10816.73 | AP150: -0.0003345547972
B151: 2012-03-23 | C151: 0.3235 | D151: -0.003081664099 | E151: 0.5325 | F151: 0.001504607862 | G151: 0.5405 | H151: -0.001662356853 | I151: 0.5793 | J151: -0.002410883417 | K151: 1.0015 | L151: 9.986019573e-05 | M151: 0.2695 | N151: -0.003696857671 | O151: 1.002 | P151: 9.981036032e-05 | AO151: 10806.22 | AP151: -0.0009716430012
B152: 2012-03-24 | C152: 0.3235 | D152: 0 | E152: 0.5325 | F152: 0 | G152: 0.5405 | H152: 0 | I152: 0.5793 | J152: 0 | K152: 1.0015 | L152: 0 | M152: 0.2695 | N152: 0 | O152: 1.002 | P152: 0 | AO152: 10806.22 | AP152: 0
B153: 2012-03-25 | C153: 0.3235 | D153: 0 | E153: 0.5325 | F153: 0 | G153: 0.5405 | H153: 0 | I153: 0.5793 | J153: 0 | K153: 1.0015 | L153: 0 | M153: 0.2695 | N153: 0 | O153: 1.002 | P153: 0 | AO153: 10806.22 | AP153: 0
B154: 2012-03-26 | C154: 0.3227 | D154: -0.002472952087 | E154: 0.5326 | F154: 0.0001877934272 | G154: 0.5396 | H154: -0.001665124884 | I154: 0.5783 | J154: -0.001726221302 | K154: 1.0017 | L154: 0.0001997004493 | M154: 0.2696 | N154: 0.0003710575139 | O154: 1.0022 | P154: 0.0001996007984 | AO154: 10747.67 | AP154: -0.005418175828
B155: 2012-03-27 | C155: 0.3236 | D155: 0.002788968082 | E155: 0.5323 | F155: -0.0005632745024 | G155: 0.5404 | H155: 0.001482579689 | I155: 0.5792 | J155: 0.001556285665 | K155: 1.0018 | L155: 9.983028851e-05 | M155: 0.2706 | N155: 0.003709198813 | O155: 1.0023 | P155: 9.978048294e-05 | AO155: 10780.4 | AP155: 0.003045311216
B156: 2012-03-28 | C156: 0.3224 | D156: -0.003708281829 | E156: 0.5318 | F156: -0.0009393199324 | G156: 0.5391 | H156: -0.002405625463 | I156: 0.5779 | J156: -0.002244475138 | K156: 1.0018 | L156: 0 | M156: 0.2708 | N156: 0.0007390983001 | O156: 1.0024 | P156: 9.977052779e-05 | AO156: 10740.19 | AP156: -0.003729917257
B157: 2012-03-29 | C157: 0.3219 | D157: -0.001550868486 | E157: 0.5318 | F157: 0 | G157: 0.5389 | H157: -0.0003709886848 | I157: 0.5771 | J157: -0.001384322547 | K157: 1.0019 | L157: 9.982032342e-05 | M157: 0.2711 | N157: 0.001107828656 | O157: 1.0025 | P157: 9.976057462e-05 | AO157: 10719.89 | AP157: -0.001890096916
B158: 2012-03-30 | C158: 0.3239 | D158: 0.006213109661 | E158: 0.5315 | F158: -0.0005641218503 | G158: 0.5413 | H158: 0.004453516422 | I158: 0.5795 | J158: 0.004158724658 | K158: 1 | L158: -0.001896396846 | M158: 0.2746 | N158: 0.01291036518 | O158: 1 | P158: -0.002493765586 | AO158: 10816.23 | AP158: 0.008987032516
B159: 2012-03-31 | C159: 0.3239 | D159: 0 | E159: 0.5315 | F159: 0 | G159: 0.5413 | H159: 0 | I159: 0.5795 | J159: 0 | K159: 1 | L159: 0 | M159: 0.2746 | N159: 0 | O159: 1 | P159: 0 | AO159: 10816.23 | AP159: 0
B160: 2012-04-01 | C160: 0.3239 | D160: 0 | E160: 0.5315 | F160: 0 | G160: 0.5413 | H160: 0 | I160: 0.5795 | J160: 0 | K160: 1.002 | L160: 0.002 | M160: 0.2746 | N160: 0 | O160: 1.0026 | P160: 0.0026 | AO160: 10816.23 | AP160: 0
B161: 2012-04-02 | C161: 0.3243 | D161: 0.001234949058 | E161: 0.5316 | F161: 0.0001881467545 | G161: 0.5419 | H161: 0.001108442638 | I161: 0.5804 | J161: 0.001553062985 | K161: 1.0002 | L161: -0.001796407186 | M161: 0.273 | N161: -0.005826656956 | O161: 1.0003 | P161: -0.002294035508 | AO161: 10850.77 | AP161: 0.003193349254
B162: 2012-04-03 | C162: 0.3251 | D162: 0.002466851681 | E162: 0.5318 | F162: 0.0003762227239 | G162: 0.5426 | H162: 0.001291751246 | I162: 0.5818 | J162: 0.002412129566 | K162: 1.0002 | L162: 0 | M162: 0.2731 | N162: 0.0003663003663 | O162: 1.0003 | P162: 0 | AO162: 10869.89 | AP162: 0.00176208693
B163: 2012-04-04 | C163: 0.3242 | D163: -0.00276837896 | E163: 0.5318 | F163: 0 | G163: 0.5415 | H163: -0.002027276078 | I163: 0.5805 | J163: -0.002234444826 | K163: 1.0003 | L163: 9.9980004e-05 | M163: 0.2723 | N163: -0.002929329916 | O163: 1.0004 | P163: 9.9970009e-05 | AO163: 10831.35 | AP163: -0.003545574058
B164: 2012-04-05 | C164: 0.3234 | D164: -0.002467612585 | E164: 0.5319 | F164: 0.0001880406168 | G164: 0.5407 | H164: -0.001477377655 | I164: 0.5795 | J164: -0.001722652885 | K164: 1.0004 | L164: 9.9970009e-05 | M164: 0.2724 | N164: 0.0003672420125 | O164: 1.0005 | P164: 9.996001599e-05 | AO164: 10818.58 | AP164: -0.001178985076
B165: 2012-04-06 | C165: 0.3236 | D165: 0.0006184291899 | E165: 0.532 | F165: 0.0001880052641 | G165: 0.5409 | H165: 0.0003698908822 | I165: 0.5798 | J165: 0.0005176876618 | K165: 1.0004 | L165: 0 | M165: 0.272 | N165: -0.001468428781 | O165: 1.0006 | P165: 9.995002499e-05 | AO165: 10841.56 | AP165: 0.002124123499
B166: 2012-04-07 | C166: 0.3236 | D166: 0 | E166: 0.532 | F166: 0 | G166: 0.5409 | H166: 0 | I166: 0.5798 | J166: 0 | K166: 1.0004 | L166: 0 | M166: 0.272 | N166: 0 | O166: 1.0006 | P166: 0 | AO166: 10841.56 | AP166: 0
B167: 2012-04-08 | C167: 0.3236 | D167: 0 | E167: 0.532 | F167: 0 | G167: 0.5409 | H167: 0 | I167: 0.5798 | J167: 0 | K167: 1.0004 | L167: 0 | M167: 0.272 | N167: 0 | O167: 1.0006 | P167: 0 | AO167: 10841.56 | AP167: 0
B168: 2012-04-09 | C168: 0.3228 | D168: -0.002472187886 | E168: 0.5323 | F168: 0.0005639097744 | G168: 0.5403 | H168: -0.001109262341 | I168: 0.5792 | J168: -0.0010348396 | K168: 1.0006 | L168: 0.000199920032 | M168: 0.272 | N168: 0 | O168: 1.0008 | P168: 0.000199880072 | AO168: 10803.37 | AP168: -0.003522555795
B169: 2012-04-10 | C169: 0.3238 | D169: 0.003097893432 | E169: 0.5325 | F169: 0.0003757279729 | G169: 0.5413 | H169: 0.001850823617 | I169: 0.5803 | J169: 0.001899171271 | K169: 1.0007 | L169: 9.994003598e-05 | M169: 0.2722 | N169: 0.0007352941176 | O169: 1.0009 | P169: 9.992006395e-05 | AO169: 10830.49 | AP169: 0.002510327796
B170: 2012-04-11 | C170: 0.3238 | D170: 0 | E170: 0.5325 | F170: 0 | G170: 0.5413 | H170: 0 | I170: 0.5803 | J170: 0 | K170: 1.0007 | L170: 0 | M170: 0.2722 | N170: 0 | O170: 1.0009 | P170: 0 | AO170: 10830.49 | AP170: 0
B171: 2012-04-12 | C171: 0.3246 | D171: 0.002470660902 | E171: 0.5332 | F171: 0.001314553991 | G171: 0.5425 | H171: 0.002216885276 | I171: 0.5816 | J171: 0.002240220576 | K171: 1.0008 | L171: 9.993004897e-05 | M171: 0.2723 | N171: 0.0003673769287 | O171: 1.0011 | P171: 0.0001998201619 | AO171: 10877.89 | AP171: 0.004376533287
B172: 2012-04-13 | C172: 0.3246 | D172: 0 | E172: 0.5333 | F172: 0.0001875468867 | G172: 0.5426 | H172: 0.0001843317972 | I172: 0.5817 | J172: 0.0001719394773 | K172: 1.0009 | L172: 9.992006395e-05 | M172: 0.2728 | N172: 0.001836210062 | O172: 1.0011 | P172: 0 | AO172: 10902.17 | AP172: 0.002232050517
B173: 2012-04-14 | C173: 0.3246 | D173: 0 | E173: 0.5333 | F173: 0 | G173: 0.5426 | H173: 0 | I173: 0.5817 | J173: 0 | K173: 1.0009 | L173: 0 | M173: 0.2728 | N173: 0 | O173: 1.0011 | P173: 0 | AO173: 10902.17 | AP173: 0
B174: 2012-04-15 | C174: 0.3246 | D174: 0 | E174: 0.5333 | F174: 0 | G174: 0.5426 | H174: 0 | I174: 0.5817 | J174: 0 | K174: 1.0009 | L174: 0 | M174: 0.2728 | N174: 0 | O174: 1.0011 | P174: 0 | AO174: 10902.17 | AP174: 0
B175: 2012-04-16 | C175: 0.3238 | D175: -0.002464571781 | E175: 0.5335 | F175: 0.000375023439 | G175: 0.5417 | H175: -0.001658680428 | I175: 0.5804 | J175: -0.00223482895 | K175: 1.0011 | L175: 0.0001998201619 | M175: 0.2724 | N175: -0.00146627566 | O175: 1.0014 | P175: 0.0002996703626 | AO175: 10870.18 | AP175: -0.002934278222
B176: 2012-04-17 | C176: 0.3238 | D176: 0 | E176: 0.5336 | F176: 0.0001874414246 | G176: 0.5414 | H176: -0.0005538120731 | I176: 0.5794 | J176: -0.00172294969 | K176: 1.0011 | L176: 0 | M176: 0.2726 | N176: 0.0007342143906 | O176: 1.0015 | P176: 9.986019573e-05 | AO176: 10860.9 | AP176: -0.0008537117141
B177: 2012-04-18 | C177: 0.3237 | D177: -0.0003088326127 | E177: 0.5336 | F177: 0 | G177: 0.5416 | H177: 0.0003694126339 | I177: 0.5803 | J177: 0.001553331032 | K177: 1.0012 | L177: 9.989012087e-05 | M177: 0.2725 | N177: -0.0003668378577 | O177: 1.0015 | P177: 0 | AO177: 10867.21 | AP177: 0.0005809831598
B178: 2012-04-19 | C178: 0.323 | D178: -0.002162496138 | E178: 0.5336 | F178: 0 | G178: 0.5403 | H178: -0.002400295421 | I178: 0.5788 | J178: -0.002584869895 | K178: 1.0013 | L178: 9.988014383e-05 | M178: 0.2721 | N178: -0.001467889908 | O178: 1.0016 | P178: 9.985022466e-05 | AO178: 10848.11 | AP178: -0.001757580833
B179: 2012-04-20 | C179: 0.3229 | D179: -0.0003095975232 | E179: 0.5337 | F179: 0.0001874062969 | G179: 0.5399 | H179: -0.0007403294466 | I179: 0.5784 | J179: -0.0006910850035 | K179: 1.0013 | L179: 0 | M179: 0.2722 | N179: 0.0003675119441 | O179: 1.0017 | P179: 9.984025559e-05 | AO179: 10828.83 | AP179: -0.001777268114
B180: 2012-04-21 | C180: 0.3229 | D180: 0 | E180: 0.5337 | F180: 0 | G180: 0.5399 | H180: 0 | I180: 0.5784 | J180: 0 | K180: 1.0013 | L180: 0 | M180: 0.2722 | N180: 0 | O180: 1.0017 | P180: 0 | AO180: 10828.83 | AP180: 0
B181: 2012-04-22 | C181: 0.3229 | D181: 0 | E181: 0.5337 | F181: 0 | G181: 0.5399 | H181: 0 | I181: 0.5784 | J181: 0 | K181: 1.0013 | L181: 0 | M181: 0.2722 | N181: 0 | O181: 1.0017 | P181: 0 | AO181: 10828.83 | AP181: 0
B182: 2012-04-23 | C182: 0.3227 | D182: -0.0006193868071 | E182: 0.5338 | F182: 0.0001873711823 | G182: 0.5398 | H182: -0.0001852194851 | I182: 0.578 | J182: -0.0006915629322 | K182: 1.0015 | L182: 0.0001997403376 | M182: 0.2722 | N182: 0 | O182: 1.0019 | P182: 0.000199660577 | AO182: 10779.67 | AP182: -0.004539733286
B183: 2012-04-24 | C183: 0.3235 | D183: 0.002479082739 | E183: 0.5338 | F183: 0 | G183: 0.5405 | H183: 0.001296776584 | I183: 0.5791 | J183: 0.001903114187 | K183: 1.0016 | L183: 9.985022466e-05 | M183: 0.2723 | N183: 0.0003673769287 | O183: 1.002 | P183: 9.981036032e-05 | AO183: 10785.81 | AP183: 0.0005695907203
B184: 2012-04-25 | C184: 0.323 | D184: -0.001545595054 | E184: 0.5338 | F184: 0 | G184: 0.5398 | H184: -0.001295097132 | I184: 0.5782 | J184: -0.001554135728 | K184: 1.0016 | L184: 0 | M184: 0.2727 | N184: 0.00146896805 | O184: 1.0021 | P184: 9.98003992e-05 | AO184: 10761.1 | AP184: -0.002290973047
B185: 2012-04-26 | C185: 0.3225 | D185: -0.001547987616 | E185: 0.5338 | F185: 0 | G185: 0.5385 | H185: -0.00240829937 | I185: 0.577 | J185: -0.002075406434 | K185: 1.0017 | L185: 9.984025559e-05 | M185: 0.2735 | N185: 0.002933626696 | O185: 1.0022 | P185: 9.979044008e-05 | AO185: 10767.15 | AP185: 0.000562210183
B186: 2012-04-27 | C186: 0.3214 | D186: -0.003410852713 | E186: 0.5339 | F186: 0.0001873360809 | G186: 0.5373 | H186: -0.002228412256 | I186: 0.5758 | J186: -0.002079722704 | K186: 1.0018 | L186: 9.983028851e-05 | M186: 0.2729 | N186: -0.002193784278 | O186: 1.0023 | P186: 9.978048294e-05 | AO186: 10714.04 | AP186: -0.004932595905
B187: 2012-04-28 | C187: 0.3214 | D187: 0 | E187: 0.5339 | F187: 0 | G187: 0.5373 | H187: 0 | I187: 0.5758 | J187: 0 | K187: 1.0018 | L187: 0 | M187: 0.2729 | N187: 0 | O187: 1.0023 | P187: 0 | AO187: 10714.04 | AP187: 0
B188: 2012-04-29 | C188: 0.3214 | D188: 0 | E188: 0.5339 | F188: 0 | G188: 0.5373 | H188: 0 | I188: 0.5758 | J188: 0 | K188: 1.0018 | L188: 0 | M188: 0.2729 | N188: 0 | O188: 1.0023 | P188: 0 | AO188: 10714.04 | AP188: 0
B189: 2012-04-30 | C189: 0.322 | D189: 0.001866832607 | E189: 0.5341 | F189: 0.0003746019854 | G189: 0.5383 | H189: 0.00186115764 | I189: 0.5768 | J189: 0.001736714137 | K189: 1 | L189: -0.001796765822 | M189: 0.2737 | N189: 0.002931476731 | O189: 1 | P189: -0.002294722139 | AO189: 10721.44 | AP189: 0.0006906825063
B190: 2012-05-01 | C190: 0.322 | D190: 0 | E190: 0.5341 | F190: 0 | G190: 0.5383 | H190: 0 | I190: 0.5768 | J190: 0 | K190: 1.002 | L190: 0.002 | M190: 0.2737 | N190: 0 | O190: 1.0025 | P190: 0.0025 | AO190: 10721.44 | AP190: 0
B191: 2012-05-02 | C191: 0.3236 | D191: 0.004968944099 | E191: 0.5341 | F191: 0 | G191: 0.5403 | H191: 0.003715400334 | I191: 0.5793 | J191: 0.004334257975 | K191: 1.0001 | L191: -0.001896207585 | M191: 0.274 | N191: 0.00109609061 | O191: 1.0004 | P191: -0.002094763092 | AO191: 10774.36 | AP191: 0.004935904132
B192: 2012-05-03 | C192: 0.3237 | D192: 0.0003090234858 | E192: 0.534 | F192: -0.0001872308556 | G192: 0.5402 | H192: -0.0001850823617 | I192: 0.5792 | J192: -0.0001726221302 | K192: 1.0002 | L192: 9.9990001e-05 | M192: 0.2742 | N192: 0.0007299270073 | O192: 1.0005 | P192: 9.996001599e-05 | AO192: 10798.62 | AP192: 0.002251641861
B193: 2012-05-04 | C193: 0.3227 | D193: -0.003089280198 | E193: 0.534 | F193: 0 | G193: 0.539 | H193: -0.002221399482 | I193: 0.5781 | J193: -0.001899171271 | K193: 1.0002 | L193: 0 | M193: 0.2745 | N193: 0.001094091904 | O193: 1.0005 | P193: 0 | AO193: 10871.31 | AP193: 0.006731415681
B194: 2012-05-05 | C194: 0.3227 | D194: 0 | E194: 0.534 | F194: 0 | G194: 0.539 | H194: 0 | I194: 0.5781 | J194: 0 | K194: 1.0002 | L194: 0 | M194: 0.2745 | N194: 0 | O194: 1.0005 | P194: 0 | AO194: 10871.31 | AP194: 0
B195: 2012-05-06 | C195: 0.3227 | D195: 0 | E195: 0.534 | F195: 0 | G195: 0.539 | H195: 0 | I195: 0.5781 | J195: 0 | K195: 1.0002 | L195: 0 | M195: 0.2745 | N195: 0 | O195: 1.0005 | P195: 0 | AO195: 10871.31 | AP195: 0
B196: 2012-05-07 | C196: 0.3234 | D196: 0.002169197397 | E196: 0.5342 | F196: 0.0003745318352 | G196: 0.5398 | H196: 0.001484230056 | I196: 0.5788 | J196: 0.001210863172 | K196: 1.0004 | L196: 0.000199960008 | M196: 0.2743 | N196: -0.0007285974499 | O196: 1.0008 | P196: 0.000299850075 | AO196: 10800.99 | AP196: -0.006468401692
B197: 2012-05-08 | C197: 0.3244 | D197: 0.003092145949 | E197: 0.5342 | F197: 0 | G197: 0.5406 | H197: 0.001482030382 | I197: 0.5799 | J197: 0.00190048376 | K197: 1.0005 | L197: 9.996001599e-05 | M197: 0.2754 | N197: 0.004010207802 | O197: 1.0009 | P197: 9.992006395e-05 | AO197: 10842.41 | AP197: 0.003834833659
B198: 2012-05-09 | C198: 0.3231 | D198: -0.004007398274 | E198: 0.5344 | F198: 0.0003743916136 | G198: 0.5389 | H198: -0.003144654088 | I198: 0.578 | J198: -0.00327642697 | K198: 1.0005 | L198: 0 | M198: 0.2746 | N198: -0.00290486565 | O198: 1.0009 | P198: 0 | AO198: 10798.03 | AP198: -0.004093185925
B199: 2012-05-10 | C199: 0.3233 | D199: 0.0006190034045 | E199: 0.5345 | F199: 0.0001871257485 | G199: 0.539 | H199: 0.0001855631843 | I199: 0.5781 | J199: 0.0001730103806 | K199: 1.0006 | L199: 9.995002499e-05 | M199: 0.2746 | N199: 0 | O199: 1.001 | P199: 9.991008093e-05 | AO199: 10816.43 | AP199: 0.001704014529
B200: 2012-05-11 | C200: 0.3231 | D200: -0.0006186204763 | E200: 0.5346 | F200: 0.000187090739 | G200: 0.5387 | H200: -0.0005565862709 | I200: 0.5777 | J200: -0.0006919218128 | K200: 1.0007 | L200: 9.994003598e-05 | M200: 0.2747 | N200: 0.0003641660597 | O200: 1.0011 | P200: 9.99000999e-05 | AO200: 10803.23 | AP200: -0.001220365684
... 925 more rows

Sheet Setting
A1: PORTFOLIO CODE | F1: PORTFOLIO CODE END
A2: Fund SDF | J2: T-1 Date Setting | O2: Security SDF (Target Fund) | R2: WM Fund Order
A3: Fund Code | B3: UPMultiClassType | C3: Fund Description | D3: Sign | E3: Sort | F3: FIMM Fund Code | G3: Bloomberg Code | H3: Reuters & Lipper code | J3: Daily | K3: MTD | L3: YTD | O3: Stock Code | R3: FundCode | S3: Order No. | T3: BLOOMBERG CODE/ISIN/SEDOL | U3: FUND NAME
A4: BICMF3 | B4: 0 | C4: BIMB i Cash Management Fund | E4: 0 | F4: BIMB I CASH 3 | G4: BICMF3 MK | J4: 2021-06-03 | K4: 2021-05-31 | L4: 2020-12-31 | O4: LU1245544975 | R4: GD1USD | S4: 1 | T4: BIMAIGD MK Equity | U4: BIMB-ARABESQUE i GLOBAL DIVIDEND FUND 1 (USD CLASS)
A5: BIW | B5: 0 | C5: BIMB Invest Wafiyah | E5: 0 | F5: BIMB INVEST WAFIYAH | H5: 68394567 | O5: LU2075210943 | R5: GD1MYR | S5: 2 | T5: BIMAGDR MK Equity | U5: BIMB-ARABESQUE i GLOBAL DIVIDEND FUND 1 (RM CLASS)
A6: BSF-Class A | B6: 5 | C6: BIMB ESG Sukuk Fund - Class A | D6: ^ | E6: 20 | F6: BSF-CA | G6: BIMESSA MK | H6: 68506325 | J6: T Date Setting | R6: GD1SGD | S6: 3 | T6: BIMAGDS MK | U6: BIMB-ARABESQUE i GLOBAL DIVIDEND FUND 1 (SGD CLASS)
A7: BSF-Class B | B7: 5 | C7: BIMB ESG Sukuk Fund - Class B | D7: ^ | E7: 21 | F7: BSF-CB | G7: BIMESSB MK | H7: 68506326 | J7: Daily | K7: MTD | L7: YTD | R7: GD1RMH | S7: 4 | T7: BIMAGDM MK | U7: BIMB-ARABESQUE i GLOBAL DIVIDEND FUND 1 (RM HEDGED CLASS)
A8: BSF-Class C | B8: 5 | C8: BIMB ESG Sukuk Fund - Class C | D8: ^ | E8: 22 | F8: BSF-CC | G8: BIMESSC MK | H8: 68506327 | J8: 2021-06-04 | K8: 2021-05-31 | L8: 2020-12-31 | R8: BMSEFMYR | S8: 5 | T8: BIMSEEM MK | U8: BIMB-ARABESQUE MALAYSIA SHARIAH-ESG EQUITY FUND (RM CLASS)
A9: BSF-Class D | B9: 5 | C9: BIMB ESG Sukuk Fund - Class D | D9: ^ | E9: 23 | F9: BSF-CD | G9: BIMESSD MK | H9: 68506328 | R9: BMSEFUSD | S9: 6 | T9: BIMSEEU MK | U9: BIMB-ARABESQUE MALAYSIA SHARIAH-ESG EQUITY FUND (USD CLASS)
A10: BSF-Class E | B10: 5 | C10: BIMB ESG Sukuk Fund - Class E | D10: ^ | E10: 24 | F10: BSF-CE | G10: BIMESSE MK | H10: 68506329 | R10: BMSEFSGD | S10: 7 | T10: BIMSEES MK | U10: BIMB-ARABESQUE MALAYSIA SHARIAH-ESG EQUITY FUND (SGD CLASS)
A11: BVMSEF | B11: 0 | C11: BIMB-Arabesque Valuecap Malaysia Shariah-ESG Eqt | E11: 0 | F11: BVMSEF | G11: BIMSEEI MK | H11: 68500820 | R11: BMSEFEUR | S11: 8 | T11: BIMSEEE MK | U11: BIMB-ARABESQUE MALAYSIA SHARIAH-ESG EQUITY FUND (EUR CLASS)
A12: GD1MYR | B12: 5 | C12: BIMB-ARABESQUE i Global Dividend Fund 1 - RM Class | D12: ^ | E12: 10 | F12: BIGDF1-RM | G12: BIMAGDR MK Equity | H12: 68344064 | R12: BAPACUSD | S12: 9 | T12: BIAAUSD MK | U12: BIMB-Arabesque Asia Pacific Shariah-ESG Equity Fund (USD CLASS)
A13: GD1USD | B13: 5 | C13: BIMB-ARABESQUE i Global Dividend Fund 1 - USD Class | D13: ^ | E13: 11 | F13: BIGDF1-USD | G13: BIMAIGD MK Equity | H13: 68344065 | R13: BAPACMYR | S13: 10 | T13: BIAAMYR MK | U13: BIMB-Arabesque Asia Pacific Shariah-ESG Equity Fund (RM CLASS)
A14: GD1SGD | B14: 5 | C14: BIMB-ARABESQUE i Global Dividend Fund 1 - SGD Class | D14: ^ | E14: 12 | F14: BIGDF1-SGD | G14: BIMAGDS MK | H14: 68578383 | R14: BSF-Class A | S14: 11 | T14: BIMESSA MK | U14: BIMB ESG SUKUK FUND (CLASS A)
A15: GD1RMH | B15: 5 | C15: BIMB-ARABESQUE i Global Dividend Fund 1 - RM Hedged Class | D15: ^ | E15: 13 | F15: BIGDF1-RMH | G15: BIMAGDM MK | H15: 68578384 | R15: BSF-Class B | S15: 12 | T15: BIMESSB MK | U15: BIMB ESG SUKUK FUND (CLASS B)
A16: IB | B16: 0 | C16: BIMB Dana Al-Fakhim | E16: 3 | F16: AL-FAKHIM | G16: BIMBONI MK Equity | H16: 60064165 | R16: BSF-Class C | S16: 13 | T16: BIMESSC MK | U16: BIMB ESG SUKUK FUND (CLASS C)
A17: ID | B17: 0 | C17: BIMB Dana Al-Falah | E17: 5 | F17: AL-FALAH | G17: BIMPEND MK Equity | H17: 60064167 | R17: BSF-Class D | S17: 14 | T17: BIMESSD MK | U17: BIMB ESG SUKUK FUND (CLASS D)
A18: IF | B18: 0 | C18: BIMB i Flexi Fund | E18: 7 | F18: BIMB I FLEXI | G18: BIMBIFL MK Equity | H18: 68255394 | R18: BSF-Class E | S18: 15 | T18: BIMESSE MK | U18: BIMB ESG SUKUK FUND (CLASS E)
A19: IP | B19: 0 | C19: BIMB i-Tactical Fund (Formerly known as BIMB i Dividend Fund) | E19: 1 | F19: BIMB I DIVIDEND | G19: BIMIDVD MK Equity | H19: 68089338 | R19: BIPF | S19: 16 | T19: BIMPREM MK Equity | U19: Bank Islam Premier Fund
A20: IS | B20: 0 | C20: BIMB Dana Al-Munsif | E20: 4 | F20: AL-MUNSIF | G20: BIMPERS MK Equity | H20: 60064166 | R20: BGSEFMYR | S20: 17 | T20: BISSEBG MK | U20: BIMB-ARABESQUE GLOBAL SHARIAH SUSTAINABLE EQUITY FUND - RM Class
A21: TP | B21: 0 | C21: BIMB i Growth (Al-Mubin) | E21: 2 | F21: BIMB I GROWTH | G21: BIMASBI MK Equity | H21: 60000397 | R21: BGSEFRMH | S21: 18 | T21: BISSERH MK | U21: BIMB-ARABESQUE GLOBAL SHARIAH SUSTAINABLE EQUITY FUND - RM Hedged Class
A22: BMSEFEUR | B22: 5 | C22: BIMB-Arabesque Malaysia Shariah-ESG Equity Fund - EUR CLASS | D22: ^ | E22: 17 | F22: BMSEF-EUR | G22: BIMSEEE MK | H22: 68412861 | R22: BGSEFUSD | S22: 19 | T22: BISSEUC MK | U22: BIMB-ARABESQUE GLOBAL SHARIAH SUSTAINABLE EQUITY FUND - USD Class
A23: BMSEFMYR | B23: 5 | C23: BIMB-Arabesque Malaysia Shariah-ESG Equity Fund - RM CLASS | D23: ^ | E23: 14 | F23: BMSEF-RM | G23: BIMSEEM MK | H23: 68412864 | R23: BGSEFAUD | S23: 20 | T23: BISSEBA MK | U23: BIMB-ARABESQUE GLOBAL SHARIAH SUSTAINABLE EQUITY FUND - AUD Class
A24: BMSEFSGD | B24: 5 | C24: BIMB-Arabesque Malaysia Shariah-ESG Equity Fund - SGD CLASS | D24: ^ | E24: 16 | F24: BMSEF-SGD | G24: BIMSEES MK | H24: 68412862 | R24: BGSEFSGD | S24: 21 | T24: BISSESC MK | U24: BIMB-ARABESQUE GLOBAL SHARIAH SUSTAINABLE EQUITY FUND - SGD Class
A25: BMSEFUSD | B25: 5 | C25: BIMB-Arabesque Malaysia Shariah-ESG Equity Fund - USD CLASS | D25: ^ | E25: 15 | F25: BMSEF-USD | G25: BIMSEEU MK | H25: 68412863 | R25: MWFMYR | S25: 22 | T25: BMAMMEM MK | U25: Makmur myWakaf Fund (RM CLASS)
A26: BAPACMYR | B26: 5 | C26: BIMB-Arabesque Asia Pacific Shariah-ESG Equity Fund - RM CLASS | D26: ^ | E26: 19 | F26: BAPAC-RM | G26: BIAAMYR MK | H26: 68467308 | R26: MWFUSD | S26: 23 | T26: BMAMMEU MK | U26: Makmur myWakaf Fund (USD CLASS)
A27: BAPACUSD | B27: 5 | C27: BIMB-Arabesque Asia Pacific Shariah-ESG Equity Fund - USD CLASS | D27: ^ | E27: 18 | F27: BAPAC-USD | G27: BIAAUSD MK | H27: 68467307 | R27: MWFAUD | S27: 24 | T27: BMAMMAM MK | U27: Makmur myWakaf Fund (AUD CLASS)
A28: BICMF | B28: 0 | C28: BIMB I Cash Management Fund | E28: 0
A29: BIMMF | B29: 0 | C29: BIMB Invest Money Market Fund | E29: 0
A30: BIPF | B30: 0 | C30: Bank Islam Premier Fund | D30: * | E30: 9 | G30: BIMPREM MK Equity
A31: BSIF | B31: 0 | C31: BIMB Shariah IncomePlus Fund | E31: 8
A32: MWFAUD | B32: 5 | C32: MAKMUR MYWAKAF FUND (AUD) | D32: ^ | E32: 25 | G32: BMAMMAM MK Equity
A33: MWFMYR | B33: 5 | C33: MAKMUR MYWAKAF FUND (MYR) | D33: ^ | E33: 26 | G33: BMAMMEM MK Equity
A34: MWFSGD | B34: 5 | C34: MAKMUR MYWAKAF FUND (SGD) | D34: ^ | E34: 27
A35: MWFUSD | B35: 5 | C35: MAKMUR MYWAKAF FUND (USD) | D35: ^ | E35: 28 | G35: BMAMMEU MK Equity
A36: BGSEFAUD | B36: 5 | C36: BIMB-ARABESQUE GLOBAL SHARIAH SUSTAINABLE EQUITY FUND - AUD Class | D36: ^ | E36: 32 | G36: BISSEBA MK Equity
A37: BGSEFMYR | B37: 5 | C37: BIMB-ARABESQUE GLOBAL SHARIAH SUSTAINABLE EQUITY FUND - RM Class | D37: ^ | E37: 29 | G37: BISSEBG MK Equity
A38: BGSEFRMH | B38: 5 | C38: BIMB-ARABESQUE GLOBAL SHARIAH SUSTAINABLE EQUITY FUND - RM Hedged Class | D38: ^ | E38: 30 | G38: BISSERH MK Equity
A39: BGSEFSGD | B39: 5 | C39: BIMB-ARABESQUE GLOBAL SHARIAH SUSTAINABLE EQUITY FUND - SGD Class | D39: ^ | E39: 33 | G39: BISSESC MK Equity
A40: BGSEFUSD | B40: 5 | C40: BIMB-ARABESQUE GLOBAL SHARIAH SUSTAINABLE EQUITY FUND - USD Class | D40: ^ | E40: 31 | G40: BISSEUC MK Equity
A41: BOSIF | B41: 0 | C41: BIMB One-Year Shariah Income Fund | E41: 34 | G41: BIOSIII MK
